Directorate,Department,Expenditure Type,Ref.Doc.1,Vendor Name,Expenditure Amount (exc VAT),Payment Date
Assurance,Assurance,Other Services,0060117148,ROYAL MAIL GROUP LIMITED,"1,452.85",15/11/2018
Assurance,Assurance,Equipment and Materials Purcha,0040003109,OFFICE DEPOT UK LTD,78.00,08/11/2018
Assurance,Assurance,Advertising,0060116081,GOOD IMPRESSIONS (LONDON) LIMITED,75.00,21/11/2018
Assurance,Assurance,Software Licences & Support,0060115150,DEMOCRACY COUNTS LIMITED,"22,500.00",08/11/2018
Assurance,Assurance,Other Services,0060117113,DEMOCRACY COUNTS LIMITED,"2,380.60",29/11/2018
Assurance,Assurance,Other Services,0060116471,ROYAL MAIL,0.96,06/11/2018
Assurance,Assurance,Equipment and Materials Purcha,0060116415,TWOFOLD LTD,196.04,06/11/2018
Assurance,Assurance,Equipment and Materials Purcha,0060116591,TWOFOLD LTD,463.98,06/11/2018
Assurance,Assurance,Venue Hire,0080020888,FRIERN BARNET HUT MANAG COMM,750.00,20/11/2018
Assurance,Assurance,Professional Services,0060117163,REDACTED - PERSONAL DATA,250.00,30/11/2018
Assurance,Assurance,Professional Services,0060116765,GOOD IMPRESSIONS (LONDON) LIMITED,60.00,29/11/2018
Assurance,Assurance,Professional Services,0060115909,BARNARD &  WESTWOOD LTD,119.60,02/11/2018
Assurance,Assurance,Professional Services,0060116505,REDACTED - PERSONAL DATA,150.00,30/11/2018
Assurance,Assurance,Professional Services,0060117263,REDACTED - PERSONAL DATA,275.00,30/11/2018
Assurance,Assurance,Professional Services,0080021377,TRAINING SHIP BROADSWORD,616.00,30/11/2018
Assurance,Assurance,Other Indirect Employee Expens,0080020584,THE MAYOR'S APPEAL,36.00,06/11/2018
Assurance,Assurance,Other Indirect Employee Expens,0080020620,MICHAELS CIVIC ROBES,43.50,08/11/2018
Assurance,Assurance,Other Indirect Employee Expens,0080020987,REDACTED - PERSONAL DATA,181.86,21/11/2018
Assurance,Assurance,Professional Services,0080021392,S7 CHAUFFEURS,"1,095.00",30/11/2018
Assurance,Assurance,Other Indirect Employee Expens,0080021393,REDACTED - PERSONAL DATA,27.68,30/11/2018
Assurance,Assurance,Equipment and Materials Purcha,0040003065,OFFICE DEPOT UK LTD,36.09,09/11/2018
Assurance,Assurance,Equipment and Materials Purcha,0040003100,OFFICE DEPOT UK LTD,36.09,15/11/2018
Assurance,Assurance,Stationery,0060104452,GOOD IMPRESSIONS (LONDON) LIMITED,90.00,05/11/2018
Assurance,Assurance,Training,0060115242,CIPFA BUSINESS LIMITED,125.00,08/11/2018
Assurance,Assurance,Professional Services,0060117230,REDACTED - PERSONAL DATA,300.00,30/11/2018
Assurance,Assurance,Translation Exp / Interpret,0060117600,PRIME PRODUCTION LTD,62.00,20/11/2018
Assurance,Assurance,General Office Expenses,0040003099,OFFICE DEPOT UK LTD,0.21,08/11/2018
Assurance,Assurance,General Office Expenses,0040003123,OFFICE DEPOT UK LTD,0.32,29/11/2018
Assurance,Assurance,Consultants Fees,0080020809,SSP LAW,"10,000.00",12/11/2018
Assurance,Assurance,Advertising,0060117616,AMAS LTD,150.00,22/11/2018
Assurance,Assurance,Training,0060117159,ITS TRAINING (UK) LTD,"11,112.50",16/11/2018
Assurance,Assurance,Translation Exp / Interpret,0060114935,REDACTED - PERSONAL DATA,"1,600.00",29/11/2018
Assurance,Assurance,Subscriptions,0060109027,NATIONAL CRIME AGENCY,274.00,23/11/2018
Assurance,Assurance,Subscriptions,0060115423,NATIONAL CRIME AGENCY,236.00,23/11/2018
Central Expenses,Central Expenses,Other Establishments - Third P,EBX0254725,LEE VALLEY REGIONAL PARK AUTH.,"28,597.64",11.11.2018
Central Expenses,Central Expenses,Other Establishments - Third P,EBX0253739,GREATER LONDON AUTHORITY,"3,396,343.00",09/11/2018
Central Expenses,Central Expenses,Other Establishments - Third P,EBX0256482,TRANSPORT TRADING LIMITED,"3,737,461.00",27.11.2018
Central Expenses,Central Expenses,Insurance Claims,0060115327,WEIGHTMANS LLP,800.00,16/11/2018
Central Expenses,Central Expenses,Insurance Claims,0060115474,WEIGHTMANS LLP,"1,000.00",16/11/2018
Central Expenses,Central Expenses,Insurance Claims,0060112980,BROWNE JACOBSON SOLS.,934.00,21/11/2018
Central Expenses,Central Expenses,Insurance Claims,0060113987,GLENDALE COUNTRYSIDE LTD,332.80,21/11/2018
Central Expenses,Central Expenses,Insurance Claims,0060114645,GLENDALE COUNTRYSIDE LTD,253.04,16/11/2018
Central Expenses,Central Expenses,Insurance Claims,0080020673,DWP COMPENSATION RECOVERY UNIT,647.00,01/11/2018
Central Expenses,Central Expenses,Insurance Claims,0080021053,DWP COMPENSATION RECOVERY UNIT,"6,960.30",27/11/2018
Central Expenses,Central Expenses,Insurance Claims,0080021067,DWP COMPENSATION RECOVERY UNIT,866.00,27/11/2018
Central Expenses,Central Expenses,Insurance Claims,0060115395,IMCS (UK) PLC,60.00,16/11/2018
Central Expenses,Central Expenses,Insurance Claims,0060115449,IMCS (UK) PLC,60.00,16/11/2018
Central Expenses,Central Expenses,Insurance Claims,0060115564,IMCS (UK) PLC,60.00,15/11/2018
Central Expenses,Central Expenses,Insurance Claims,0080020660,AGEAS INSURANCE LIMITED,"3,410.89",02/11/2018
Central Expenses,Central Expenses,Insurance Claims,0080021044,SOMERSET GARDENS HEALTHCARE,50.00,23/11/2018
Central Expenses,Central Expenses,Insurance Claims,0080021047,REDACTED - PERSONAL DATA,30.00,23/11/2018
Central Expenses,Central Expenses,Insurance Claims,0080021058,UK INSURANCE LIMITED,"2,794.95",23/11/2018
Central Expenses,Central Expenses,Insurance Claims,0080020599,REDACTED - PERSONAL DATA,"2,000.00",01/11/2018
Central Expenses,Central Expenses,Insurance Claims,0080020606,REDACTED - PERSONAL DATA,957.39,01/11/2018
Central Expenses,Central Expenses,Insurance Claims,0080020627,REDACTED - PERSONAL DATA,234.00,01/11/2018
Central Expenses,Central Expenses,Insurance Claims,0080020646,REDACTED - PERSONAL DATA,210.00,01/11/2018
Central Expenses,Central Expenses,Insurance Claims,0080020671,REDACTED - PERSONAL DATA,"2,000.00",01/11/2018
Central Expenses,Central Expenses,Insurance Claims,0080020768,SIMPSON SISSONS & BROOKE LLP,"7,551.00",07/11/2018
Central Expenses,Central Expenses,Insurance Claims,0080020878,REDACTED - PERSONAL DATA,75.00,14/11/2018
Central Expenses,Central Expenses,Insurance Claims,0080020880,REDACTED - PERSONAL DATA,250.00,14/11/2018
Central Expenses,Central Expenses,Insurance Claims,0080020882,MICHAEL LIPITCH LTD,138.00,14/11/2018
Central Expenses,Central Expenses,Insurance Claims,0080020887,REDACTED - PERSONAL DATA,750.00,14/11/2018
Central Expenses,Central Expenses,Insurance Claims,0080020914,AVIVA INSURANCE,202.32,14/11/2018
Central Expenses,Central Expenses,Insurance Claims,0080020937,REDACTED - PERSONAL DATA,100.00,16/11/2018
Central Expenses,Central Expenses,Insurance Claims,0080020938,PRODDOW MACKAY,"2,420.95",16/11/2018
Central Expenses,Central Expenses,Insurance Claims,0080020939,REDACTED - PERSONAL DATA,520.80,16/11/2018
Central Expenses,Central Expenses,Insurance Claims,0080020981,REDACTED - PERSONAL DATA,297.99,20/11/2018
Central Expenses,Central Expenses,Insurance Claims,0080020989,REDACTED - PERSONAL DATA,"2,500.00",16/11/2018
Central Expenses,Central Expenses,Insurance Claims,0080021018,REDACTED - PERSONAL DATA,85.00,20/11/2018
Central Expenses,Central Expenses,Insurance Claims,0080021038,REDACTED - PERSONAL DATA,479.99,20/11/2018
Central Expenses,Central Expenses,Insurance Claims,0080021041,AUXILLIS SERVICES LIMITED,"3,833.29",27/11/2018
Central Expenses,Central Expenses,Insurance Claims,0080021062,THOMPSONS SOLICITORS,"15,000.00",27/11/2018
Central Expenses,Central Expenses,Insurance Claims,0080021081,REDACTED - PERSONAL DATA,"3,250.00",26/11/2018
Central Expenses,Central Expenses,Insurance Claims,0080021218,FMG SUPPORT (FIM) LTD,250.00,26/11/2018
Central Expenses,Central Expenses,Insurance Claims,0060114905,GRISTWOOD & TOM LTD,12.00,16/11/2018
Central Expenses,Central Expenses,Insurance Claims,0080021064,THOMPSONS SOLICITORS,"8,594.00",27/11/2018
Commercial,Customer Support Group,Building Repairs & Maintenance,0060106425,OAKRAY LIMITED,323.34,01/11/2018
Commercial,Customer Support Group,Building Repairs & Maintenance,0010014436,THAMES LABORATORIES,90.00,09/11/2018
Commercial,Customer Support Group,Building Repairs & Maintenance,0060116133,THAMES LABORATORIES,195.00,07/11/2018
Commercial,Customer Support Group,Building Repairs & Maintenance,0060116152,THAMES LABORATORIES,195.00,07/11/2018
Commercial,Customer Support Group,Building Repairs & Maintenance,0060116160,THAMES LABORATORIES,250.00,09/11/2018
Commercial,Customer Support Group,Building Repairs & Maintenance,0060116194,THAMES LABORATORIES,90.00,07/11/2018
Commercial,Customer Support Group,Building Repairs & Maintenance,0060116582,THAMES LABORATORIES,90.00,07/11/2018
Commercial,Customer Support Group,Building Repairs & Maintenance,0060116593,THAMES LABORATORIES,675.00,07/11/2018
Commercial,Customer Support Group,Building Repairs & Maintenance,0060116992,MEMS LTD T/A MEMS POWER GENERATION,490.00,29/11/2018
Commercial,Customer Support Group,Building Repairs & Maintenance,0060116318,ONLITECH,"2,327.00",26/11/2018
Commercial,Customer Support Group,Building Repairs & Maintenance,0060115297,OAKRAY LIMITED,75.00,07/11/2018
Commercial,Customer Support Group,Building Repairs & Maintenance,0060115326,OAKRAY LIMITED,360.00,22/11/2018
Commercial,Customer Support Group,Building Repairs & Maintenance,0060113756,T.&.D.BARRS,"1,780.75",01/11/2018
Commercial,Customer Support Group,Building Repairs & Maintenance,0060113767,T.&.D.BARRS,"1,840.25",01/11/2018
Commercial,Customer Support Group,Building Repairs & Maintenance,0060113803,T.&.D.BARRS,482.00,01/11/2018
Commercial,Customer Support Group,Building Repairs & Maintenance,0060114902,T.&.D.BARRS,85.00,01/11/2018
Commercial,Customer Support Group,Building Repairs & Maintenance,0060114920,T.&.D.BARRS,493.00,01/11/2018
Commercial,Customer Support Group,Building Repairs & Maintenance,0060114923,T.&.D.BARRS,446.25,01/11/2018
Commercial,Customer Support Group,Building Repairs & Maintenance,0060114929,T.&.D.BARRS,110.50,01/11/2018
Commercial,Customer Support Group,Building Repairs & Maintenance,0060114939,T.&.D.BARRS,981.75,20/11/2018
Commercial,Customer Support Group,Building Repairs & Maintenance,0060114951,T.&.D.BARRS,878.05,20/11/2018
Commercial,Customer Support Group,Building Repairs & Maintenance,0060114961,T.&.D.BARRS,"1,160.25",20/11/2018
Commercial,Customer Support Group,Building Repairs & Maintenance,0060116495,T.&.D.BARRS,306.00,22/11/2018
Commercial,Customer Support Group,Building Repairs & Maintenance,0060116987,T.&.D.BARRS,208.25,21/11/2018
Commercial,Customer Support Group,Building Repairs & Maintenance,0060115333,OAKRAY LIMITED,"4,297.50",08/11/2018
Commercial,Customer Support Group,Electricity,0060116230,KENT COUNTY COUNCIL (KCS),"4,914.80",06/11/2018
Commercial,Customer Support Group,Cleaning and domestic material,0060116994,HERTFORDSHIRE SUPPLIES   COUNTY CO,82.80,16/11/2018
Commercial,Customer Support Group,Cleaning and domestic material,0060117032,HERTFORDSHIRE SUPPLIES   COUNTY CO,11.38,12/11/2018
Commercial,Customer Support Group,Furniture-Purchase-Repair,0010014509,SCREWFIX DIRECT LTD,66.58,30/11/2018
Commercial,Customer Support Group,Furniture-Purchase-Repair,0060115341,SCREWFIX DIRECT LTD,95.68,16/11/2018
Commercial,Customer Support Group,Furniture-Purchase-Repair,0060115898,SCREWFIX DIRECT LTD,99.99,16/11/2018
Commercial,Customer Support Group,Furniture-Purchase-Repair,0060116306,SCREWFIX DIRECT LTD,44.97,08/11/2018
Commercial,Customer Support Group,Furniture-Purchase-Repair,0060117192,SCREWFIX DIRECT LTD,14.39,30/11/2018
Commercial,Customer Support Group,Cleaning and domestic material,0060116998,HERTFORDSHIRE COUNTY COUNCIL,"2,329.84",12/11/2018
Commercial,Customer Support Group,Other Services,0010014430,BLUE 9 SECURITY LIMITED,"5,667.48",09/11/2018
Commercial,Customer Support Group,Other Services,0060116931,BLUE 9 SECURITY LIMITED,"15,695.78",08/11/2018
Commercial,Customer Support Group,Cleaning and domestic material,0060112820,CHURCHILL CONTRACT SERVICES,"11,562.54",27/11/2018
Commercial,Customer Support Group,Cleaning and domestic material,0060116653,CHURCHILL CONTRACT SERVICES,"11,562.54",29/11/2018
Commercial,Customer Support Group,Cleaning and domestic material,0060118151,CHURCHILL CONTRACT SERVICES,"11,562.54",29/11/2018
Commercial,Customer Support Group,Water Services,0010014475,ANGEL SPRINGS LTD,20.90,23/11/2018
Commercial,Customer Support Group,Water Services,0010014477,ANGEL SPRINGS LTD,97.58,23/11/2018
Commercial,Customer Support Group,Water Services,0010014478,ANGEL SPRINGS LTD,444.00,23/11/2018
Commercial,Customer Support Group,Water Services,0060114831,ANGEL SPRINGS LTD,9.24,01/11/2018
Commercial,Customer Support Group,Water Services,0060114879,ANGEL SPRINGS LTD,252.00,01/11/2018
Commercial,Customer Support Group,Water Services,0060117221,ANGEL SPRINGS LTD,17.05,29/11/2018
Commercial,Customer Support Group,Water Services,0060117244,ANGEL SPRINGS LTD,270.96,29/11/2018
Commercial,Customer Support Group,Water Services,0060117269,ANGEL SPRINGS LTD,-60.00,29/11/2018
Commercial,Customer Support Group,Building Repairs & Maintenance,0060116206,AJS LTD,84.00,06/11/2018
Commercial,Customer Support Group,Equipment and Materials Purcha,0060116223,AJS LTD,128.00,06/11/2018
Commercial,Customer Support Group,Building Repairs & Maintenance,0060097956,LIFT & ENGINEERING SERVICES LTD,71.69,14/11/2018
Commercial,Customer Support Group,Building Repairs & Maintenance,0060097970,LIFT & ENGINEERING SERVICES LTD,71.69,14/11/2018
Commercial,Customer Support Group,Building Repairs & Maintenance,0060098009,LIFT & ENGINEERING SERVICES LTD,71.69,14/11/2018
Commercial,Customer Support Group,Building Repairs & Maintenance,0060098010,LIFT & ENGINEERING SERVICES LTD,71.69,29/11/2018
Commercial,Customer Support Group,Building Repairs & Maintenance,0060098039,LIFT & ENGINEERING SERVICES LTD,71.69,14/11/2018
Commercial,Customer Support Group,Building Repairs & Maintenance,0060099370,LIFT & ENGINEERING SERVICES LTD,71.69,14/11/2018
Commercial,Customer Support Group,Building Repairs & Maintenance,0060099464,LIFT & ENGINEERING SERVICES LTD,71.69,14/11/2018
Commercial,Customer Support Group,Building Repairs & Maintenance,0060099477,LIFT & ENGINEERING SERVICES LTD,71.69,14/11/2018
Commercial,Customer Support Group,Building Repairs & Maintenance,0060104203,LIFT & ENGINEERING SERVICES LTD,71.69,14/11/2018
Commercial,Customer Support Group,Building Repairs & Maintenance,0060104209,LIFT & ENGINEERING SERVICES LTD,71.69,14/11/2018
Commercial,Customer Support Group,Building Repairs & Maintenance,0060104232,LIFT & ENGINEERING SERVICES LTD,71.69,16/11/2018
Commercial,Customer Support Group,Building Repairs & Maintenance,0060106284,LIFT & ENGINEERING SERVICES LTD,71.69,16/11/2018
Commercial,Customer Support Group,Building Repairs & Maintenance,0060106305,LIFT & ENGINEERING SERVICES LTD,71.69,16/11/2018
Commercial,Customer Support Group,Building Repairs & Maintenance,0060106342,LIFT & ENGINEERING SERVICES LTD,71.69,14/11/2018
Commercial,Customer Support Group,Water Services,0060115454,CASTLE WATER LTD,652.65,14/11/2018
Commercial,Customer Support Group,Training,0060116363,EVAC & CHAIR INTERNATIONAL LTD,900.00,06/11/2018
Commercial,Customer Support Group,Other Services,0060116905,BLUE 9 SECURITY LIMITED,"6,186.24",08/11/2018
Commercial,Customer Support Group,Cleaning and domestic material,0060112788,CHURCHILL CONTRACT SERVICES,"1,133.45",29/11/2018
Commercial,Customer Support Group,Cleaning and domestic material,0060116794,CHURCHILL CONTRACT SERVICES,"1,133.45",29/11/2018
Commercial,Customer Support Group,Water Services,0010014474,ANGEL SPRINGS LTD,217.50,23/11/2018
Commercial,Customer Support Group,Water Services,0060114888,ANGEL SPRINGS LTD,129.00,01/11/2018
Commercial,Customer Support Group,Water Services,0060117181,ANGEL SPRINGS LTD,189.00,29/11/2018
Commercial,Customer Support Group,Building Repairs & Maintenance,0060116213,AJS LTD,35.54,06/11/2018
Commercial,Customer Support Group,Building Repairs & Maintenance,0060115526,LIFT & ENGINEERING SERVICES LTD,"3,795.00",14/11/2018
Commercial,Customer Support Group,Equipment and Materials Purcha,0060115362,OAKRAY LIMITED,"2,928.00",08/11/2018
Commercial,Customer Support Group,Gas,0060116238,KENT COUNTY COUNCIL (KCS),252.25,06/11/2018
Commercial,Customer Support Group,Electricity,0060116296,KENT COUNTY COUNCIL (KCS),"1,003.08",06/11/2018
Commercial,Customer Support Group,Water Services,0060116045,CASTLE WATER LTD,136.28,01/11/2018
Commercial,Customer Support Group,Cleaning and domestic material,0060116981,HERTFORDSHIRE SUPPLIES   COUNTY CO,"2,624.16",12/11/2018
Commercial,Customer Support Group,Rubbish Collection,0010014457,PEARCE RECYCLING GROUP,147.00,16/11/2018
Commercial,Customer Support Group,Rubbish Collection,0060111311,PEARCE RECYCLING GROUP,133.00,09/11/2018
Commercial,Customer Support Group,Other Services,0060116854,BLUE 9 SECURITY LIMITED,"11,724.21",08/11/2018
Commercial,Customer Support Group,Cleaning and domestic material,0060112794,CHURCHILL CONTRACT SERVICES,"7,329.82",29/11/2018
Commercial,Customer Support Group,Cleaning and domestic material,0060112942,CHURCHILL CONTRACT SERVICES,399.00,26/11/2018
Commercial,Customer Support Group,Cleaning and domestic material,0060116777,CHURCHILL CONTRACT SERVICES,"7,329.82",27/11/2018
Commercial,Customer Support Group,Cleaning and domestic material,0060117737,CHURCHILL CONTRACT SERVICES,400.00,21/11/2018
Commercial,Customer Support Group,Rubbish Collection,0010014411,PREMIER SHREDDING,50.00,05/11/2018
Commercial,Customer Support Group,Equipment and Materials Purcha,0060115346,OAKRAY LIMITED,315.00,08/11/2018
Commercial,Customer Support Group,Equipment and Materials Purcha,0060115365,OAKRAY LIMITED,75.00,08/11/2018
Commercial,Customer Support Group,Cleaning and domestic material,0060112800,CHURCHILL CONTRACT SERVICES,661.80,27/11/2018
Commercial,Customer Support Group,CSG Services Contract Payment,0010014462,CAPITA BUSINESS SERVICES LTD,"67,035.86",22/11/2018
Commercial,Customer Support Group,CSG Services Contract Payment,0060106367,CAPITA BUSINESS SERVICES LTD,"14,583.00",05/11/2018
Commercial,Customer Support Group,CSG Services Contract Payment,0060111376,CAPITA BUSINESS SERVICES LTD,"9,609.38",19/11/2018
Commercial,Customer Support Group,CSG Services Contract Payment,0060117118,CAPITA BUSINESS SERVICES LTD,"114,053.52",23/11/2018
Commercial,Customer Support Group,CSG Services Contract Payment,0060117160,CAPITA BUSINESS SERVICES LTD,"12,750.00",22/11/2018
Commercial,Customer Support Group,CSG Services Contract Payment,0060117304,CAPITA BUSINESS SERVICES LTD,"1,589.43",22/11/2018
Commercial,Customer Support Group,Equipment and Materials Purcha,0010014382,OAKRAY LIMITED,356.25,08/11/2018
Commercial,Customer Support Group,Building Repairs & Maintenance,0060108658,OAKRAY LIMITED,416.00,01/11/2018
Commercial,Customer Support Group,Equipment and Materials Purcha,0060115265,OAKRAY LIMITED,183.75,08/11/2018
Commercial,Customer Support Group,Equipment and Materials Purcha,0060115292,OAKRAY LIMITED,82.50,08/11/2018
Commercial,Customer Support Group,Equipment and Materials Purcha,0060115294,OAKRAY LIMITED,90.00,08/11/2018
Commercial,Customer Support Group,Equipment and Materials Purcha,0060115305,OAKRAY LIMITED,45.00,08/11/2018
Commercial,Customer Support Group,Building Repairs & Maintenance,0060115312,OAKRAY LIMITED,319.25,08/11/2018
Commercial,Customer Support Group,Building Repairs & Maintenance,0060115324,OAKRAY LIMITED,705.00,08/11/2018
Commercial,Customer Support Group,Equipment and Materials Purcha,0060115328,OAKRAY LIMITED,67.50,08/11/2018
Commercial,Customer Support Group,Building Repairs & Maintenance,0060115331,OAKRAY LIMITED,648.75,08/11/2018
Commercial,Customer Support Group,Equipment and Materials Purcha,0060115334,OAKRAY LIMITED,22.50,08/11/2018
Commercial,Customer Support Group,Building Repairs & Maintenance,0060115338,OAKRAY LIMITED,431.25,22/11/2018
Commercial,Customer Support Group,Building Repairs & Maintenance,0060115339,OAKRAY LIMITED,75.00,08/11/2018
Commercial,Customer Support Group,Equipment and Materials Purcha,0060115343,OAKRAY LIMITED,135.00,08/11/2018
Commercial,Customer Support Group,Equipment and Materials Purcha,0060115344,OAKRAY LIMITED,22.50,08/11/2018
Commercial,Customer Support Group,Building Repairs & Maintenance,0060115354,OAKRAY LIMITED,210.00,08/11/2018
Commercial,Customer Support Group,Building Repairs & Maintenance,0060115372,OAKRAY LIMITED,210.00,08/11/2018
Commercial,Customer Support Group,Equipment and Materials Purcha,0060115394,OAKRAY LIMITED,30.00,08/11/2018
Commercial,Customer Support Group,Building Repairs & Maintenance,0060115625,OAKRAY LIMITED,120.00,08/11/2018
Commercial,Customer Support Group,Building Repairs & Maintenance,0060116137,OAKRAY LIMITED,162.00,02/11/2018
Commercial,Customer Support Group,Building Repairs & Maintenance,0060116182,OAKRAY LIMITED,88.00,02/11/2018
Commercial,Customer Support Group,Building Repairs & Maintenance,0060116575,OAKRAY LIMITED,"1,941.37",08/11/2018
Commercial,Customer Support Group,Equipment and Materials Purcha,0060116639,OAKRAY LIMITED,630.00,12/11/2018
Commercial,Customer Support Group,Building Repairs & Maintenance,0060118067,OAKRAY LIMITED,15.00,27/11/2018
Commercial,Customer Support Group,Building Repairs & Maintenance,0060111710,ADAMS ENVIRONMENTAL LTD,500.00,29/11/2018
Commercial,Customer Support Group,Gas,0060115391,KENT COUNTY COUNCIL (KCS),51.46,16/11/2018
Commercial,Customer Support Group,Gas,0060115451,KENT COUNTY COUNCIL (KCS),68.14,16/11/2018
Commercial,Customer Support Group,Gas,0060115453,KENT COUNTY COUNCIL (KCS),49.80,16/11/2018
Commercial,Customer Support Group,Gas,0060115860,KENT COUNTY COUNCIL (KCS),184.56,16/11/2018
Commercial,Customer Support Group,Gas,0060115884,KENT COUNTY COUNCIL (KCS),128.07,16/11/2018
Commercial,Customer Support Group,Gas,0060115919,KENT COUNTY COUNCIL (KCS),129.68,16/11/2018
Commercial,Customer Support Group,Gas,0060115980,KENT COUNTY COUNCIL (KCS),57.35,16/11/2018
Commercial,Customer Support Group,Electricity,0060116208,KENT COUNTY COUNCIL (KCS),350.15,06/11/2018
Commercial,Customer Support Group,Electricity,0060116224,KENT COUNTY COUNCIL (KCS),321.42,06/11/2018
Commercial,Customer Support Group,Gas,0060116232,KENT COUNTY COUNCIL (KCS),75.35,06/11/2018
Commercial,Customer Support Group,Gas,0060116235,KENT COUNTY COUNCIL (KCS),117.90,06/11/2018
Commercial,Customer Support Group,Electricity,0060116241,KENT COUNTY COUNCIL (KCS),"1,616.88",06/11/2018
Commercial,Customer Support Group,Gas,0060116244,KENT COUNTY COUNCIL (KCS),49.80,06/11/2018
Commercial,Customer Support Group,Gas,0060116247,KENT COUNTY COUNCIL (KCS),254.68,06/11/2018
Commercial,Customer Support Group,Gas,0060116261,KENT COUNTY COUNCIL (KCS),55.50,06/11/2018
Commercial,Customer Support Group,Gas,0060116280,KENT COUNTY COUNCIL (KCS),67.58,16/11/2018
Commercial,Customer Support Group,Gas,0060116290,KENT COUNTY COUNCIL (KCS),67.76,16/11/2018
Commercial,Customer Support Group,Gas,0060116319,KENT COUNTY COUNCIL (KCS),65.40,08/11/2018
Commercial,Customer Support Group,Electricity,0060116329,KENT COUNTY COUNCIL (KCS),52.01,06/11/2018
Commercial,Customer Support Group,Gas,0060116345,KENT COUNTY COUNCIL (KCS),65.40,08/11/2018
Commercial,Customer Support Group,Electricity,0060116346,KENT COUNTY COUNCIL (KCS),764.00,06/11/2018
Commercial,Customer Support Group,Electricity,0060116697,KENT COUNTY COUNCIL (KCS),568.88,07/11/2018
Commercial,Customer Support Group,Electricity,0060116732,KENT COUNTY COUNCIL (KCS),"1,766.98",07/11/2018
Commercial,Customer Support Group,Electricity,0060117065,KENT COUNTY COUNCIL (KCS),230.14,14/11/2018
Commercial,Customer Support Group,Electricity,0060117188,KENT COUNTY COUNCIL (KCS),325.70,30/11/2018
Commercial,Customer Support Group,Other Services,0060117536,ECOLAB SERVICES LTD,47.15,29/11/2018
Commercial,Customer Support Group,Building Repairs & Maintenance,0060113169,T.&.D.BARRS,17.00,19/11/2018
Commercial,Customer Support Group,Building Repairs & Maintenance,0060113170,T.&.D.BARRS,68.00,21/11/2018
Commercial,Customer Support Group,Building Repairs & Maintenance,0060113172,T.&.D.BARRS,34.00,19/11/2018
Commercial,Customer Support Group,Building Repairs & Maintenance,0060113184,T.&.D.BARRS,31.96,19/11/2018
Commercial,Customer Support Group,Building Repairs & Maintenance,0060113365,T.&.D.BARRS,75.92,19/11/2018
Commercial,Customer Support Group,Building Repairs & Maintenance,0060113372,T.&.D.BARRS,63.92,19/11/2018
Commercial,Customer Support Group,Building Repairs & Maintenance,0060115505,T.&.D.BARRS,51.00,06/11/2018
Commercial,Customer Support Group,Building Repairs & Maintenance,0060115561,T.&.D.BARRS,306.00,06/11/2018
Commercial,Customer Support Group,Building Repairs & Maintenance,0060115575,T.&.D.BARRS,234.60,06/11/2018
Commercial,Customer Support Group,Building Repairs & Maintenance,0060115584,T.&.D.BARRS,200.75,06/11/2018
Commercial,Customer Support Group,Building Repairs & Maintenance,0060117201,T.&.D.BARRS,153.00,20/11/2018
Commercial,Customer Support Group,Building Repairs & Maintenance,0060117265,T.&.D.BARRS,323.00,22/11/2018
Commercial,Customer Support Group,Electricity,0010014392,E-ON ENERGY,28.00,02/11/2018
Commercial,Customer Support Group,Other Services,0060116891,BLUE 9 SECURITY LIMITED,67.15,08/11/2018
Commercial,Customer Support Group,Other Services,0060116917,BLUE 9 SECURITY LIMITED,201.45,08/11/2018
Commercial,Customer Support Group,Other Services,0060116922,BLUE 9 SECURITY LIMITED,15.57,15/11/2018
Commercial,Customer Support Group,Other Services,0060117009,BLUE 9 SECURITY LIMITED,15.57,12/11/2018
Commercial,Customer Support Group,Gas,0010014429,BRITISH GAS BUSINESS,89.39,08/11/2018
Commercial,Customer Support Group,Electricity,0060116361,BRITISH GAS BUSINESS,40.30,06/11/2018
Commercial,Customer Support Group,Gas,0060117080,BRITISH GAS BUSINESS,88.59,14/11/2018
Commercial,Customer Support Group,Cleaning and domestic material,0060114430,CHURCHILL CONTRACT SERVICES,294.16,26/11/2018
Commercial,Customer Support Group,Cleaning and domestic material,0060118210,CHURCHILL CONTRACT SERVICES,294.16,29/11/2018
Commercial,Customer Support Group,Water Services,0010014390,AFFINITY WATER LIMITED,37.47,02/11/2018
Commercial,Customer Support Group,Water Services,0060109600,AFFINITY WATER LIMITED,32.08,07/11/2018
Commercial,Customer Support Group,Water Services,0060109676,AFFINITY WATER LIMITED,30.95,07/11/2018
Commercial,Customer Support Group,Water Services,0060116233,AFFINITY WATER LIMITED,41.56,14/11/2018
Commercial,Customer Support Group,Water Services,0060116825,AFFINITY WATER LIMITED,162.58,09/11/2018
Commercial,Customer Support Group,Water Services,0060116833,AFFINITY WATER LIMITED,273.96,09/11/2018
Commercial,Customer Support Group,Water Services,0060116898,AFFINITY WATER LIMITED,184.77,09/11/2018
Commercial,Customer Support Group,Water Services,0060116913,AFFINITY WATER LIMITED,177.05,09/11/2018
Commercial,Customer Support Group,Water Services,0060116916,AFFINITY WATER LIMITED,185.94,09/11/2018
Commercial,Customer Support Group,Water Services,0060116933,AFFINITY WATER LIMITED,194.55,09/11/2018
Commercial,Customer Support Group,Water Services,0060116936,AFFINITY WATER LIMITED,164.06,09/11/2018
Commercial,Customer Support Group,Equipment and Materials Purcha,0060112843,WATES LIVING SPACE,"5,420.00",27/11/2018
Commercial,Customer Support Group,Building Repairs & Maintenance,0060113773,WATES LIVING SPACE,71.25,27/11/2018
Commercial,Customer Support Group,Building Repairs & Maintenance,0060114017,WATES LIVING SPACE,71.25,27/11/2018
Commercial,Customer Support Group,Building Repairs & Maintenance,0060114444,WATES LIVING SPACE,151.41,27/11/2018
Commercial,Customer Support Group,Building Repairs & Maintenance,0060114643,WATES LIVING SPACE,205.44,27/11/2018
Commercial,Customer Support Group,Building Repairs & Maintenance,0060114662,WATES LIVING SPACE,121.66,27/11/2018
Commercial,Customer Support Group,Building Repairs & Maintenance,0060116207,AJS LTD,69.33,06/11/2018
Commercial,Customer Support Group,Building Repairs & Maintenance,0060116239,AJS LTD,35.54,06/11/2018
Commercial,Customer Support Group,Building Repairs & Maintenance,0060116251,AJS LTD,55.81,06/11/2018
Commercial,Customer Support Group,Building Repairs & Maintenance,0060116255,AJS LTD,24.51,06/11/2018
Commercial,Customer Support Group,Building Repairs & Maintenance,0060116264,AJS LTD,136.56,06/11/2018
Commercial,Customer Support Group,Building Repairs & Maintenance,0060116274,AJS LTD,87.91,06/11/2018
Commercial,Customer Support Group,Building Repairs & Maintenance,0060117249,AJS LTD,76.00,19/11/2018
Commercial,Customer Support Group,Building Repairs & Maintenance,0060117254,AJS LTD,76.00,21/11/2018
Commercial,Customer Support Group,Building Repairs & Maintenance,0060117672,AJS LTD,40.00,20/11/2018
Commercial,Customer Support Group,Building Repairs & Maintenance,0060115411,S W BRUCE & CO LTD,25.00,13/11/2018
Commercial,Customer Support Group,Building Repairs & Maintenance,0060116519,S W BRUCE & CO LTD,127.00,06/11/2018
Commercial,Customer Support Group,Building Repairs & Maintenance,0060095410,LIFT & ENGINEERING SERVICES LTD,74.38,29/11/2018
Commercial,Customer Support Group,Water Services,0010014418,CASTLE WATER LTD,25.40,07/11/2018
Commercial,Customer Support Group,Water Services,0060114862,CASTLE WATER LTD,118.25,19/11/2018
Commercial,Customer Support Group,Water Services,0060115287,CASTLE WATER LTD,32.65,08/11/2018
Commercial,Customer Support Group,Water Services,0060115809,CASTLE WATER LTD,32.57,08/11/2018
Commercial,Customer Support Group,Water Services,0060115839,CASTLE WATER LTD,31.90,08/11/2018
Commercial,Customer Support Group,Water Services,0060117329,CASTLE WATER LTD,29.51,16/11/2018
Commercial,Customer Support Group,Building Repairs & Maintenance,0010014425,THAMES LABORATORIES,350.00,08/11/2018
Commercial,Customer Support Group,Building Repairs & Maintenance,0020040008,THAMES LABORATORIES,195.00,08/11/2018
Commercial,Customer Support Group,Building Repairs & Maintenance,0020040011,THAMES LABORATORIES,220.00,08/11/2018
Commercial,Customer Support Group,Building Repairs & Maintenance,0060115513,THAMES LABORATORIES,625.00,26/11/2018
Commercial,Customer Support Group,Building Repairs & Maintenance,0060115673,THAMES LABORATORIES,730.00,01/11/2018
Commercial,Customer Support Group,Building Repairs & Maintenance,0060115968,THAMES LABORATORIES,90.00,07/11/2018
Commercial,Customer Support Group,Other Services,0060116851,LONDON CARETAKERS,350.00,29/11/2018
Commercial,Customer Support Group,Other Services,0060117061,LONDON CARETAKERS,140.00,29/11/2018
Commercial,Customer Support Group,Consultants Fees,0080020944,YUGIN & PARTNERS SOLICITORS,"95,000.00",15/11/2018
Commercial,Customer Support Group,Building Repairs & Maintenance,0060117674,COLT INTERNATIONAL LTD,"1,125.50",21/11/2018
Commercial,Customer Support Group,Building Repairs & Maintenance,0060117053,INTEGRATED WATER SERVICES LTD,150.00,14/11/2018
Commercial,Customer Support Group,Building Repairs & Maintenance,0060117066,INTEGRATED WATER SERVICES LTD,150.00,14/11/2018
Commercial,Customer Support Group,Building Repairs & Maintenance,0060117071,INTEGRATED WATER SERVICES LTD,150.00,14/11/2018
Commercial,Customer Support Group,Building Repairs & Maintenance,0060117074,INTEGRATED WATER SERVICES LTD,487.50,14/11/2018
Commercial,Customer Support Group,Building Repairs & Maintenance,0060117086,INTEGRATED WATER SERVICES LTD,150.00,14/11/2018
Commercial,Customer Support Group,Building Repairs & Maintenance,0060117091,INTEGRATED WATER SERVICES LTD,300.00,16/11/2018
Commercial,Customer Support Group,Building Repairs & Maintenance,0060117092,INTEGRATED WATER SERVICES LTD,131.25,14/11/2018
Commercial,Customer Support Group,Building Repairs & Maintenance,0060117101,INTEGRATED WATER SERVICES LTD,150.00,14/11/2018
Commercial,Customer Support Group,Building Repairs & Maintenance,0060117102,INTEGRATED WATER SERVICES LTD,225.00,29/11/2018
Commercial,Customer Support Group,Building Repairs & Maintenance,0060117106,INTEGRATED WATER SERVICES LTD,150.00,14/11/2018
Commercial,Customer Support Group,Building Repairs & Maintenance,0060117108,INTEGRATED WATER SERVICES LTD,150.00,14/11/2018
Commercial,Customer Support Group,Equipment and Materials Purcha,0060117621,PICKERINGS LIFTS LTD,"1,399.52",22/11/2018
Commercial,Customer Support Group,Building Repairs & Maintenance,0060117858,PICKERINGS LIFTS LTD,985.44,27/11/2018
Commercial,Customer Support Group,Electricity,0060116971,EDF ENERGY 1 LTD,345.54,29/11/2018
Commercial,Customer Support Group,Electricity,0060116493,BRITISH GAS BUSINESS(ELEC),86.54,06/11/2018
Commercial,Customer Support Group,Consultants Fees,0060114955,GVA GRIMLEY LTD,"3,500.00",06/11/2018
Commercial,Customer Support Group,Ttl IT & Comms,0060117667,VODAFONE LTD (BILLS ONLY),351.03,20/11/2018
Commercial,Customer Support Group,Ttl IT & Comms,0010014460,TELEFONICA UK LTD,-28.68,16/11/2018
Commercial,Customer Support Group,Ttl IT & Comms,0060114971,TELEFONICA UK LTD,60.00,15/11/2018
Commercial,Customer Support Group,Ttl IT & Comms,0060117594,TELEFONICA UK LTD,60.00,21/11/2018
Commercial,Customer Support Group,Ttl IT & Comms,0060117626,TELEFONICA UK LTD,60.00,21/11/2018
Commercial,Customer Support Group,Agency/Interim Hays,0010014455,MATRIX MCM LTD,"111,336.65",16/11/2018
Commercial,Customer Support Group,Professional Services,0060117380,ROSSENDALES (COLLECT) LTD,"1,189.81",20/11/2018
Commercial,Customer Support Group,Professional Services,0060117395,ROSSENDALES (COLLECT) LTD,"1,087.87",21/11/2018
Commercial,Customer Support Group,Professional Services,0060117403,ROSSENDALES (COLLECT) LTD,"2,425.78",21/11/2018
Commercial,Customer Support Group,Professional Services,0060117405,ROSSENDALES (COLLECT) LTD,"1,145.09",23/11/2018
Commercial,Customer Support Group,Professional Services,0060117407,ROSSENDALES (COLLECT) LTD,"1,174.70",21/11/2018
Commercial,Customer Support Group,Professional Services,0060117437,ROSSENDALES (COLLECT) LTD,"7,629.62",21/11/2018
Commercial,Customer Support Group,Professional Services,0060117475,ROSSENDALES (COLLECT) LTD,"1,489.77",21/11/2018
Commercial,Customer Support Group,Professional Services,0060117476,ROSSENDALES (COLLECT) LTD,"1,792.32",21/11/2018
Commercial,Customer Support Group,Professional Services,0060117479,ROSSENDALES (COLLECT) LTD,661.00,21/11/2018
Commercial,Customer Support Group,Professional Services,0060117484,ROSSENDALES (COLLECT) LTD,544.17,21/11/2018
Commercial,Customer Support Group,Professional Services,0060117505,ROSSENDALES (COLLECT) LTD,"1,031.08",21/11/2018
Commercial,Customer Support Group,Professional Services,0060117552,ROSSENDALES (COLLECT) LTD,"3,426.80",21/11/2018
Commercial,Customer Support Group,Postage,0060116910,ROYAL MAIL GROUP LIMITED,80.21,08/11/2018
Commercial,Customer Support Group,Postage,0060117165,ROYAL MAIL GROUP LIMITED,154.41,19/11/2018
Commercial,Customer Support Group,Postage,0060112833,OFF THE WALL MARKETING LTD,252.90,13/11/2018
Commercial,Customer Support Group,Postage,0060115707,ENVOPRINT,"1,035.00",01/11/2018
Commercial,Customer Support Group,Postage,0060116586,ENVOPRINT,561.00,22/11/2018
Commercial,Customer Support Group,Postage,0060114422,ASPENLINK LIMITED,"13,272.60",13/11/2018
Commercial,Customer Support Group,Postage,0010014463,MACDADDY IT LIMITED,110.00,19/11/2018
Commercial,Customer Support Group,Postage,0010014381,XERETEC OFFICE SYSTEMS,421.90,01/11/2018
Commercial,Customer Support Group,Postage,0060116932,WEMBLEY LAMINATIONS LTD:,458.79,08/11/2018
Commercial,Customer Support Group,Postage,0060118217,WEMBLEY LAMINATIONS LTD:,930.00,27/11/2018
Commercial,Customer Support Group,Postage,0010014435,PULSTAR DATAPRINT LTD,"2,999.70",09/11/2018
Commercial,Customer Support Group,Postage,0060117576,PULSTAR DATAPRINT LTD,37.50,27/11/2018
Commercial,Customer Support Group,Postage,0060117302,FINANCIAL DATA MANAGEMENT LTD,"1,015.00",16/11/2018
Commercial,Customer Support Group,Building Repairs & Maintenance,0060115285,OAKRAY LIMITED,742.50,08/11/2018
Commercial,Customer Support Group,Gas,0060115981,KENT COUNTY COUNCIL (KCS),364.43,16/11/2018
Commercial,Customer Support Group,Electricity,0060116813,KENT COUNTY COUNCIL (KCS),242.92,07/11/2018
Commercial,Customer Support Group,Electricity,0060116939,KENT COUNTY COUNCIL (KCS),70.72,08/11/2018
Commercial,Customer Support Group,Cleaning and domestic material,0060117020,HERTFORDSHIRE SUPPLIES   COUNTY CO,313.79,12/11/2018
Commercial,Customer Support Group,Rubbish Collection,0060117223,PEARCE RECYCLING GROUP,102.50,29/11/2018
Commercial,Customer Support Group,Other Services,0060116842,BLUE 9 SECURITY LIMITED,"22,773.84",08/11/2018
Commercial,Customer Support Group,Water Services,0010014476,ANGEL SPRINGS LTD,159.58,23/11/2018
Commercial,Customer Support Group,Water Services,0060106207,ANGEL SPRINGS LTD,-36.00,23/11/2018
Commercial,Customer Support Group,Water Services,0060116886,WAVE ANGLIAN WATER BUSINESS,"2,182.86",09/11/2018
Commercial,Customer Support Group,Equipment and Materials Purcha,0060116353,EVAC & CHAIR INTERNATIONAL LTD,145.00,06/11/2018
Commercial,Customer Support Group,CSG Services Contract Payment,0060111420,CAPITA BUSINESS SERVICES LTD,"22,332.10",23/11/2018
Commercial,Customer Support Group,Building Repairs & Maintenance,0060115841,STANFORD MARSH LTD,180.00,01/11/2018
Commercial,Customer Support Group,Building Repairs & Maintenance,0060114765,OAKRAY LIMITED,325.26,02/11/2018
Commercial,Customer Support Group,Building Repairs & Maintenance,0060114781,OAKRAY LIMITED,660.27,02/11/2018
Commercial,Customer Support Group,Building Repairs & Maintenance,0060114799,OAKRAY LIMITED,317.87,01/11/2018
Commercial,Customer Support Group,Building Repairs & Maintenance,0060115917,OAKRAY LIMITED,486.00,01/11/2018
Commercial,Customer Support Group,Building Repairs & Maintenance,0060116046,OAKRAY LIMITED,112.00,01/11/2018
Commercial,Customer Support Group,Building Repairs & Maintenance,0060116047,OAKRAY LIMITED,128.00,01/11/2018
Commercial,Customer Support Group,Building Repairs & Maintenance,0060116050,OAKRAY LIMITED,96.00,01/11/2018
Commercial,Customer Support Group,Building Repairs & Maintenance,0060116062,OAKRAY LIMITED,96.00,01/11/2018
Commercial,Customer Support Group,Building Repairs & Maintenance,0060116073,OAKRAY LIMITED,108.00,01/11/2018
Commercial,Customer Support Group,Building Repairs & Maintenance,0060116304,OAKRAY LIMITED,270.00,16/11/2018
Commercial,Customer Support Group,Building Repairs & Maintenance,0060116823,OAKRAY LIMITED,207.88,29/11/2018
Commercial,Customer Support Group,Building Repairs & Maintenance,0060116824,OAKRAY LIMITED,80.00,29/11/2018
Commercial,Customer Support Group,Building Repairs & Maintenance,0060116830,OAKRAY LIMITED,"4,165.30",29/11/2018
Commercial,Customer Support Group,Building Repairs & Maintenance,0060116832,OAKRAY LIMITED,80.00,29/11/2018
Commercial,Customer Support Group,Building Repairs & Maintenance,0060116857,OAKRAY LIMITED,80.00,29/11/2018
Commercial,Customer Support Group,Building Repairs & Maintenance,0060116865,OAKRAY LIMITED,80.00,29/11/2018
Commercial,Customer Support Group,Building Repairs & Maintenance,0060117041,OAKRAY LIMITED,237.21,14/11/2018
Commercial,Customer Support Group,Building Repairs & Maintenance,0060117044,OAKRAY LIMITED,88.00,14/11/2018
Commercial,Customer Support Group,Building Repairs & Maintenance,0060117049,OAKRAY LIMITED,425.00,14/11/2018
Commercial,Customer Support Group,Building Repairs & Maintenance,0060117052,OAKRAY LIMITED,216.00,14/11/2018
Commercial,Customer Support Group,Building Repairs & Maintenance,0060117067,OAKRAY LIMITED,64.00,14/11/2018
Commercial,Customer Support Group,Building Repairs & Maintenance,0060117076,OAKRAY LIMITED,216.00,14/11/2018
Commercial,Customer Support Group,Building Repairs & Maintenance,0060117084,OAKRAY LIMITED,64.00,14/11/2018
Commercial,Customer Support Group,Building Repairs & Maintenance,0060117096,OAKRAY LIMITED,240.79,14/11/2018
Commercial,Customer Support Group,Building Repairs & Maintenance,0060117107,OAKRAY LIMITED,192.00,14/11/2018
Commercial,Customer Support Group,Building Repairs & Maintenance,0060118017,OAKRAY LIMITED,320.00,29/11/2018
Commercial,Customer Support Group,Building Repairs & Maintenance,0060118084,OAKRAY LIMITED,192.00,27/11/2018
Commercial,Customer Support Group,Building Repairs & Maintenance,0060118087,OAKRAY LIMITED,280.00,27/11/2018
Commercial,Customer Support Group,Building Repairs & Maintenance,0060118098,OAKRAY LIMITED,445.31,27/11/2018
Commercial,Customer Support Group,Building Repairs & Maintenance,0060118104,OAKRAY LIMITED,128.00,27/11/2018
Commercial,Customer Support Group,Building Repairs & Maintenance,0060113341,T.&.D.BARRS,127.84,19/11/2018
Commercial,Customer Support Group,Building Repairs & Maintenance,0060113346,T.&.D.BARRS,305.18,19/11/2018
Commercial,Customer Support Group,Building Repairs & Maintenance,0060113348,T.&.D.BARRS,84.12,19/11/2018
Commercial,Customer Support Group,Building Repairs & Maintenance,0060113368,T.&.D.BARRS,63.92,19/11/2018
Commercial,Customer Support Group,Building Repairs & Maintenance,0060113374,T.&.D.BARRS,63.92,19/11/2018
Commercial,Customer Support Group,Building Repairs & Maintenance,0060112421,WATES LIVING SPACE,143.37,14/11/2018
Commercial,Customer Support Group,Building Repairs & Maintenance,0060114000,WATES LIVING SPACE,53.44,27/11/2018
Commercial,Customer Support Group,Building Repairs & Maintenance,0060114465,WATES LIVING SPACE,113.86,27/11/2018
Commercial,Customer Support Group,Building Repairs & Maintenance,0060116835,WATES LIVING SPACE,89.72,29/11/2018
Commercial,Customer Support Group,Building Repairs & Maintenance,0060116885,WATES LIVING SPACE,231.63,29/11/2018
Commercial,Customer Support Group,Building Repairs & Maintenance,0060116892,WATES LIVING SPACE,40.02,29/11/2018
Commercial,Customer Support Group,Building Repairs & Maintenance,0060116903,WATES LIVING SPACE,150.80,29/11/2018
Commercial,Customer Support Group,Building Repairs & Maintenance,0060116915,WATES LIVING SPACE,34.74,29/11/2018
Commercial,Customer Support Group,Building Repairs & Maintenance,0060117248,WATES LIVING SPACE,71.25,29/11/2018
Commercial,Customer Support Group,Building Repairs & Maintenance,0060118180,WATES LIVING SPACE,89.06,27/11/2018
Commercial,Customer Support Group,Building Repairs & Maintenance,0060116204,AJS LTD,171.57,06/11/2018
Commercial,Customer Support Group,Building Repairs & Maintenance,0060116205,AJS LTD,24.51,06/11/2018
Commercial,Customer Support Group,Building Repairs & Maintenance,0060116212,AJS LTD,84.00,06/11/2018
Commercial,Customer Support Group,Building Repairs & Maintenance,0060116218,AJS LTD,80.53,06/11/2018
Commercial,Customer Support Group,Building Repairs & Maintenance,0060116221,AJS LTD,32.00,06/11/2018
Commercial,Customer Support Group,Building Repairs & Maintenance,0060116222,AJS LTD,114.80,06/11/2018
Commercial,Customer Support Group,Building Repairs & Maintenance,0060116234,AJS LTD,128.40,06/11/2018
Commercial,Customer Support Group,Building Repairs & Maintenance,0060116236,AJS LTD,32.00,06/11/2018
Commercial,Customer Support Group,Building Repairs & Maintenance,0060116248,AJS LTD,47.20,06/11/2018
Commercial,Customer Support Group,Building Repairs & Maintenance,0060116258,AJS LTD,172.80,06/11/2018
Commercial,Customer Support Group,Building Repairs & Maintenance,0060116263,AJS LTD,56.00,06/11/2018
Commercial,Customer Support Group,Building Repairs & Maintenance,0060117565,AJS LTD,96.00,20/11/2018
Commercial,Customer Support Group,Building Repairs & Maintenance,0060117604,AJS LTD,256.00,26/11/2018
Commercial,Customer Support Group,Building Repairs & Maintenance,0060117613,AJS LTD,38.94,20/11/2018
Commercial,Customer Support Group,Building Repairs & Maintenance,0060117614,AJS LTD,185.60,20/11/2018
Commercial,Customer Support Group,Building Repairs & Maintenance,0060117636,AJS LTD,96.00,20/11/2018
Commercial,Customer Support Group,Building Repairs & Maintenance,0060117649,AJS LTD,69.60,20/11/2018
Commercial,Customer Support Group,Building Repairs & Maintenance,0060118109,AJS LTD,32.00,27/11/2018
Commercial,Customer Support Group,Building Repairs & Maintenance,0060118123,AJS LTD,85.39,27/11/2018
Commercial,Customer Support Group,Building Repairs & Maintenance,0060118125,AJS LTD,180.79,27/11/2018
Commercial,Customer Support Group,Building Repairs & Maintenance,0060118127,AJS LTD,32.00,27/11/2018
Commercial,Customer Support Group,Building Repairs & Maintenance,0060118142,AJS LTD,64.00,27/11/2018
Commercial,Customer Support Group,Building Repairs & Maintenance,0060118148,AJS LTD,32.00,27/11/2018
Commercial,Customer Support Group,Building Repairs & Maintenance,0060118155,AJS LTD,181.38,27/11/2018
Commercial,Customer Support Group,Building Repairs & Maintenance,0060118177,AJS LTD,87.56,27/11/2018
Commercial,Customer Support Group,Building Repairs & Maintenance,0060118183,AJS LTD,68.46,27/11/2018
Commercial,Customer Support Group,Building Repairs & Maintenance,0060118188,AJS LTD,32.00,27/11/2018
Commercial,Customer Support Group,Building Repairs & Maintenance,0060118189,AJS LTD,140.81,27/11/2018
Commercial,Customer Support Group,Building Repairs & Maintenance,0060118193,AJS LTD,38.40,27/11/2018
Commercial,Customer Support Group,Building Repairs & Maintenance,0060118203,AJS LTD,101.04,27/11/2018
Commercial,Customer Support Group,Building Repairs & Maintenance,0060118230,AJS LTD,91.42,27/11/2018
Commercial,Customer Support Group,Building Repairs & Maintenance,0060118243,AJS LTD,64.00,27/11/2018
Commercial,Customer Support Group,Building Repairs & Maintenance,0060118253,AJS LTD,343.41,29/11/2018
Commercial,Customer Support Group,Building Repairs & Maintenance,0060114453,S W BRUCE & CO LTD,"25,128.00",26/11/2018
Commercial,Customer Support Group,Building Repairs & Maintenance,0060115090,S W BRUCE & CO LTD,183.48,08/11/2018
Commercial,Customer Support Group,Building Repairs & Maintenance,0060115101,S W BRUCE & CO LTD,93.15,08/11/2018
Commercial,Customer Support Group,Building Repairs & Maintenance,0060115106,S W BRUCE & CO LTD,101.70,08/11/2018
Commercial,Customer Support Group,Building Repairs & Maintenance,0060115134,S W BRUCE & CO LTD,448.34,08/11/2018
Commercial,Customer Support Group,Building Repairs & Maintenance,0060115165,S W BRUCE & CO LTD,180.58,08/11/2018
Commercial,Customer Support Group,Building Repairs & Maintenance,0060115168,S W BRUCE & CO LTD,82.98,08/11/2018
Commercial,Customer Support Group,Building Repairs & Maintenance,0060115170,S W BRUCE & CO LTD,584.55,08/11/2018
Commercial,Customer Support Group,Building Repairs & Maintenance,0060115172,S W BRUCE & CO LTD,114.42,08/11/2018
Commercial,Customer Support Group,Building Repairs & Maintenance,0060115190,S W BRUCE & CO LTD,68.78,08/11/2018
Commercial,Customer Support Group,Building Repairs & Maintenance,0060115212,S W BRUCE & CO LTD,57.00,08/11/2018
Commercial,Customer Support Group,Building Repairs & Maintenance,0060115303,S W BRUCE & CO LTD,129.59,13/11/2018
Commercial,Customer Support Group,Building Repairs & Maintenance,0060115304,S W BRUCE & CO LTD,169.33,13/11/2018
Commercial,Customer Support Group,Building Repairs & Maintenance,0060115311,S W BRUCE & CO LTD,202.76,13/11/2018
Commercial,Customer Support Group,Building Repairs & Maintenance,0060115316,S W BRUCE & CO LTD,102.97,13/11/2018
Commercial,Customer Support Group,Building Repairs & Maintenance,0060115321,S W BRUCE & CO LTD,119.07,13/11/2018
Commercial,Customer Support Group,Building Repairs & Maintenance,0060115323,S W BRUCE & CO LTD,186.71,13/11/2018
Commercial,Customer Support Group,Building Repairs & Maintenance,0060115335,S W BRUCE & CO LTD,434.48,13/11/2018
Commercial,Customer Support Group,Building Repairs & Maintenance,0060115342,S W BRUCE & CO LTD,107.59,13/11/2018
Commercial,Customer Support Group,Building Repairs & Maintenance,0060115349,S W BRUCE & CO LTD,25.00,13/11/2018
Commercial,Customer Support Group,Building Repairs & Maintenance,0060115366,S W BRUCE & CO LTD,112.95,13/11/2018
Commercial,Customer Support Group,Building Repairs & Maintenance,0060115373,S W BRUCE & CO LTD,103.45,13/11/2018
Commercial,Customer Support Group,Building Repairs & Maintenance,0060115378,S W BRUCE & CO LTD,57.00,13/11/2018
Commercial,Customer Support Group,Building Repairs & Maintenance,0060115398,S W BRUCE & CO LTD,82.50,13/11/2018
Commercial,Customer Support Group,Building Repairs & Maintenance,0060115403,S W BRUCE & CO LTD,57.00,13/11/2018
Commercial,Customer Support Group,Building Repairs & Maintenance,0060116529,S W BRUCE & CO LTD,467.00,06/11/2018
Commercial,Customer Support Group,Building Repairs & Maintenance,0010014391,NORTH LONDON CATERING EQUIPMENT,138.95,02/11/2018
Commercial,Customer Support Group,Building Repairs & Maintenance,0060117121,NORTH LONDON CATERING EQUIPMENT,230.00,15/11/2018
Commercial,Customer Support Group,Building Repairs & Maintenance,0060117143,NORTH LONDON CATERING EQUIPMENT,517.00,15/11/2018
Commercial,Customer Support Group,Building Repairs & Maintenance,0060115544,PICKERINGS LIFTS LTD,138.00,16/11/2018
Commercial,Customer Support Group,Building Repairs & Maintenance,0060115569,PICKERINGS LIFTS LTD,186.30,16/11/2018
Commercial,Customer Support Group,Building Repairs & Maintenance,0060115683,PICKERINGS LIFTS LTD,267.00,16/11/2018
Commercial,Customer Support Group,Building Repairs & Maintenance,0060117695,PICKERINGS LIFTS LTD,150.00,20/11/2018
Commercial,Customer Support Group,Building Repairs & Maintenance,0060117717,PICKERINGS LIFTS LTD,"1,661.46",21/11/2018
Commercial,Customer Support Group,Building Repairs & Maintenance,0060117732,PICKERINGS LIFTS LTD,195.00,21/11/2018
Commercial,Customer Support Group,Building Repairs & Maintenance,0060117756,PICKERINGS LIFTS LTD,135.00,21/11/2018
Commercial,Customer Support Group,Building Repairs & Maintenance,0060117792,PICKERINGS LIFTS LTD,300.00,26/11/2018
Commercial,Customer Support Group,Building Repairs & Maintenance,0060117806,PICKERINGS LIFTS LTD,135.00,22/11/2018
Commercial,Customer Support Group,Building Repairs & Maintenance,0060117818,PICKERINGS LIFTS LTD,135.00,22/11/2018
Commercial,Customer Support Group,Building Repairs & Maintenance,0060117822,PICKERINGS LIFTS LTD,135.00,22/11/2018
Commercial,Customer Support Group,Building Repairs & Maintenance,0060117863,PICKERINGS LIFTS LTD,167.10,22/11/2018
Commercial,Customer Support Group,Building Repairs & Maintenance,0060113330,FRONTIER-PITTS LTD,460.53,05/11/2018
Commercial,Customer Support Group,Building Repairs & Maintenance,0060116284,EVAC & CHAIR INTERNATIONAL LTD,90.00,27/11/2018
Commercial,Customer Support Group,Building Repairs & Maintenance,0060116300,EVAC & CHAIR INTERNATIONAL LTD,145.00,27/11/2018
Commercial,Customer Support Group,Building Repairs & Maintenance,0060116309,EVAC & CHAIR INTERNATIONAL LTD,90.00,27/11/2018
Commercial,Customer Support Group,Building Repairs & Maintenance,0060116570,O KAN,985.00,06/11/2018
Commercial,Customer Support Group,Building Repairs & Maintenance,0060117886,DOORWAY-MAINTENANCE CO.,120.00,26/11/2018
Commercial,Customer Support Group,Building Repairs & Maintenance,0060117918,DOORWAY-MAINTENANCE CO.,340.00,26/11/2018
Commercial,Customer Support Group,Building Repairs & Maintenance,0060117928,DOORWAY-MAINTENANCE CO.,461.20,26/11/2018
Commercial,Customer Support Group,Other Services,0060117043,BLUE 9 SECURITY LIMITED,"11,584.08",14/11/2018
Commercial,Customer Support Group,Other Services,0060117048,BLUE 9 SECURITY LIMITED,108.80,14/11/2018
Commercial,Customer Support Group,Other Services,0060117082,BLUE 9 SECURITY LIMITED,451.53,14/11/2018
Commercial,Customer Support Group,Other Services,0060117088,BLUE 9 SECURITY LIMITED,"9,941.45",14/11/2018
Commercial,Customer Support Group,Other Services,0060117100,BLUE 9 SECURITY LIMITED,"1,058.00",14/11/2018
Commercial,Customer Support Group,Equipment and Materials Purcha,0060116433,OCS GROUP UK LIMITED,"2,658.00",22/11/2018
Commercial,Customer Support Group,Equipment and Materials Purcha,0060116528,OCS GROUP UK LIMITED,"5,267.00",22/11/2018
Commercial,Customer Support Group,Equipment and Materials Purcha,0060116564,OCS GROUP UK LIMITED,"2,658.00",22/11/2018
Commercial,Customer Support Group,Professional Services,0080021017,FAIRWAY CHILDREN CENTRE,"4,069.78",23/11/2018
Commercial,Customer Support Group,Building Repairs & Maintenance,0060115825,S W BRUCE & CO LTD,"21,392.33",16/11/2018
Commercial,Customer Support Group,Building Repairs & Maintenance,0060116490,S W BRUCE & CO LTD,"7,130.77",26/11/2018
Commercial,Customer Support Group,Building Repairs & Maintenance,0060117186,ADAMS ENVIRONMENTAL LTD,750.00,29/11/2018
Commercial,Customer Support Group,Building Repairs & Maintenance,0060115057,RAYTELL ELECTRICAL CO. LTD,"68,201.03",01/11/2018
Commercial,Customer Support Group,Building Repairs & Maintenance,0010014483,S W BRUCE & CO LTD,"225,286.66",29/11/2018
Commercial,Customer Support Group,Building Repairs & Maintenance,0010014416,BARTLETT TREE EXPERTS,850.00,07/11/2018
Commercial,Customer Support Group,Building Repairs & Maintenance,0010014417,BARTLETT TREE EXPERTS,650.00,07/11/2018
Commercial,Green Spaces,Building Repairs & Maintenance,0060115314,OAKRAY LIMITED,123.75,08/11/2018
Commercial,Green Spaces,Building Repairs & Maintenance,0060115332,OAKRAY LIMITED,277.50,08/11/2018
Commercial,Green Spaces,Building Repairs & Maintenance,0060115368,OAKRAY LIMITED,150.00,08/11/2018
Commercial,Green Spaces,Building Repairs & Maintenance,0060114897,BARNET LOCK CENTRE LTD.,243.12,21/11/2018
Commercial,Green Spaces,Building Repairs & Maintenance,0060117224,BARNET LOCK CENTRE LTD.,106.26,15/11/2018
Commercial,Green Spaces,Building Repairs & Maintenance,0060117252,BARNET LOCK CENTRE LTD.,267.00,15/11/2018
Commercial,Green Spaces,Building Repairs & Maintenance,0060117739,BARNET LOCK CENTRE LTD.,"1,879.88",22/11/2018
Commercial,Green Spaces,Equipment and Materials Purcha,0060115753,HAGS PLAY LTD,606.40,13/11/2018
Commercial,Green Spaces,Equipment and Materials Purcha,0060117747,HAGS PLAY LTD,"32,000.00",29/11/2018
Commercial,Green Spaces,Electricity,0010014447,KENT COUNTY COUNCIL (KCS),20.68,14/11/2018
Commercial,Green Spaces,Electricity,0010014500,KENT COUNTY COUNCIL (KCS),68.44,29/11/2018
Commercial,Green Spaces,Electricity,0060101489,KENT COUNTY COUNCIL (KCS),222.11,07/11/2018
Commercial,Green Spaces,Electricity,0060101509,KENT COUNTY COUNCIL (KCS),17.94,21/11/2018
Commercial,Green Spaces,Electricity,0060101585,KENT COUNTY COUNCIL (KCS),93.43,23/11/2018
Commercial,Green Spaces,Electricity,0060101597,KENT COUNTY COUNCIL (KCS),23.25,01/11/2018
Commercial,Green Spaces,Electricity,0060101608,KENT COUNTY COUNCIL (KCS),21.38,14/11/2018
Commercial,Green Spaces,Electricity,0060101609,KENT COUNTY COUNCIL (KCS),24.07,07/11/2018
Commercial,Green Spaces,Electricity,0060108531,KENT COUNTY COUNCIL (KCS),132.19,07/11/2018
Commercial,Green Spaces,Electricity,0060110318,KENT COUNTY COUNCIL (KCS),74.40,21/11/2018
Commercial,Green Spaces,Gas,0060110469,KENT COUNTY COUNCIL (KCS),41.23,01/11/2018
Commercial,Green Spaces,Electricity,0060114123,KENT COUNTY COUNCIL (KCS),859.23,21/11/2018
Commercial,Green Spaces,Electricity,0060114132,KENT COUNTY COUNCIL (KCS),33.53,21/11/2018
Commercial,Green Spaces,Electricity,0060116093,KENT COUNTY COUNCIL (KCS),376.45,16/11/2018
Commercial,Green Spaces,Electricity,0060116113,KENT COUNTY COUNCIL (KCS),"2,367.94",16/11/2018
Commercial,Green Spaces,Electricity,0060116127,KENT COUNTY COUNCIL (KCS),385.63,16/11/2018
Commercial,Green Spaces,Electricity,0060116128,KENT COUNTY COUNCIL (KCS),"1,583.21",16/11/2018
Commercial,Green Spaces,Electricity,0060116132,KENT COUNTY COUNCIL (KCS),559.56,16/11/2018
Commercial,Green Spaces,Electricity,0060116215,KENT COUNTY COUNCIL (KCS),22.46,29/11/2018
Commercial,Green Spaces,Electricity,0060116219,KENT COUNTY COUNCIL (KCS),13.94,29/11/2018
Commercial,Green Spaces,Electricity,0060116256,KENT COUNTY COUNCIL (KCS),470.92,06/11/2018
Commercial,Green Spaces,Gas,0060116269,KENT COUNTY COUNCIL (KCS),357.16,16/11/2018
Commercial,Green Spaces,Electricity,0060116606,KENT COUNTY COUNCIL (KCS),280.12,07/11/2018
Commercial,Green Spaces,Electricity,0060116612,KENT COUNTY COUNCIL (KCS),"1,985.99",07/11/2018
Commercial,Green Spaces,Electricity,0060116641,KENT COUNTY COUNCIL (KCS),327.32,07/11/2018
Commercial,Green Spaces,Gas,0060116656,KENT COUNTY COUNCIL (KCS),201.87,07/11/2018
Commercial,Green Spaces,Gas,0060116667,KENT COUNTY COUNCIL (KCS),36.83,30/11/2018
Commercial,Green Spaces,Electricity,0060116801,KENT COUNTY COUNCIL (KCS),398.65,07/11/2018
Commercial,Green Spaces,Gas,0060116818,KENT COUNTY COUNCIL (KCS),99.52,29/11/2018
Commercial,Green Spaces,Electricity,0060117764,KENT COUNTY COUNCIL (KCS),242.61,30/11/2018
Commercial,Green Spaces,Grounds maintenance,0010014444,COUNTRYSIDE CONTRACTS,"5,846.43",13/11/2018
Commercial,Green Spaces,Other Services,0060116185,COUNTRYSIDE CONTRACTS,700.00,02/11/2018
Commercial,Green Spaces,Grounds maintenance,0060117268,COUNTRYSIDE CONTRACTS,250.00,15/11/2018
Commercial,Green Spaces,Grounds maintenance,0060117595,COUNTRYSIDE CONTRACTS,250.00,20/11/2018
Commercial,Green Spaces,Other Services,0060115246,RM COUNTRYSIDE SERVICES LTD,171.00,06/11/2018
Commercial,Green Spaces,Other Services,0060115248,RM COUNTRYSIDE SERVICES LTD,185.00,06/11/2018
Commercial,Green Spaces,Other Services,0060116340,RM COUNTRYSIDE SERVICES LTD,"2,130.00",12/11/2018
Commercial,Green Spaces,Other Services,0060116473,RM COUNTRYSIDE SERVICES LTD,"12,124.00",12/11/2018
Commercial,Green Spaces,Other Services,0060116607,RM COUNTRYSIDE SERVICES LTD,"3,084.00",16/11/2018
Commercial,Green Spaces,Other Services,0060117187,RM COUNTRYSIDE SERVICES LTD,556.00,16/11/2018
Commercial,Green Spaces,Other Services,0060117236,RM COUNTRYSIDE SERVICES LTD,462.00,15/11/2018
Commercial,Green Spaces,Other Services,0060117255,RM COUNTRYSIDE SERVICES LTD,105.00,15/11/2018
Commercial,Green Spaces,Other Services,0060117379,RM COUNTRYSIDE SERVICES LTD,"1,863.00",22/11/2018
Commercial,Green Spaces,Other Services,0060117571,RM COUNTRYSIDE SERVICES LTD,"3,648.00",22/11/2018
Commercial,Green Spaces,Grounds maintenance,0060115807,BUSH WHEELER SERVICES LIMITED,"1,100.00",01/11/2018
Commercial,Green Spaces,Grounds maintenance,0060116209,BUSH WHEELER SERVICES LIMITED,"1,577.00",06/11/2018
Commercial,Green Spaces,Grounds maintenance,0060117699,BUSH WHEELER SERVICES LIMITED,"1,250.00",20/11/2018
Commercial,Green Spaces,Equipment and Materials Purcha,0060116273,TREVOR ILES LTD,"6,950.00",15/11/2018
Commercial,Green Spaces,Gas,0080020819,BRITISH GAS BUSINESS,6.66,12/11/2018
Commercial,Green Spaces,Cleaning and domestic material,0060116693,CHURCHILL CONTRACT SERVICES,498.75,07/11/2018
Commercial,Green Spaces,Water Services,0010014450,AFFINITY WATER LIMITED,700.29,15/11/2018
Commercial,Green Spaces,Water Services,0010014451,AFFINITY WATER LIMITED,796.60,15/11/2018
Commercial,Green Spaces,Water Services,0010014489,AFFINITY WATER LIMITED,21.30,29/11/2018
Commercial,Green Spaces,Water Services,0010014490,AFFINITY WATER LIMITED,21.30,29/11/2018
Commercial,Green Spaces,Water Services,0060112541,AFFINITY WATER LIMITED,550.17,21/11/2018
Commercial,Green Spaces,Water Services,0060112570,AFFINITY WATER LIMITED,"2,230.14",07/11/2018
Commercial,Green Spaces,Water Services,0060112697,AFFINITY WATER LIMITED,"1,418.98",07/11/2018
Commercial,Green Spaces,Water Services,0060113322,AFFINITY WATER LIMITED,"1,837.22",21/11/2018
Commercial,Green Spaces,Water Services,0060115690,AFFINITY WATER LIMITED,588.28,19/11/2018
Commercial,Green Spaces,Water Services,0080021080,AFFINITY WATER LIMITED,50.00,23/11/2018
Commercial,Green Spaces,Water Services,0080021132,AFFINITY WATER LIMITED,462.09,23/11/2018
Commercial,Green Spaces,Building Repairs & Maintenance,0060116525,CONTACT ROLLER SHUTTERS LTD,220.00,21/11/2018
Commercial,Green Spaces,Advertising,0060117424,TMP (UK) LTD,112.00,29/11/2018
Commercial,Green Spaces,Building Repairs & Maintenance,0060116275,BIRLEM LTD,"1,153.80",15/11/2018
Commercial,Green Spaces,Building Repairs & Maintenance,0060112411,WATES LIVING SPACE,"4,150.32",14/11/2018
Commercial,Green Spaces,Building Repairs & Maintenance,0060114644,WATES LIVING SPACE,156.50,26/11/2018
Commercial,Green Spaces,Building Repairs & Maintenance,0060115867,WATES LIVING SPACE,133.19,23/11/2018
Commercial,Green Spaces,Building Repairs & Maintenance,0060115896,WATES LIVING SPACE,255.01,21/11/2018
Commercial,Green Spaces,Building Repairs & Maintenance,0060115920,WATES LIVING SPACE,46.10,26/11/2018
Commercial,Green Spaces,Building Repairs & Maintenance,0060115959,WATES LIVING SPACE,73.74,23/11/2018
Commercial,Green Spaces,Building Repairs & Maintenance,0060115967,WATES LIVING SPACE,592.72,26/11/2018
Commercial,Green Spaces,Building Repairs & Maintenance,0060116861,WATES LIVING SPACE,104.69,29/11/2018
Commercial,Green Spaces,Building Repairs & Maintenance,0060116883,WATES LIVING SPACE,39.72,29/11/2018
Commercial,Green Spaces,Building Repairs & Maintenance,0060116908,WATES LIVING SPACE,86.96,29/11/2018
Commercial,Green Spaces,Building Repairs & Maintenance,0060116924,WATES LIVING SPACE,65.65,26/11/2018
Commercial,Green Spaces,Building Repairs & Maintenance,0060116937,WATES LIVING SPACE,230.35,26/11/2018
Commercial,Green Spaces,Building Repairs & Maintenance,0060112713,S W BRUCE & CO LTD,"8,521.36",26/11/2018
Commercial,Green Spaces,Building Repairs & Maintenance,0060115226,S W BRUCE & CO LTD,54.79,08/11/2018
Commercial,Green Spaces,Building Repairs & Maintenance,0060115253,S W BRUCE & CO LTD,80.92,08/11/2018
Commercial,Green Spaces,Building Repairs & Maintenance,0060115257,S W BRUCE & CO LTD,98.20,08/11/2018
Commercial,Green Spaces,Building Repairs & Maintenance,0060115830,S W BRUCE & CO LTD,"1,239.70",12/11/2018
Commercial,Green Spaces,Other Services,0060116562,S W BRUCE & CO LTD,390.00,06/11/2018
Commercial,Green Spaces,Grounds maintenance,0060115855,GROUNDWORK LONDON,"2,093.00",08/11/2018
Commercial,Green Spaces,Water Services,0010014446,CASTLE WATER LTD,76.06,14/11/2018
Commercial,Green Spaces,Water Services,0060113509,CASTLE WATER LTD,26.87,15/11/2018
Commercial,Green Spaces,Water Services,0060114594,CASTLE WATER LTD,157.59,23/11/2018
Commercial,Green Spaces,Water Services,0060114678,CASTLE WATER LTD,38.75,06/11/2018
Commercial,Green Spaces,Water Services,0060115460,CASTLE WATER LTD,140.11,07/11/2018
Commercial,Green Spaces,Water Services,0060115518,CASTLE WATER LTD,215.05,16/11/2018
Commercial,Green Spaces,Water Services,0060115553,CASTLE WATER LTD,211.87,07/11/2018
Commercial,Green Spaces,Water Services,0060115600,CASTLE WATER LTD,138.17,07/11/2018
Commercial,Green Spaces,Water Services,0060115649,CASTLE WATER LTD,432.95,07/11/2018
Commercial,Green Spaces,Water Services,0060115667,CASTLE WATER LTD,"1,668.93",07/11/2018
Commercial,Green Spaces,Water Services,0060115677,CASTLE WATER LTD,76.92,15/11/2018
Commercial,Green Spaces,Water Services,0060115718,CASTLE WATER LTD,133.57,07/11/2018
Commercial,Green Spaces,Water Services,0060117464,CASTLE WATER LTD,18.53,21/11/2018
Commercial,Green Spaces,Water Services,0060117511,CASTLE WATER LTD,267.41,21/11/2018
Commercial,Green Spaces,Water Services,0060117515,CASTLE WATER LTD,115.84,21/11/2018
Commercial,Green Spaces,Water Services,0060117533,CASTLE WATER LTD,101.91,21/11/2018
Commercial,Green Spaces,Water Services,0060117611,CASTLE WATER LTD,35.64,30/11/2018
Commercial,Green Spaces,Water Services,0060117941,CASTLE WATER LTD,133.33,29/11/2018
Commercial,Green Spaces,Water Services,0060117990,CASTLE WATER LTD,46.74,29/11/2018
Commercial,Green Spaces,Water Services,0060118009,CASTLE WATER LTD,29.77,29/11/2018
Commercial,Green Spaces,Water Services,0060118117,CASTLE WATER LTD,60.92,30/11/2018
Commercial,Green Spaces,Water Services,0080020645,CASTLE WATER LTD,36.41,02/11/2018
Commercial,Green Spaces,Water Services,0080020773,CASTLE WATER LTD,738.28,08/11/2018
Commercial,Green Spaces,Water Services,0080020979,CASTLE WATER LTD,97.79,21/11/2018
Commercial,Green Spaces,Building Repairs & Maintenance,0010014419,THAMES LABORATORIES,110.00,07/11/2018
Commercial,Green Spaces,Building Repairs & Maintenance,0020040009,THAMES LABORATORIES,135.00,08/11/2018
Commercial,Green Spaces,Building Repairs & Maintenance,0020040010,THAMES LABORATORIES,195.00,08/11/2018
Commercial,Green Spaces,Building Repairs & Maintenance,0060115421,THAMES LABORATORIES,120.00,07/11/2018
Commercial,Green Spaces,Building Repairs & Maintenance,0060115436,THAMES LABORATORIES,90.00,08/11/2018
Commercial,Green Spaces,Building Repairs & Maintenance,0060115639,THAMES LABORATORIES,90.00,01/11/2018
Commercial,Green Spaces,Building Repairs & Maintenance,0060115671,THAMES LABORATORIES,298.00,01/11/2018
Commercial,Green Spaces,Building Repairs & Maintenance,0060115688,THAMES LABORATORIES,100.00,01/11/2018
Commercial,Green Spaces,Building Repairs & Maintenance,0060115691,THAMES LABORATORIES,90.00,01/11/2018
Commercial,Green Spaces,Building Repairs & Maintenance,0060115696,THAMES LABORATORIES,120.00,01/11/2018
Commercial,Green Spaces,Lettings,0080020978,WOODSIDE PARK CLUB,157.34,16/11/2018
Commercial,Green Spaces,Equipment and Materials Purcha,0060114747,IRIS GARDENING SERVICES LTD,975.00,19/11/2018
Commercial,Green Spaces,Grounds maintenance,0060116162,IRIS GARDENING SERVICES LTD,"1,657.70",02/11/2018
Commercial,Green Spaces,Grant Payments,0060115430,LONDON PARKS & GREEN SPACES FORUM,"4,500.00",22/11/2018
Commercial,Green Spaces,Grounds maintenance,0060117369,BOURNE AMENITY LTD,882.00,29/11/2018
Commercial,Green Spaces,Other Services,0060116435,TAYLORMADE CASTINGS LTD,437.50,21/11/2018
Commercial,Green Spaces,Equipment and Materials Purcha,0060117793,PETTITT SPORTS,"1,660.00",21/11/2018
Commercial,Green Spaces,Grounds maintenance,0060118338,GLENDALE COUNTRYSIDE LTD,"2,961.97",30/11/2018
Commercial,Green Spaces,Grounds maintenance,0060118349,GLENDALE COUNTRYSIDE LTD,"2,982.20",30/11/2018
Commercial,Green Spaces,Grounds maintenance,0060118353,GLENDALE COUNTRYSIDE LTD,"2,778.96",30/11/2018
Commercial,Green Spaces,Grounds maintenance,0060114611,GLENDALE COUNTRYSIDE LTD,"1,217.41",08/11/2018
Commercial,Green Spaces,Grounds maintenance,0060116307,GLENDALE COUNTRYSIDE LTD,267.47,08/11/2018
Commercial,Green Spaces,Grounds maintenance,0060118327,GLENDALE COUNTRYSIDE LTD,"2,743.93",29/11/2018
Commercial,Green Spaces,Grounds maintenance,0060118340,GLENDALE COUNTRYSIDE LTD,"2,905.82",29/11/2018
Commercial,Green Spaces,Grounds maintenance,0060118351,GLENDALE COUNTRYSIDE LTD,"3,713.10",30/11/2018
Commercial,Green Spaces,Grounds maintenance,0060118281,GRISTWOOD & TOM LTD,"8,315.50",29/11/2018
Commercial,HB LAW,Professional Services,0060117494,LONDON BOROUGH OF HARROW,"459,900.92",23/11/2018
Commercial,Housing Needs Resources,Other Services,0060116308,PRIORITY ESTATES PROJECT LTD,"1,955.80",08/11/2018
Commercial,Housing Needs Resources,Other Services,0060116347,PRIORITY ESTATES PROJECT LTD,"2,933.70",08/11/2018
Commercial,Housing Needs Resources,Grant Payments,0060116351,LONDON BOROUGH OF ISLINGTON,"418,159.19",06/11/2018
COMMERCIAL,HOUSING NEEDS RESOURCES,Grant Payments,0080020710,ARTHUR J. FERRYMAN ASSOCIATES,"2,400.00",13/11/2018
COMMERCIAL,HOUSING NEEDS RESOURCES,Grant Payments,0080020709,AMWELL CONSTRUCTION LTD,"4,980.57",13/11/2018
COMMERCIAL,HOUSING NEEDS RESOURCES,Grant Payments,0080021089,REDACTED - PERSONAL DATA,"10,200.00",26/11/2018
Commercial,HRA,Consultants Fees,0010014437,P P C R ASSOCIATES LTD,367.01,12/11/2018
Commercial,HRA,Consultants Fees,0060116135,THE BARNETGROUP LIMITED,670.00,05/11/2018
Commercial,HRA,Consultants Fees,0060116156,THE BARNETGROUP LIMITED,433.00,05/11/2018
Commercial,HRA,Electricity,0060114933,E-ON ENERGY,26.09,26/11/2018
Commercial,HRA,Private Contractors - Third Pa,0020040001,REDACTED - PERSONAL DATA,"1,125.28",02/11/2018
Commercial,HRA,Private Contractors - Third Pa,0020040004,REDACTED - PERSONAL DATA,"1,500.00",07/11/2018
Commercial,HRA,Private Contractors - Third Pa,0020040005,REDACTED - PERSONAL DATA,"1,416.64",07/11/2018
Commercial,HRA,Private Contractors - Third Pa,0020040655,REDACTED - PERSONAL DATA,"1,500.00",29/11/2018
Commercial,HRA,Consultants Fees,0060116193,THE BARNETGROUP LIMITED,"12,200.00",14/11/2018
Commercial,HRA,Private Contractors - Third Pa,0080020892,REDACTED - PERSONAL DATA,"3,500.00",19/11/2018
Commercial,Parking & Infrastructure,Equipment and Materials Purcha,0060117144,BARNET LOCK CENTRE LTD.,54.25,15/11/2018
Commercial,Parking & Infrastructure,Equipment and Materials Purcha,0060117145,BARNET LOCK CENTRE LTD.,7.75,15/11/2018
Commercial,Parking & Infrastructure,Equipment and Materials Purcha,0010014374,GREENHAM TRADING LIMITED,12.77,05/11/2018
Commercial,Parking & Infrastructure,Equipment and Materials Purcha,0060114942,GREENHAM TRADING LIMITED,119.14,06/11/2018
Commercial,Parking & Infrastructure,Training,0060117547,SKILLS TRAINING CENTRE LTD,"1,310.00",21/11/2018
Commercial,Parking & Infrastructure,Equipment and Materials Purcha,0060116950,W. FAYERS & SONS,218.94,09/11/2018
Commercial,Parking & Infrastructure,Equipment and Materials Purcha,0060118354,W. FAYERS & SONS,291.92,30/11/2018
Commercial,Parking & Infrastructure,Equipment and Materials Purcha,0060114864,RENNICK UK LTD,"4,000.00",06/11/2018
Commercial,Parking & Infrastructure,Equipment and Materials Purcha,0060114924,LAFARGE TARMAC TRADING LIMITED,134.03,08/11/2018
Commercial,Parking & Infrastructure,Equipment and Materials Purcha,0060115272,LAFARGE TARMAC TRADING LIMITED,125.78,07/11/2018
Commercial,Parking & Infrastructure,Equipment and Materials Purcha,0060115550,LAFARGE TARMAC TRADING LIMITED,96.91,16/11/2018
Commercial,Parking & Infrastructure,Equipment and Materials Purcha,0060115565,LAFARGE TARMAC TRADING LIMITED,197.95,16/11/2018
Commercial,Parking & Infrastructure,Equipment and Materials Purcha,0060115609,LAFARGE TARMAC TRADING LIMITED,134.03,16/11/2018
Commercial,Parking & Infrastructure,Equipment and Materials Purcha,0060116305,LAFARGE TARMAC TRADING LIMITED,94.85,20/11/2018
Commercial,Parking & Infrastructure,Equipment and Materials Purcha,0060116583,LAFARGE TARMAC TRADING LIMITED,282.49,07/11/2018
Commercial,Parking & Infrastructure,Equipment and Materials Purcha,0060116746,LAFARGE TARMAC TRADING LIMITED,96.91,27/11/2018
Commercial,Parking & Infrastructure,Equipment and Materials Purcha,0060116634,KB INDUSTRIES UK LTD,"7,026.00",27/11/2018
Commercial,Parking & Infrastructure,Equipment and Materials Purcha,0060116289,CONSTRUCTION & CLADDING SERVICES LTD,"1,200.00",20/11/2018
Commercial,Parking & Infrastructure,Equipment and Materials Purcha,0060114619,METDESK LTD,"4,997.40",01/11/2018
Commercial,Parking & Infrastructure,Equipment and Materials Purcha,0060115711,COMPASS MINERALS,"2,580.49",13/11/2018
Commercial,Parking & Infrastructure,Equipment and Materials Purcha,0060116288,COMPASS MINERALS,"1,296.22",20/11/2018
Commercial,Parking & Infrastructure,Advertising,0060116914,GOOD IMPRESSIONS (LONDON) LIMITED,240.00,29/11/2018
Commercial,Parking & Infrastructure,Other Services,0060114953,LONDON COUNCILS,"18,840.00",06/11/2018
Commercial,Parking & Infrastructure,Professional Services,0060113039,NSL LTD,108.00,19/11/2018
Commercial,Parking & Infrastructure,Miscellaneous Expenses,0060113923,NSL LTD,"1,235.40",19/11/2018
Commercial,Parking & Infrastructure,Software Licences & Support,0060117888,NSL LTD,"8,700.34",26/11/2018
Commercial,Parking & Infrastructure,Other Services,0060117900,NSL LTD,"1,917.30",26/11/2018
Commercial,Parking & Infrastructure,Agency/Interim Hays,0010014470,MATCHTECH GROUP UK LTD,"1,840.00",21/11/2018
Commercial,Parking & Infrastructure,Agency/Interim Hays,0060117286,MATCHTECH GROUP UK LTD,"1,380.00",19/11/2018
Commercial,Parking & Infrastructure,Agency/Interim Hays,0060117308,MATCHTECH GROUP UK LTD,690.00,16/11/2018
Commercial,Parking & Infrastructure,Agency/Interim Hays,0060117320,MATCHTECH GROUP UK LTD,"1,840.00",19/11/2018
Commercial,Parking & Infrastructure,Agency/Interim Hays,0060117331,MATCHTECH GROUP UK LTD,"1,955.00",19/11/2018
Commercial,Parking & Infrastructure,Agency/Interim Hays,0060117361,MATCHTECH GROUP UK LTD,"2,300.00",19/11/2018
Commercial,Parking & Infrastructure,Agency/Interim Hays,0060117446,MATCHTECH GROUP UK LTD,"2,300.00",21/11/2018
Commercial,Parking & Infrastructure,Agency/Interim Hays,0060117580,MATCHTECH GROUP UK LTD,"1,750.00",29/11/2018
Commercial,Parking & Infrastructure,Agency/Interim Hays,0060117630,MATCHTECH GROUP UK LTD,"1,750.00",21/11/2018
Commercial,Parking & Infrastructure,Agency/Interim Hays,0060117662,MATCHTECH GROUP UK LTD,"1,750.00",29/11/2018
Commercial,Parking & Infrastructure,General Sales,0060116701,BARNET LIGHTING SERVICES LTD,"1,382.08",30/11/2018
Commercial,Public Health,Equipment and Materials Purcha,0080020825,MJF OFFICE,522.56,20/11/2018
Commercial,Public Health,Other Establishments - Third P,0010014482,SILVER STAR DIABETES,"2,000.00",26/11/2018
Commercial,Public Health,Consultants Fees,0060117247,FIONA BIOLETTI COACHING & TEAM FACILIATI,"21,900.00",21/11/2018
Commercial,Public Health,Consultants Fees,0010014421,TERAPIA,532.50,15/11/2018
Commercial,Public Health,Health authorities - Third Par,0060117975,CENTRAL LONDONCOMMUNITY HEALTHCARE,"384,000.00",29/11/2018
Commercial,Public Health,Health authorities - Third Par,0060115309,CENTRAL LONDONCOMMUNITY HEALTHCARE,"86,448.00",01/11/2018
Commercial,Public Health,Health authorities - Third Par,0060117988,CENTRAL LONDONCOMMUNITY HEALTHCARE,"86,448.00",29/11/2018
Commercial,Public Health,Health authorities - Third Par,0060114262,CENTRAL LONDONCOMMUNITY HEALTHCARE,"3,101.00",07/11/2018
Commercial,Public Health,Health authorities - Third Par,0060116186,CENTRAL LONDONCOMMUNITY HEALTHCARE,"2,292.00",07/11/2018
Commercial,Public Health,Health authorities - Third Par,0060113686,NHS BARNET CCG,165.28,01/11/2018
Commercial,Public Health,Health authorities - Third Par,0060116990,CENTRAL & NORTH WEST LONDON NHS FT,"2,537.03",19/11/2018
Commercial,Public Health,Health authorities - Third Par,0060117023,CENTRAL & NORTH WEST LONDON NHS FT,"142,415.15",19/11/2018
Commercial,Public Health,Health authorities - Third Par,0060117321,CENTRAL & NORTH WEST LONDON NHS FT,"11,500.00",16/11/2018
Commercial,Public Health,Health authorities - Third Par,0060117128,LONDON NORTH WEST HEALTHCARE NHS TRUST,"13,044.00",15/11/2018
Commercial,Public Health,Health authorities - Third Par,0060117137,LONDON NORTH WEST HEALTHCARE NHS TRUST,"9,040.00",29/11/2018
Commercial,Public Health,Health authorities - Third Par,0060114984,CAMBRIDGESHIRE COMMUNITY SERVICES,136.00,08/11/2018
Commercial,Public Health,Health authorities - Third Par,0060116796,CAMBRIDGESHIRE COMMUNITY SERVICES,350.00,07/11/2018
Commercial,Public Health,Health authorities - Third Par,0060115463,LEWISHAM AND GREENWICH NHS TRUST,53.48,01/11/2018
Commercial,Public Health,Health authorities - Third Par,0060116388,KING'S COLLEGE HOSPITAL NHS FOUNDATION T,565.00,22/11/2018
Commercial,Public Health,Health authorities - Third Par,0060117396,NOTTINGHAM UNIVERSITY HOSPITALS TRUST,113.18,19/11/2018
Commercial,Public Health,Health authorities - Third Par,0060117450,OXFORD UNIVERSITY HOSPITALS NHS FOUNDATI,234.00,21/11/2018
Commercial,Public Health,Health authorities - Third Par,0060114197,THE ROYAL WOLVERHAMPTON NHS TRUST,227.65,02/11/2018
Commercial,Public Health,Health authorities - Third Par,0060116943,THE ROYAL WOLVERHAMPTON NHS TRUST,173.64,08/11/2018
Commercial,Public Health,Health authorities - Third Par,0060118332,MOUNTFIELD SURGERY,20.00,29/11/2018
Commercial,Public Health,Health authorities - Third Par,0060118368,THE OLD COURTHOUSE SURGERY,260.00,29/11/2018
Commercial,Public Health,Health authorities - Third Par,0060118329,PHGH DOCTORS,430.00,29/11/2018
Commercial,Public Health,Health authorities - Third Par,0060118375,THE SPEEDWELL PRACTICE,120.00,29/11/2018
Commercial,Public Health,Other Establishments - Third P,0060118331,SYDNEY BLUM & CO LTD T/A,90.00,29/11/2018
Commercial,Public Health,Health authorities - Third Par,0060118309,THE EVERGLADE MEDICAL PRACTICE,480.00,29/11/2018
Commercial,Public Health,Health authorities - Third Par,0060118361,GREENFIELD MEDICAL CENTRE,100.00,29/11/2018
Commercial,Public Health,Health authorities - Third Par,0060118358,LANGSTONE WAY SURGERY,420.00,29/11/2018
Commercial,Public Health,Health authorities - Third Par,0060118334,THE PHOENIX PRACTICE,80.00,29/11/2018
Commercial,Public Health,Health authorities - Third Par,0060118372,SUPREME MEDICAL CENTRE,20.00,29/11/2018
Commercial,Public Health,Health authorities - Third Par,0060118350,OAKLODGE MEDICAL CENTRE,80.00,29/11/2018
Commercial,Public Health,Health authorities - Third Par,0060118347,LONGROVE SURGERY,280.00,29/11/2018
Commercial,Public Health,Health authorities - Third Par,0060118342,ST ANDREWS MEDICAL PRACTICE,150.00,29/11/2018
Commercial,Public Health,Health authorities - Third Par,0060118271,EAST BARNET HEALTH CENTRE,80.00,29/11/2018
Commercial,Public Health,Training,0060113929,MHFA ENGLAND,"2,325.00",05/11/2018
Commercial,Regional Enterprise,Refunds,0080020916,MORGAN SINDALL PROPERTY SER.,5.00,16/11/2018
Commercial,Regional Enterprise,Refunds,0080021167,ANTHONY ROGER NEWELL,175.50,23/11/2018
Commercial,Regional Enterprise,Refunds,0080021356,REDACTED - PERSONAL DATA,785.00,30/11/2018
Commercial,Regional Enterprise,Refunds,0080020420,PORTALPLANQUEST LTD,96.00,01/11/2018
Commercial,Regional Enterprise,Refunds,0080020654,REDACTED - PERSONAL DATA,206.00,01/11/2018
Commercial,Regional Enterprise,Refunds,0080020662,PORTALPLANQUEST LIMITED,175.50,01/11/2018
Commercial,Regional Enterprise,Refunds,0080020664,PORTALPLANQUEST LTD,34.00,01/11/2018
Commercial,Regional Enterprise,Refunds,0080020666,PORTALPLANQUEST LTD,25.50,01/11/2018
Commercial,Regional Enterprise,Refunds,0080020670,PORTALPLANQUEST LTD,228.00,02/11/2018
Commercial,Regional Enterprise,Refunds,0080020682,PORTALPLANQUEST LTD,200.00,02/11/2018
Commercial,Regional Enterprise,Refunds,0080020683,PORTALPLANQUEST LTD,154.50,02/11/2018
Commercial,Regional Enterprise,Refunds,0080020684,PORTALPLANQUEST LTD,154.50,02/11/2018
Commercial,Regional Enterprise,Refunds,0080020685,PORTALPLANQUEST LTD,5.00,02/11/2018
Commercial,Regional Enterprise,Refunds,0080020686,PORTALPLANQUEST LTD,77.25,02/11/2018
Commercial,Regional Enterprise,Refunds,0080020698,PORTALPLANQUEST LTD,462.00,05/11/2018
Commercial,Regional Enterprise,Refunds,0080020699,PORTALPLANQUEST LTD,228.00,07/11/2018
Commercial,Regional Enterprise,Refunds,0080020770,PORTALPLANQUEST LTD,77.25,07/11/2018
Commercial,Regional Enterprise,Refunds,0080020923,PORTALPLANQUEST LIMITED,346.50,16/11/2018
Commercial,Regional Enterprise,Refunds,0080020924,REDACTED - PERSONAL DATA,154.50,16/11/2018
Commercial,Regional Enterprise,Refunds,0080020925,PORTALPLANQUEST LTD,228.00,16/11/2018
Commercial,Regional Enterprise,Refunds,0080021002,PORTALPLANQUEST LTD,58.50,27/11/2018
Commercial,Regional Enterprise,Legal and Court Fees,0080021180,LRJ PLANNING LTD,"5,850.00",26/11/2018
Commercial,Regional Enterprise,Refunds,0080021191,PORTALPLANQUEST LTD,228.00,26/11/2018
Commercial,Regional Enterprise,Refunds,0080021199,PORTALPLANQUEST LTD,228.00,26/11/2018
Commercial,Regional Enterprise,Refunds,0080021206,PORTALPLANQUEST LTD,228.00,26/11/2018
Commercial,Regional Enterprise,Refunds,0080021267,REDACTED - PERSONAL DATA,256.00,30/11/2018
Commercial,Regional Enterprise,Other Services,0060117068,ENVIRONMENT AGENCY,"11,500.00",14/11/2018
Commercial,Regional Enterprise,Other Services,0060116997,CONWAY AECOM LTD,"42,330.48",29/11/2018
Commercial,Regional Enterprise,Other Services,0060117039,CONWAY AECOM LTD,"21,165.24",29/11/2018
Commercial,Regional Enterprise,Other Services,0060100404,AFFINITY WATER LIMITED,148.14,07/11/2018
Commercial,Regional Enterprise,Other Services,0060115440,AFFINITY WATER LIMITED,30.75,16/11/2018
Commercial,Regional Enterprise,Other Services,0060115850,CASTLE WATER LTD,32.87,07/11/2018
Commercial,Regional Enterprise,Other Services,0060115852,CASTLE WATER LTD,168.52,07/11/2018
Commercial,Regional Enterprise,Other Services,0060116147,CONWAY AECOM LTD,262.30,08/11/2018
Commercial,Regional Enterprise,Capital Construction and Works,0060117619,RM COUNTRYSIDE SERVICES LTD,795.00,20/11/2018
Commercial,Regional Enterprise,Capital Construction and Works,0060117567,RM COUNTRYSIDE SERVICES LTD,229.00,20/11/2018
Commercial,Regional Enterprise,Other Services,0060117659,RM COUNTRYSIDE SERVICES LTD,350.00,20/11/2018
Commercial,Regional Enterprise,Capital Construction and Works,0060117671,RM COUNTRYSIDE SERVICES LTD,390.00,20/11/2018
Commercial,Regional Enterprise,Other Services,0010014486,CONWAY AECOM LTD,"2,347.80",29/11/2018
Commercial,Regional Enterprise,Other Services,0010014488,CONWAY AECOM LTD,"1,096.20",29/11/2018
Commercial,Regional Enterprise,Other Services,0060111963,CONWAY AECOM LTD,630.00,15/11/2018
Commercial,Regional Enterprise,Professional Services,0060117472,LONDON BOROUGH OF HARINGEY,100.00,19/11/2018
Commercial,Regional Enterprise,Professional Services,0060117287,WATES LIVING SPACE,56.41,29/11/2018
Commercial,Regional Enterprise,Professional Services,0060117337,WATES LIVING SPACE,54.59,29/11/2018
Commercial,Regional Enterprise,Professional Services,0060117433,WATES LIVING SPACE,63.68,29/11/2018
Commercial,Regional Enterprise,Refunds,0080021005,RUSSELL COOKE LLP,78.00,23/11/2018
Commercial,Regional Enterprise,Advertising,0060106143,TMP (UK) LTD,616.00,07/11/2018
Commercial,Regional Enterprise,Advertising,0060107916,TMP (UK) LTD,804.00,20/11/2018
Commercial,Regional Enterprise,Advertising,0060114055,TMP (UK) LTD,750.00,21/11/2018
Commercial,Regional Enterprise,Other Services,0060111138,CONWAY AECOM LTD,39.49,29/11/2018
Commercial,Regional Enterprise,Other Services,0060116122,CONWAY AECOM LTD,36.39,08/11/2018
Commercial,Regional Enterprise,Other Services,0060116126,CONWAY AECOM LTD,36.39,08/11/2018
Commercial,Regional Enterprise,Other Services,0060116139,CONWAY AECOM LTD,3.96,07/11/2018
Commercial,Regional Enterprise,Other Services,0060116142,CONWAY AECOM LTD,18.34,08/11/2018
Commercial,Regional Enterprise,Other Services,0060116165,CONWAY AECOM LTD,40.00,08/11/2018
Commercial,Regional Enterprise,Other Services,0060116176,CONWAY AECOM LTD,18.34,08/11/2018
Commercial,Regional Enterprise,Other Services,0060116180,CONWAY AECOM LTD,13.10,07/11/2018
Commercial,Regional Enterprise,Other Services,0060116197,CONWAY AECOM LTD,320.06,08/11/2018
Commercial,Regional Enterprise,Fees and Charges,0080020498,REDACTED - PERSONAL DATA,"8,000.00",16/11/2018
Commercial,Regional Enterprise,Fees and Charges,0080020499,REDACTED - PERSONAL DATA,"8,000.00",16/11/2018
Commercial,Regional Enterprise,Fees and Charges,0080020844,COMPANIES HOUSE,54.00,13/11/2018
Commercial,Regional Enterprise,Professional Services,0060108776,PUBLIC ANALYST SCIENTIFIC SERVS. LT,195.00,13/11/2018
Commercial,Regional Enterprise,Other Services,0010014383,RM COUNTRYSIDE SERVICES LTD,581.85,02/11/2018
Commercial,Regional Enterprise,Other Services,0060115507,CONWAY AECOM LTD,47.25,08/11/2018
Commercial,Regional Enterprise,Other Services,0060116999,CONWAY AECOM LTD,500.85,12/11/2018
Commercial,Regional Enterprise,Other Services,0060117373,CONWAY AECOM LTD,195.79,19/11/2018
Commercial,Regional Enterprise,Other Services,0060117413,CONWAY AECOM LTD,264.60,27/11/2018
Commercial,Regional Enterprise,Other Services,0060117499,CONWAY AECOM LTD,56.70,29/11/2018
Commercial,Regional Enterprise,Other Services,0060117539,CONWAY AECOM LTD,928.20,29/11/2018
Commercial,Regional Enterprise,Other Services,0060117560,CONWAY AECOM LTD,176.40,29/11/2018
Commercial,Regional Enterprise,Other Services,0060117726,CONWAY AECOM LTD,151.20,29/11/2018
Commercial,Regional Enterprise,Refunds,0080020766,REDACTED - PERSONAL DATA,580.00,13/11/2018
Commercial,Regional Enterprise,Refunds,0080021031,BENJAMIN STEVENS LONDON LTD,"1,202.00",23/11/2018
Commercial,Regional Enterprise,Other Services,0060115478,CONWAY AECOM LTD,"1,134.00",22/11/2018
Commercial,Regional Enterprise,Other Services,0060116427,CONWAY AECOM LTD,756.00,08/11/2018
Commercial,Regional Enterprise,Other Services,0060117370,CONWAY AECOM LTD,819.00,29/11/2018
Commercial,Regional Enterprise,Other Services,0060117374,CONWAY AECOM LTD,"2,368.80",27/11/2018
Commercial,Regional Enterprise,Other Services,0060117390,CONWAY AECOM LTD,806.40,27/11/2018
Commercial,Regional Enterprise,Other Services,0060117402,CONWAY AECOM LTD,"1,039.50",29/11/2018
Commercial,Regional Enterprise,Other Services,0060117421,CONWAY AECOM LTD,"1,360.80",29/11/2018
Commercial,Regional Enterprise,Other Services,0060117422,CONWAY AECOM LTD,"1,738.80",29/11/2018
Commercial,Regional Enterprise,Other Services,0060117429,CONWAY AECOM LTD,"1,037.40",29/11/2018
Commercial,Regional Enterprise,Other Services,0060117430,CONWAY AECOM LTD,"1,025.46",19/11/2018
Commercial,Regional Enterprise,Other Services,0060117432,CONWAY AECOM LTD,"1,234.80",29/11/2018
Commercial,Regional Enterprise,Other Services,0060117436,CONWAY AECOM LTD,"1,436.40",27/11/2018
Commercial,Regional Enterprise,Other Services,0060117441,CONWAY AECOM LTD,"1,329.30",19/11/2018
Commercial,Regional Enterprise,Other Services,0060117447,CONWAY AECOM LTD,705.60,29/11/2018
Commercial,Regional Enterprise,Other Services,0060117458,CONWAY AECOM LTD,428.40,29/11/2018
Commercial,Regional Enterprise,Other Services,0060117460,CONWAY AECOM LTD,315.00,29/11/2018
Commercial,Regional Enterprise,Other Services,0060117470,CONWAY AECOM LTD,"1,063.44",19/11/2018
Commercial,Regional Enterprise,Other Services,0060117478,CONWAY AECOM LTD,724.50,29/11/2018
Commercial,Regional Enterprise,Other Services,0060117481,CONWAY AECOM LTD,806.40,29/11/2018
Commercial,Regional Enterprise,Other Services,0060117491,CONWAY AECOM LTD,"1,209.60",29/11/2018
Commercial,Regional Enterprise,Other Services,0060117500,CONWAY AECOM LTD,"1,757.70",29/11/2018
Commercial,Regional Enterprise,Other Services,0060117503,CONWAY AECOM LTD,428.40,29/11/2018
Commercial,Regional Enterprise,Other Services,0060117516,CONWAY AECOM LTD,604.80,29/11/2018
Commercial,Regional Enterprise,Other Services,0060117526,CONWAY AECOM LTD,604.80,29/11/2018
Commercial,Regional Enterprise,Other Services,0060117535,CONWAY AECOM LTD,"1,014.30",29/11/2018
Commercial,Regional Enterprise,Other Services,0060117537,CONWAY AECOM LTD,604.80,27/11/2018
Commercial,Regional Enterprise,Other Services,0060117550,CONWAY AECOM LTD,"1,025.46",19/11/2018
Commercial,Regional Enterprise,Other Services,0060117553,CONWAY AECOM LTD,680.40,29/11/2018
Commercial,Regional Enterprise,Other Services,0060117557,CONWAY AECOM LTD,"1,215.36",19/11/2018
Commercial,Regional Enterprise,Other Services,0060118179,CONWAY AECOM LTD,"3,024.00",29/11/2018
Commercial,Regional Enterprise,Grant Payments,0080021026,REDACTED - PERSONAL DATA,"1,776.00",20/11/2018
Commercial,Regional Enterprise,Grant Payments,0080021134,BARNET WINDOW COMPANY :TD,"1,603.00",29/11/2018
Commercial,Regional Enterprise,Grant Payments,0080021284,REDACTED - PERSONAL DATA,"2,000.00",29/11/2018
Commercial,Regional Enterprise,Grant Payments,0080021287,REDACTED - PERSONAL DATA,"5,151.80",29/11/2018
Commercial,Regional Enterprise,Grant Payments,0080021290,REDACTED - PERSONAL DATA,"3,100.78",29/11/2018
Commercial,Regional Enterprise,Permits and Licences,0080020626,REDACTED - PERSONAL DATA,444.00,09/11/2018
Commercial,Regional Enterprise,Professional Services,0060118284,RE (REGIONAL ENTERPRISE) LIMITED,"267,828.68",29/11/2018
Commercial,Regional Enterprise,Consultants Fees,0060115877,GOWLING WLG,547.40,06/11/2018
Commercial,Regional Enterprise,Consultants Fees,0060116502,EVERSHEDS LLP,"4,015.88",06/11/2018
Commercial,Regional Enterprise,Professional Services,0060118320,RE (REGIONAL ENTERPRISE) LIMITED,"163,702.27",30/11/2018
Commercial,Regional Enterprise,Consultants Fees,0060116422,EVERSHEDS LLP,"2,567.68",12/11/2018
Commercial,Regional Enterprise,Professional Services,0060104204,RE (REGIONAL ENTERPRISE) LIMITED,"35,282.50",07/11/2018
Commercial,Regional Enterprise,Professional Services,0060113011,RE (REGIONAL ENTERPRISE) LIMITED,"35,282.50",07/11/2018
Commercial,Regional Enterprise,Professional Services,0060114297,RE (REGIONAL ENTERPRISE) LIMITED,"2,273.98",07/11/2018
Commercial,Regional Enterprise,Professional Services,0060114518,RE (REGIONAL ENTERPRISE) LIMITED,"1,032.79",07/11/2018
Commercial,Regional Enterprise,Professional Services,0060115261,RE (REGIONAL ENTERPRISE) LIMITED,797.01,07/11/2018
Commercial,Regional Enterprise,Professional Services,0060115262,RE (REGIONAL ENTERPRISE) LIMITED,"2,708.13",07/11/2018
Commercial,Regional Enterprise,RE Services Contract Payment,0060117523,RE (REGIONAL ENTERPRISE) LIMITED,"12,065.41",20/11/2018
Commercial,Regional Enterprise,Professional Services,0060117527,RE (REGIONAL ENTERPRISE) LIMITED,"6,657.20",19/11/2018
Commercial,Regional Enterprise,Professional Services,0060116948,RE (REGIONAL ENTERPRISE) LIMITED,860.30,12/11/2018
Commercial,Regional Enterprise,Professional Services,0060116958,RE (REGIONAL ENTERPRISE) LIMITED,"1,659.15",12/11/2018
Commercial,Regional Enterprise,Professional Services,0060116964,RE (REGIONAL ENTERPRISE) LIMITED,"8,829.78",12/11/2018
Commercial,Regional Enterprise,Professional Services,0060116965,RE (REGIONAL ENTERPRISE) LIMITED,"4,024.98",12/11/2018
Commercial,Regional Enterprise,Professional Services,0060116970,RE (REGIONAL ENTERPRISE) LIMITED,"5,161.80",12/11/2018
Commercial,Regional Enterprise,Professional Services,0060116972,RE (REGIONAL ENTERPRISE) LIMITED,"1,782.05",12/11/2018
Commercial,Regional Enterprise,Professional Services,0060116977,RE (REGIONAL ENTERPRISE) LIMITED,553.05,12/11/2018
Commercial,Regional Enterprise,Professional Services,0060118057,RE (REGIONAL ENTERPRISE) LIMITED,"65,280.54",29/11/2018
Commercial,Regional Enterprise,Capital Construction and Works,0060117741,CONWAY AECOM LTD,151.53,21/11/2018
Commercial,Regional Enterprise,Cleaning and domestic material,0060110749,CHURCHILL CONTRACT SERVICES,488.56,27/11/2018
Commercial,Regional Enterprise,Cleaning and domestic material,0060112767,CHURCHILL CONTRACT SERVICES,488.56,29/11/2018
Commercial,Regional Enterprise,Professional Services,0060118060,RE (REGIONAL ENTERPRISE) LIMITED,"481,000.00",26/11/2018
Commercial,Regional Enterprise,Professional Services,0060118099,RE (REGIONAL ENTERPRISE) LIMITED,"287,583.00",26/11/2018
COMMERCIAL,REGIONAL ENTERPRISE,Grant Payments,0080021052,DOLPHIN MOBILITY LTD.,"6,310.00",22/11/2018
COMMERCIAL,REGIONAL ENTERPRISE,Grant Payments,0080020951,ARTHUR J. FERRYMAN ASSOCIATES,"2,127.24",15/11/2018
COMMERCIAL,REGIONAL ENTERPRISE,Grant Payments,0080020424,AMWELL CONSTRUCTION LTD,"39,267.85",02/11/2018
COMMERCIAL,REGIONAL ENTERPRISE,Grant Payments,0080020950,AMWELL CONSTRUCTION LTD,"17,727.00",15/11/2018
COMMERCIAL,REGIONAL ENTERPRISE,Grant Payments,0080021327,AMWELL CONSTRUCTION LTD,"3,014.40",29/11/2018
COMMERCIAL,REGIONAL ENTERPRISE,Grant Payments,0080020604,DP BUILDERS DISABLED ADAPTATIONS,"5,906.00",02/11/2018
COMMERCIAL,REGIONAL ENTERPRISE,Grant Payments,0080021120,DP BUILDERS DISABLED ADAPTATIONS,"4,091.65",29/11/2018
COMMERCIAL,REGIONAL ENTERPRISE,Grant Payments,0080021242,DP BUILDERS DISABLED ADAPTATIONS,"5,657.00",30/11/2018
COMMERCIAL,REGIONAL ENTERPRISE,Grant Payments,0080020847,H D PROPERTY SERVICES LTD,"4,429.00",09/11/2018
COMMERCIAL,REGIONAL ENTERPRISE,Grant Payments,0080021248,H D PROPERTY SERVICES LTD,"10,503.00",29/11/2018
COMMERCIAL,REGIONAL ENTERPRISE,Grant Payments,0080020940,REDACTED - PERSONAL DATA,"2,805.00",15/11/2018
COMMERCIAL,REGIONAL ENTERPRISE,Grant Payments,0080021023,JAZZ SOUNDPROOFING,"8,086.80",22/11/2018
COMMERCIAL,REGIONAL ENTERPRISE,Grant Payments,0080021085,DOMESTIC LIFT SERVICES LTD,"3,095.00",22/11/2018
COMMERCIAL,REGIONAL ENTERPRISE,Grant Payments,0080020505,SCOOTER STORE,"2,265.00",20/11/2018
COMMERCIAL,REGIONAL ENTERPRISE,Other Services,0060117375,CONWAY AECOM LTD,"2,607.30",29/11/2018
COMMERCIAL,REGIONAL ENTERPRISE,Other Services,0060102448,CONWAY AECOM LTD,119.26,20/11/2018
COMMERCIAL,REGIONAL ENTERPRISE,Other Services,0010014506,CONWAY AECOM LTD,"29,745.60",29/11/2018
COMMERCIAL,REGIONAL ENTERPRISE,Other Services,0060114703,CONWAY AECOM LTD,"38,098.63",16/11/2018
COMMERCIAL,REGIONAL ENTERPRISE,Other Services,0060116085,CONWAY AECOM LTD,"1,786.54",02/11/2018
COMMERCIAL,REGIONAL ENTERPRISE,Other Services,0060118355,CONWAY AECOM LTD,"4,970.35",29/11/2018
COMMERCIAL,REGIONAL ENTERPRISE,Professional Services,0010014423,PENNA PLC,"9,506.25",08/11/2018
COMMERCIAL,REGIONAL ENTERPRISE,Professional Services,0060116768,APPLEYARD & TREW LLP,"4,292.06",07/11/2018
COMMERCIAL,REGIONAL ENTERPRISE,Professional Services,0060118277,RE (REGIONAL ENTERPRISE) LIMITED,"182,297.03",30/11/2018
COMMERCIAL,REGIONAL ENTERPRISE,Professional Services,0060118280,RE (REGIONAL ENTERPRISE) LIMITED,"214,313.54",30/11/2018
COMMERCIAL,REGIONAL ENTERPRISE,Professional Services,0060118293,RE (REGIONAL ENTERPRISE) LIMITED,"249,653.09",30/11/2018
COMMERCIAL,REGIONAL ENTERPRISE,Professional Services,0060118324,RE (REGIONAL ENTERPRISE) LIMITED,"295,319.77",30/11/2018
COMMERCIAL,REGIONAL ENTERPRISE,Consultants Fees,0060115886,GOWLING WLG,"15,438.47",06/11/2018
COMMERCIAL,REGIONAL ENTERPRISE,Consultants Fees,0060115891,GOWLING WLG,"18,170.11",06/11/2018
COMMERCIAL,REGIONAL ENTERPRISE,Consultants Fees,0060115924,GOWLING WLG,"1,418.56",06/11/2018
COMMERCIAL,REGIONAL ENTERPRISE,Consultants Fees,0060115932,GOWLING WLG,"1,026.48",06/11/2018
COMMERCIAL,REGIONAL ENTERPRISE,Consultants Fees,0060117835,JOHN GRAHAM CONSTRUCTION LTD,"53,896.47",22/11/2018
COMMERCIAL,REGIONAL ENTERPRISE,Other Services,0060118200,ARTS DEPOT PRODUCTIONS LTD,"1,080.50",27/11/2018
COMMERCIAL,REGIONAL ENTERPRISE,Other Services,0060117502,CONWAY AECOM LTD,"1,020.19",29/11/2018
COMMERCIAL,REGIONAL ENTERPRISE,,10014485,CONWAY AECOM LTD,"3,884.55",30/11/2018
Commissioning,Commissioning,Other Local Authorities - Thir,EBX0256330,NORTH LONDON WASTE AUTHORITY,"1,014,603.00",23.11.2018
Commissioning,Commissioning,Professional Services,0010014431,GENERAL DYNAMICS INFORMATION TECHNOLOGY,"5,903.68",09/11/2018
Commissioning,Commissioning,Professional Services,0010014432,GENERAL DYNAMICS INFORMATION TECHNOLOGY,"6,350.24",09/11/2018
Commissioning,Commissioning,Professional Services,0060115276,GENERAL DYNAMICS INFORMATION TECHNOLOGY,"5,718.32",06/11/2018
Commissioning,Commissioning,Cleaning and domestic material,0060112941,CHURCHILL CONTRACT SERVICES,72.15,27/11/2018
Commissioning,Commissioning,Fees and Charges,0080020835,IMPAMARK,"3,400.00",12/11/2018
Commissioning,Commissioning,Professional Services,0060111735,MYSTERY SHOPPERS LTD,386.80,20/11/2018
Commissioning,Commissioning,Professional Services,0060112995,MYSTERY SHOPPERS LTD,386.80,20/11/2018
Commissioning,Commissioning,Professional Services,0060116611,MYSTERY SHOPPERS LTD,478.00,29/11/2018
Commissioning,Commissioning,Other Services,0060114985,SHREDALL LTD,270.00,16/11/2018
Commissioning,Commissioning,Other Services,0060115078,SHREDALL LTD,36.00,16/11/2018
Commissioning,Commissioning,Other Services,0060114719,STOR-A FILE LTD,"5,813.79",01/11/2018
Commissioning,Commissioning,Other Services,0060117060,STOR-A FILE LTD,"5,672.54",29/11/2018
Commissioning,Commissioning,Professional Services,0060116982,QM LEGAL COSTS SOLUTIONS LTD,"1,013.69",12/11/2018
Commissioning,Commissioning,Grant Payments,0080021096,THE FLOWER BANK,"2,200.00",22/11/2018
Commissioning,Commissioning,Professional Services,0010014370,PENNA PLC,"14,040.00",01/11/2018
Commissioning,Commissioning,Professional Services,0060118146,GRANT THORNTON UK LLP,"15,525.00",29/11/2018
Commissioning,Commissioning,Consultants Fees,0060116585,LEIDOS INNOVATIONS UK LTD,"2,671.96",07/11/2018
Commissioning,Commissioning,Professional Services,0060116377,THE BARNETGROUP LIMITED,"76,188.55",07/11/2018
Commissioning,Commissioning,Professional Services,0060116425,THE BARNETGROUP LIMITED,"74,810.78",07/11/2018
Commissioning,Commissioning,Professional Services,0060116546,THE BARNETGROUP LIMITED,"7,595.75",07/11/2018
Commissioning,Commissioning,Professional Services,0060116566,THE BARNETGROUP LIMITED,"5,696.09",07/11/2018
Commissioning,Commissioning,Consultants Fees,0060111954,GATENBY SANDERSON,"5,067.18",09/11/2018
Commissioning,Commissioning,Consultants Fees,0060112062,GATENBY SANDERSON,"7,579.20",09/11/2018
Commissioning,Commissioning,Consultants Fees,0060113120,GATENBY SANDERSON,"1,689.06",09/11/2018
Commissioning,Commissioning,Consultants Fees,0060113498,GATENBY SANDERSON,"1,689.06",09/11/2018
Commissioning,Commissioning,Consultants Fees,0060114417,GATENBY SANDERSON,"4,222.65",09/11/2018
Commissioning,Commissioning,Consultants Fees,0060114432,GATENBY SANDERSON,"6,631.80",09/11/2018
Commissioning,Commissioning,Training,0060116138,AV2HIRE,565.00,02/11/2018
Commissioning,Commissioning,Training,0060117095,HEARNS COACHES LTD,300.00,14/11/2018
Commissioning,Commissioning,Agency/Interim Hays,0010014472,MATRIX MCM LTD,"222,444.22",22/11/2018
Commissioning,Commissioning,Agency/Interim Hays,0060117714,MATRIX MCM LTD,"259,172.55",21/11/2018
Commissioning,Commissioning,Agency/Interim Hays,0060117721,MATRIX MCM LTD,"268,588.68",22/11/2018
Commissioning,Commissioning,Agency/Interim Hays,0060117760,MATRIX MCM LTD,"283,853.25",22/11/2018
Commissioning,Commissioning,Equipment and Materials Purcha,0060116665,OCS GROUP UK LIMITED,"47,269.00",07/11/2018
Commissioning,Commissioning,Professional Services,0010014420,LONDON BOROUGH OF BRENT,"148,700.00",08/11/2018
Commissioning,Commissioning,Private Contractors - Third Pa,0060114729,COMMUNITY BARNET,"26,000.00",15/11/2018
Commissioning,Commissioning,Other Transfer Payments to Soc,0060116523,SIGNET SIGNS LTD,191.05,06/11/2018
Commissioning,Commissioning,Equipment and Materials Purcha,0060116836,GLOBAL MSC SECURITY LIMITED,"9,000.00",29/11/2018
Commissioning,Commissioning,Other Transfer Payments to Soc,0060113985,THE KNOWLEDGE ACADEMY LTD,739.00,15/11/2018
Commissioning,Commissioning,Consultants Fees,0060116067,GOOD IMPRESSIONS (LONDON) LIMITED,210.00,21/11/2018
Commissioning,Commissioning,Other Services,0060103890,GREENWICH LEISURE LTD,476.62,06/11/2018
Commissioning,Commissioning,Consultants Fees,0060116456,BOUYGUES E&S INFRASTRUCTURE UK LTD,"2,392.32",06/11/2018
Commissioning,Commissioning,Consultants Fees,0060116530,BOUYGUES E&S INFRASTRUCTURE UK LTD,399.00,06/11/2018
Commissioning,Commissioning,Consultants Fees,0060117179,TERRAIN SURVEYS LTD,"3,780.00",27/11/2018
Commissioning,Commissioning,Training,0010014427,PENNA PLC,"1,950.00",15/11/2018
Commissioning,Commissioning,Training,0060116772,THE KNOWLEDGE ACADEMY LTD,"2,220.00",07/11/2018
Commissioning,Commissioning,Publications,0060116330,LETTERBOX DISTRIBUTION.COM,"10,237.50",06/11/2018
Commissioning,Commissioning,Publications,0060116272,DIGITALISSUE LIMITED,150.00,22/11/2018
Commissioning,Commissioning,Professional Services,0060114899,COMMUNITY BARNET,"9,231.77",06/11/2018
Commissioning,Commissioning,Consultants Fees,0060117692,MOTT MACDONALD LTD/CAMBRIDGE EDUCATION,118.00,20/11/2018
COMMISSIONING,COMMISSIONING GROUP,Equipment and Materials Purcha,0060115225,JOHN GRAHAM CONSTRUCTION LTD,"417,955.41",22/11/2018
COMMISSIONING,COMMISSIONING GROUP,Other Services,0060116225,LIQUIDLOGIC LTD,"14,875.00",21/11/2018
COMMISSIONING,COMMISSIONING GROUP,Equipment and Materials Purcha,0010014479,JOHN GRAHAM CONSTRUCTION LTD,"782,242.72",29/11/2018
COMMISSIONING,COMMISSIONING GROUP,Equipment and Materials Purcha,0060114225,JOHN GRAHAM CONSTRUCTION LTD,"850,033.60",16/11/2018
COMMISSIONING,COMMISSIONING GROUP,Building Repairs & Maintenance,0060116451,UK ENERGY PARTNERS LTD,"43,454.20",22/11/2018
COMMISSIONING,COMMISSIONING GROUP,Building Repairs & Maintenance,0060116148,S W BRUCE & CO LTD,"5,421.57",22/11/2018
COMMISSIONING,COMMISSIONING GROUP,Building Repairs & Maintenance,0060115985,CWG ROOFING LTD,"33,473.90",15/11/2018
COMMISSIONING,COMMISSIONING GROUP,Building Repairs & Maintenance,0060116623,S W BRUCE & CO LTD,"1,362.36",29/11/2018
COMMISSIONING,COMMISSIONING GROUP,Building Repairs & Maintenance,0060116792,S W BRUCE & CO LTD,"21,381.91",29/11/2018
COMMISSIONING,COMMISSIONING GROUP,Building Repairs & Maintenance,0060116414,UK ENERGY PARTNERS LTD,"350,145.00",22/11/2018
COMMISSIONING,COMMISSIONING GROUP,Building Repairs & Maintenance,0060116918,UK ENERGY PARTNERS LTD,"116,715.00",29/11/2018
COMMISSIONING,COMMISSIONING GROUP,Professional Services,0060116071,P A CONSULTING SERVICES LTD,"22,920.00",14/11/2018
COMMISSIONING,COMMISSIONING GROUP,Professional Services,0060117087,P A CONSULTING SERVICES LTD,"27,586.50",29/11/2018
COMMISSIONING,COMMISSIONING GROUP,Professional Services,0060118286,THE METROPOLITAN POLICE,"13,100.00",29/11/2018
COMMISSIONING,COMMISSIONING GROUP,Building Repairs & Maintenance,0060114654,LONDON DIOCESAN BOARD FOR SCHOOL,"18,693.67",21/11/2018
COMMISSIONING,COMMISSIONING GROUP,CSG Services Contract Payment,0080021365,RESOLUTION PROPERTY SURVEYORS,550.00,29/11/2018
COMMISSIONING,COMMISSIONING GROUP,Equipment and Materials Purcha,0060117110,GEMCO SERVICES LTD,990.00,14/11/2018
COMMISSIONING,COMMISSIONING GROUP,Consultants Fees,0060115693,E-CAR CLUB,"2,487.14",08/11/2018
COMMISSIONING,COMMISSIONING GROUP,Consultants Fees,0060117467,GALLIFORD TRY,"813,902.18",27/11/2018
COMMISSIONING,COMMISSIONING GROUP,Equipment and Materials Purcha,0060115764,JOHN GRAHAM CONSTRUCTION LTD,"1,024,161.24",06/11/2018
COMMISSIONING,COMMISSIONING GROUP,Equipment and Materials Purcha,0060117647,JOHN GRAHAM CONSTRUCTION LTD,"1,385,266.02",21/11/2018
COMMISSIONING,COMMISSIONING GROUP,Advertising,0060106598,TMP (UK) LTD,822.00,20/11/2018
COMMISSIONING,COMMISSIONING GROUP,Advertising,0060114049,TMP (UK) LTD,"1,083.00",21/11/2018
COMMISSIONING,COMMISSIONING GROUP,Other Services,0060117409,CONWAY AECOM LTD,"1,927.82",29/11/2018
COMMISSIONING,COMMISSIONING GROUP,Advertising,0060107947,TMP (UK) LTD,314.00,20/11/2018
COMMISSIONING,COMMISSIONING GROUP,Other Services,0060116326,TRAFFIC SURVEY PARTNERS (TSP) LTD,330.00,16/11/2018
COMMISSIONING,COMMISSIONING GROUP,Other Services,0060111204,CONWAY AECOM LTD,"1,085.46",29/11/2018
COMMISSIONING,COMMISSIONING GROUP,Advertising,0060116282,TRAFFIC SURVEY PARTNERS (TSP) LTD,430.00,06/11/2018
COMMISSIONING,COMMISSIONING GROUP,Professional Services,0060117879,ECT ENVIRONMENTAL LTD,611.00,22/11/2018
COMMISSIONING,COMMISSIONING GROUP,Other Services,0060118105,CONWAY AECOM LTD,"66,365.13",26/11/2018
COMMISSIONING,COMMISSIONING GROUP,Other Services,0060117435,CONWAY AECOM LTD,"2,485.98",29/11/2018
COMMISSIONING,COMMISSIONING GROUP,Other Services,0010014503,CONWAY AECOM LTD,82.65,29/11/2018
COMMISSIONING,COMMISSIONING GROUP,Other Services,0010014504,CONWAY AECOM LTD,82.65,29/11/2018
COMMISSIONING,COMMISSIONING GROUP,Other Services,0060116383,CONWAY AECOM LTD,739.47,08/11/2018
COMMISSIONING,COMMISSIONING GROUP,Other Services,0060116384,CONWAY AECOM LTD,"2,464.77",08/11/2018
COMMISSIONING,COMMISSIONING GROUP,Other Services,0060116387,CONWAY AECOM LTD,"2,145.72",08/11/2018
COMMISSIONING,COMMISSIONING GROUP,Other Services,0060116396,CONWAY AECOM LTD,"1,447.00",08/11/2018
COMMISSIONING,COMMISSIONING GROUP,Other Services,0060116400,CONWAY AECOM LTD,832.55,08/11/2018
COMMISSIONING,COMMISSIONING GROUP,Other Services,0060116406,CONWAY AECOM LTD,"2,179.06",08/11/2018
COMMISSIONING,COMMISSIONING GROUP,Other Services,0060116411,CONWAY AECOM LTD,"3,493.13",08/11/2018
COMMISSIONING,COMMISSIONING GROUP,Other Services,0060116420,CONWAY AECOM LTD,"2,220.24",08/11/2018
COMMISSIONING,COMMISSIONING GROUP,Other Services,0060116430,CONWAY AECOM LTD,"2,228.41",08/11/2018
COMMISSIONING,COMMISSIONING GROUP,Other Services,0060116431,CONWAY AECOM LTD,"1,319.34",08/11/2018
COMMISSIONING,COMMISSIONING GROUP,Other Services,0060116437,CONWAY AECOM LTD,"1,853.47",08/11/2018
COMMISSIONING,COMMISSIONING GROUP,Other Services,0060116445,CONWAY AECOM LTD,"2,153.32",08/11/2018
COMMISSIONING,COMMISSIONING GROUP,Other Services,0060116459,CONWAY AECOM LTD,105.03,08/11/2018
COMMISSIONING,COMMISSIONING GROUP,Other Services,0060116463,CONWAY AECOM LTD,"9,028.04",08/11/2018
COMMISSIONING,COMMISSIONING GROUP,Other Services,0060116482,CONWAY AECOM LTD,"1,738.82",08/11/2018
COMMISSIONING,COMMISSIONING GROUP,Other Services,0060116484,CONWAY AECOM LTD,"1,037.42",22/11/2018
COMMISSIONING,COMMISSIONING GROUP,Other Services,0060116492,CONWAY AECOM LTD,914.09,08/11/2018
COMMISSIONING,COMMISSIONING GROUP,Other Services,0060116494,CONWAY AECOM LTD,"1,197.30",08/11/2018
COMMISSIONING,COMMISSIONING GROUP,Other Services,0060116496,CONWAY AECOM LTD,"1,313.88",08/11/2018
COMMISSIONING,COMMISSIONING GROUP,Other Services,0060116498,CONWAY AECOM LTD,"4,638.73",08/11/2018
COMMISSIONING,COMMISSIONING GROUP,Other Services,0060116511,CONWAY AECOM LTD,"4,191.53",08/11/2018
COMMISSIONING,COMMISSIONING GROUP,Other Services,0060116531,CONWAY AECOM LTD,765.08,08/11/2018
COMMISSIONING,COMMISSIONING GROUP,Other Services,0060116548,CONWAY AECOM LTD,"1,333.44",09/11/2018
COMMISSIONING,COMMISSIONING GROUP,Other Services,0060116551,CONWAY AECOM LTD,"1,088.93",08/11/2018
COMMISSIONING,COMMISSIONING GROUP,Other Services,0060116561,CONWAY AECOM LTD,714.55,08/11/2018
COMMISSIONING,COMMISSIONING GROUP,Other Services,0060116571,CONWAY AECOM LTD,"1,020.85",08/11/2018
COMMISSIONING,COMMISSIONING GROUP,Other Services,0060116579,CONWAY AECOM LTD,"1,054.78",08/11/2018
COMMISSIONING,COMMISSIONING GROUP,Other Services,0060116581,CONWAY AECOM LTD,"3,873.80",08/11/2018
COMMISSIONING,COMMISSIONING GROUP,Other Services,0060116596,CONWAY AECOM LTD,"1,841.78",08/11/2018
COMMISSIONING,COMMISSIONING GROUP,Other Services,0060116090,CONWAY AECOM LTD,300.00,08/11/2018
COMMISSIONING,COMMISSIONING GROUP,Other Services,0060117452,CONWAY AECOM LTD,"1,816.20",19/11/2018
COMMISSIONING,COMMISSIONING GROUP,Building Repairs & Maintenance,0060115064,RAYTELL ELECTRICAL CO. LTD,"15,617.16",15/11/2018
COMMISSIONING,COMMISSIONING GROUP,Other Services,0060117129,CYCLE CONFIDENT LTD,"34,055.09",29/11/2018
COMMISSIONING,COMMISSIONING GROUP,Other Services,0060116907,CONWAY AECOM LTD,"5,456.75",29/11/2018
COMMISSIONING,COMMISSIONING GROUP,Other Services,0060116295,TRAFFIC SURVEY PARTNERS (TSP) LTD,340.00,06/11/2018
COMMISSIONING,COMMISSIONING GROUP,Other Services,0060116303,TRAFFIC SURVEY PARTNERS (TSP) LTD,"1,060.00",06/11/2018
COMMISSIONING,COMMISSIONING GROUP,Advertising,0060118168,CONWAY AECOM LTD,"22,064.43",27/11/2018
COMMISSIONING,COMMISSIONING GROUP,Professional Services,0010014464,TBG OPEN DOOR LIMITED,"980,586.73",19/11/2018
COMMISSIONING,COMMISSIONING GROUP,Professional Services,0060116754,TBG OPEN DOOR LIMITED,"2,288,035.71",20/11/2018
COMMISSIONING,REGIONAL ENTERPRISE,Equipment and Materials Purcha,0060116370,BOUYGUES E&S INFRASTRUCTURE UK LTD,"8,751.93",29/11/2018
Corporate Accounting,Corporate Accounting,Other Local Authorities - Thir,EBX0253612,GREATER LONDON AUTHORITY,"49,678.00",08/11/2018
Corporate Accounting,Corporate Accounting,Other Local Authorities - Thir,EBX0254853,GREATER LONDON AUTHORITY,"4,363,157.80",14/11/2018
Corporate Accounting,Corporate Accounting,Other Local Authorities - Thir,EBX0256241,GREATER LONDON AUTHORITY,"236,146.00",22/11/2018
Corporate Accounting,Corporate Accounting,Other Agencies - Third Party P,0080020412,TRANSPORT FOR LONDON,"63,504.16",08/11/2018
Corporate Accounting,Corporate Accounting,Government departments - Third,0080020616,DEPARTMENT FOR COMMUNITIES & LOCAL GOV.,"438,083.77",02/11/2018
Corporate Accounting,Corporate Accounting,Grant Payments,0080020679,THE LONDON HORSEPLAY CENTRE,"1,000.00",02/11/2018
Corporate Accounting,Corporate Accounting,Grant Payments,0080020759,NRSCE,"2,498.00",07/11/2018
Corporate Accounting,Corporate Accounting,Grant Payments,0080020737,THAMES21 LTD,"4,892.00",29/11/2018
Corporate Accounting,Corporate Accounting,Grant Payments,0080020159,AFGHAN ASSOCIATION PAIWAND LTD,"5,000.00",01/11/2018
Corporate Accounting,Corporate Accounting,Grant Payments,0080020733,JEWISH DEAF ASSOCIATION,"4,975.00",07/11/2018
Corporate Accounting,Corporate Accounting,Fees and Charges,0080020716,THE SHARE FOUNDATION,"3,891.48",05/11/2018
Corporate Accounting,Corporate Accounting,Other Transfer Payments to Soc,0080020720,REDACTED - PERSONAL DATA,"1,090.00",05/11/2018
Corporate Accounting,Corporate Accounting,Miscellaneous Expenses,0080020931,REDACTED - PERSONAL DATA,150.00,15/11/2018
Corporate Accounting,Corporate Accounting,Advertising,0060117120,TMP (UK) LTD,737.50,14/11/2018
Corporate Accounting,Corporate Accounting,Consultants Fees,0060117126,TMP (UK) LTD,715.00,14/11/2018
Corporate Accounting,Corporate Accounting,Refunds,0080020805,KISHARON DAY SCHOOL,72.03,08/11/2018
Corporate Accounting,Corporate Accounting,Refunds,0080020774,REDACTED - PERSONAL DATA,37.95,08/11/2018
Corporate Accounting,Corporate Accounting,Other Services,0080020976,LBB BARNET GENERAL HOSPITAL SW IMPR,"1,166.26",19/11/2018
Delivery Units,Adults and Communities,Translation Exp / Interpret,0060114637,D.A. LANGUAGES LTD,99.40,01/11/2018
Delivery Units,Adults and Communities,Voluntary Associations - Third,0020040077,SANCTUARY HOUSING ASSOCIATION,"6,023.87",16/11/2018
Delivery Units,Adults and Communities,Voluntary Associations - Third,0020040078,SANCTUARY HOUSING ASSOCIATION,407.80,16/11/2018
Delivery Units,Adults and Communities,Voluntary Associations - Third,0020040068,ELEANOR PALMER TRUST NO 2 A/C.,486.50,16/11/2018
Delivery Units,Adults and Communities,Voluntary Associations - Third,0020040065,BARNET MENCAP,"11,142.65",16/11/2018
Delivery Units,Adults and Communities,Voluntary Associations - Third,0020040067,CHRISTIAN ACTION (ENFIELD),365.80,16/11/2018
Delivery Units,Adults and Communities,Voluntary Associations - Third,0020040064,ASRA GREATER LONDON HOUSING ASSOC,379.30,16/11/2018
Delivery Units,Adults and Communities,Voluntary Associations - Third,0020040076,LINEN & WOOLLEN DRAPERS COTTAGE,730.11,16/11/2018
Delivery Units,Adults and Communities,Voluntary Associations - Third,0020040069,HABINTEG HOUSING ASSOCIATION,446.37,16/11/2018
Delivery Units,Adults and Communities,Voluntary Associations - Third,0020040074,ORCHARD HOUSING ASSOCIATION,196.62,16/11/2018
Delivery Units,Adults and Communities,Voluntary Associations - Third,0020040075,ST PANCRAS & HUMANIST H.A.,661.55,16/11/2018
Delivery Units,Adults and Communities,Other Services,0020040080,WILLOW HOUSING & CARE LTD.,711.38,16/11/2018
Delivery Units,Adults and Communities,Voluntary Associations - Third,0020040070,JEWISH COMMUNITY HOUSING ASSOCIATIO,568.17,16/11/2018
Delivery Units,Adults and Communities,Voluntary Associations - Third,0020040072,METROPOLITAN SUPPORT TRUST,502.00,16/11/2018
Delivery Units,Adults and Communities,Voluntary Associations - Third,0020040073,METROPOLITAN SUPPORT TRUST,"5,794.20",16/11/2018
Delivery Units,Adults and Communities,Voluntary Associations - Third,0020040079,SCOTSCARE,361.52,16/11/2018
Delivery Units,Adults and Communities,Other Services,0010014385,M1 EXPRESS CAR SERVICES,177.00,02/11/2018
Delivery Units,Adults and Communities,Other Services,0010014387,M1 EXPRESS CAR SERVICES,190.00,02/11/2018
Delivery Units,Adults and Communities,Other Services,0010014388,M1 EXPRESS CAR SERVICES,160.00,02/11/2018
Delivery Units,Adults and Communities,Travelling Expenses,0060117021,M1 EXPRESS CAR SERVICES,234.00,26/11/2018
Delivery Units,Adults and Communities,Equipment and Materials Purcha,0010014515,MILLBROOK HEALTHCARE LTD,"192,644.46",30/11/2018
Delivery Units,Adults and Communities,Equipment and Materials Purcha,0060106669,MILLBROOK HEALTHCARE LTD,"69,356.92",30/11/2018
Delivery Units,Adults and Communities,Equipment and Materials Purcha,0060110741,MILLBROOK HEALTHCARE LTD,"37,766.12",13/11/2018
Delivery Units,Adults and Communities,Equipment and Materials Purcha,0060116110,MILLBROOK HEALTHCARE LTD,"37,766.12",12/11/2018
Delivery Units,Adults and Communities,Equipment and Materials Purcha,0060116121,MILLBROOK HEALTHCARE LTD,"42,824.34",12/11/2018
Delivery Units,Adults and Communities,Equipment and Materials Purcha,0060116171,MILLBROOK HEALTHCARE LTD,"43,474.26",12/11/2018
Delivery Units,Adults and Communities,Equipment and Materials Purcha,0060116188,MILLBROOK HEALTHCARE LTD,"38,992.42",12/11/2018
Delivery Units,Adults and Communities,Other Contributions,0080021045,S W BRUCE & CO LTD,"3,399.47",23/11/2018
Delivery Units,Adults and Communities,Other Services,0080021136,E-ON ENERGY,"1,792.37",26/11/2018
Delivery Units,Adults and Communities,Stationery,0040003121,OFFICE DEPOT UK LTD,171.72,16/11/2018
Delivery Units,Adults and Communities,Translation Exp / Interpret,0080021121,REDACTED - PERSONAL DATA,600.00,26/11/2018
Delivery Units,Adults and Communities,Other Services,0080021336,CAKE CREATE,71.00,29/11/2018
Delivery Units,Adults and Communities,Other Transfer Payments to Soc,0060107883,ACTION FIRST RECRUITMENT,130.00,01/11/2018
Delivery Units,Adults and Communities,Gas,0060115646,KENT COUNTY COUNCIL (KCS),109.55,29/11/2018
Delivery Units,Adults and Communities,Water Services,0060118204,ANGEL SPRINGS LTD,821.05,27/11/2018
Delivery Units,Adults and Communities,Building Repairs & Maintenance,0060101724,S W BRUCE & CO LTD,95.00,20/11/2018
Delivery Units,Adults and Communities,Food Costs,0060115719,MULLER MILK & INGREDIENTS,0.88,02/11/2018
Delivery Units,Adults and Communities,Food Costs,0060116321,MULLER MILK & INGREDIENTS,0.88,16/11/2018
Delivery Units,Adults and Communities,Food Costs,0060116960,MULLER MILK & INGREDIENTS,0.88,16/11/2018
Delivery Units,Adults and Communities,Food Costs,0060116969,MULLER MILK & INGREDIENTS,0.88,23/11/2018
Delivery Units,Adults and Communities,Water Services,0060116283,CASTLE WATER LTD,30.25,06/11/2018
Delivery Units,Adults and Communities,Water Services,0060117705,CASTLE WATER LTD,27.37,20/11/2018
Delivery Units,Adults and Communities,Translation Exp / Interpret,0060114674,D.A. LANGUAGES LTD,76.00,01/11/2018
Delivery Units,Adults and Communities,Building Repairs & Maintenance,0010014426,THAMES LABORATORIES,339.00,22/11/2018
Delivery Units,Adults and Communities,Stationery,0060116312,XEROX FINANCE LTD,20.19,06/11/2018
Delivery Units,Adults and Communities,Voluntary Associations - Third,0020040071,MIDDLESEX ASSOCIATION  FOR THE BLIN,"2,394.00",16/11/2018
Delivery Units,Adults and Communities,Voluntary Associations - Third,0020040066,BARNET MENCAP,"28,583.00",16/11/2018
Delivery Units,Adults and Communities,Voluntary Associations - Third,0020040063,AGE CONCERN,"58,333.00",16/11/2018
Delivery Units,Adults and Communities,Other Transfer Payments to Soc,0060114618,AGE CONCERN,"3,150.00",22/11/2018
Delivery Units,Adults and Communities,Other Services,0080021014,POHWER,"4,520.00",29/11/2018
Delivery Units,Adults and Communities,Training,0060116016,ADJUSTING THE BALANCE,600.00,19/11/2018
Delivery Units,Adults and Communities,Training,0010014386,STEVE CHAMBERLAIN SOCIAL CARE LTD,750.00,05/11/2018
Delivery Units,Adults and Communities,Training,0060114659,STEVE CHAMBERLAIN SOCIAL CARE LTD,400.00,05/11/2018
Delivery Units,Adults and Communities,Training,0080020771,BRUNEL UNIVERSITY LONDON,"9,250.00",21/11/2018
Delivery Units,Adults and Communities,Training,0010014473,BEECHES HR CONSULTANCY,"1,000.00",23/11/2018
Delivery Units,Adults and Communities,Stationery,0040003091,OFFICE DEPOT UK LTD,1.20,15/11/2018
Delivery Units,Adults and Communities,General Office Expenses,0040003124,OFFICE DEPOT UK LTD,12.60,29/11/2018
Delivery Units,Adults and Communities,Postage,0010014456,ROYAL MAIL GROUP LIMITED,1.44,16/11/2018
Delivery Units,Adults and Communities,Postage,0060114255,ROYAL MAIL GROUP LIMITED,54.00,16/11/2018
Delivery Units,Adults and Communities,Translation Exp / Interpret,0060094881,PHOTOSYMBOLS,"1,400.00",29/11/2018
Delivery Units,Adults and Communities,Printing-Contract,0060116643,THE ART OF DESIGN,350.00,07/11/2018
Delivery Units,Adults and Communities,Other Transfer Payments to Soc,0060099748,MOTT MACDONALD LTD/CAMBRIDGE EDUCATION,10.00,20/11/2018
Delivery Units,Adults and Communities,Other Transfer Payments to Soc,0060099754,MOTT MACDONALD LTD/CAMBRIDGE EDUCATION,24.00,14/11/2018
Delivery Units,Adults and Communities,Other Transfer Payments to Soc,0060117551,MOTT MACDONALD LTD/CAMBRIDGE EDUCATION,21.00,19/11/2018
Delivery Units,Adults and Communities,Translation Exp / Interpret,0060114704,D.A. LANGUAGES LTD,142.50,01/11/2018
Delivery Units,Adults and Communities,Other Transfer Payments to Soc,0010014466,KORU MEDICAL LTD,173.37,27/11/2018
Delivery Units,Adults and Communities,Other Transfer Payments to Soc,0060101091,KORU MEDICAL LTD,337.42,27/11/2018
Delivery Units,Adults and Communities,Other Transfer Payments to Soc,0060107787,KORU MEDICAL LTD,830.30,21/11/2018
Delivery Units,Adults and Communities,Other Transfer Payments to Soc,0060114320,KORU MEDICAL LTD,"2,381.75",21/11/2018
Delivery Units,Adults and Communities,Other Transfer Payments to Soc,0020040203,PEACEABLE HABITATION LTD,"1,895.40",19/11/2018
Delivery Units,Adults and Communities,Translation Exp / Interpret,0060114613,D.A. LANGUAGES LTD,49.00,01/11/2018
Delivery Units,Adults and Communities,Other Transfer Payments to Soc,0060108540,MAINPAY LTD,300.00,05/11/2018
Delivery Units,Adults and Communities,Other Transfer Payments to Soc,0060109092,MAINPAY LTD,300.00,05/11/2018
Delivery Units,Adults and Communities,Other Transfer Payments to Soc,0060117495,MAINPAY LTD,"1,287.50",29/11/2018
Delivery Units,Adults and Communities,Other Transfer Payments to Soc,0010014480,EDUHEZ LTD,"6,350.00",23/11/2018
Delivery Units,Adults and Communities,Other Transfer Payments to Soc,0010014481,EDUHEZ LTD,"3,150.00",23/11/2018
Delivery Units,Adults and Communities,Other Services,0010014384,KMCA CONSULTANCY SERVICES LTD,"3,977.08",02/11/2018
Delivery Units,Adults and Communities,Other Transfer Payments to Soc,0060115591,ACTION FIRST RECRUITMENT,"2,020.00",22/11/2018
Delivery Units,Adults and Communities,Other Agencies - Third Party P,0090122145,JEWISH CARE,"2,610.96",14/11/2018
Delivery Units,Adults and Communities,Other Agencies - Third Party P,0090122146,JEWISH CARE,"2,356.88",14/11/2018
Delivery Units,Adults and Communities,Other Agencies - Third Party P,0090122147,JEWISH CARE,"2,610.96",14/11/2018
Delivery Units,Adults and Communities,Other Agencies - Third Party P,0090122148,JEWISH CARE,"2,356.88",14/11/2018
Delivery Units,Adults and Communities,Other Agencies - Third Party P,0090122149,JEWISH CARE,"2,610.96",14/11/2018
Delivery Units,Adults and Communities,Other Agencies - Third Party P,0090122150,JEWISH CARE,"2,610.96",14/11/2018
Delivery Units,Adults and Communities,Other Agencies - Third Party P,0090122151,JEWISH CARE,"2,356.88",14/11/2018
Delivery Units,Adults and Communities,Other Agencies - Third Party P,0090122152,JEWISH CARE,"2,356.88",14/11/2018
Delivery Units,Adults and Communities,Other Agencies - Third Party P,0090122153,JEWISH CARE,"2,356.88",14/11/2018
Delivery Units,Adults and Communities,Other Agencies - Third Party P,0090122154,JEWISH CARE,"2,610.96",14/11/2018
Delivery Units,Adults and Communities,Other Agencies - Third Party P,0090122156,JEWISH CARE,"2,610.96",14/11/2018
Delivery Units,Adults and Communities,Other Agencies - Third Party P,0090122157,JEWISH CARE,"2,610.96",14/11/2018
Delivery Units,Adults and Communities,Other Agencies - Third Party P,0090122158,JEWISH CARE,"2,356.88",14/11/2018
Delivery Units,Adults and Communities,Other Agencies - Third Party P,0090122159,JEWISH CARE,"2,356.88",14/11/2018
Delivery Units,Adults and Communities,Other Agencies - Third Party P,0090122500,JEWISH CARE,"2,610.96",14/11/2018
Delivery Units,Adults and Communities,Other Agencies - Third Party P,0090122501,JEWISH CARE,"2,610.96",14/11/2018
Delivery Units,Adults and Communities,Other Agencies - Third Party P,0090122502,JEWISH CARE,"2,610.96",14/11/2018
Delivery Units,Adults and Communities,Other Agencies - Third Party P,0090122503,JEWISH CARE,"2,356.88",14/11/2018
Delivery Units,Adults and Communities,Other Agencies - Third Party P,0090122504,JEWISH CARE,"2,356.88",14/11/2018
Delivery Units,Adults and Communities,Other Agencies - Third Party P,0090122505,JEWISH CARE,"2,356.88",14/11/2018
Delivery Units,Adults and Communities,Other Agencies - Third Party P,0090122533,JEWISH CARE,"2,357.36",14/11/2018
Delivery Units,Adults and Communities,Other Agencies - Third Party P,0090123819,JEWISH CARE,20.76,20/11/2018
Delivery Units,Adults and Communities,Other Agencies - Third Party P,0090123820,JEWISH CARE,252.73,20/11/2018
Delivery Units,Adults and Communities,Other Agencies - Third Party P,0090123821,JEWISH CARE,13.54,20/11/2018
Delivery Units,Adults and Communities,Other Agencies - Third Party P,0090123822,JEWISH CARE,252.73,20/11/2018
Delivery Units,Adults and Communities,Other Agencies - Third Party P,0090123823,JEWISH CARE,252.73,20/11/2018
Delivery Units,Adults and Communities,Other Agencies - Third Party P,0090123824,JEWISH CARE,284.31,20/11/2018
Delivery Units,Adults and Communities,Other Agencies - Third Party P,0090123826,JEWISH CARE,284.31,20/11/2018
Delivery Units,Adults and Communities,Other Agencies - Third Party P,0090123827,JEWISH CARE,284.31,20/11/2018
Delivery Units,Adults and Communities,Other Agencies - Third Party P,0090123828,JEWISH CARE,252.73,20/11/2018
Delivery Units,Adults and Communities,Other Agencies - Third Party P,0090123829,JEWISH CARE,112.32,20/11/2018
Delivery Units,Adults and Communities,Other Agencies - Third Party P,0090123830,JEWISH CARE,125.70,20/11/2018
Delivery Units,Adults and Communities,Other Agencies - Third Party P,0090123831,JEWISH CARE,284.31,20/11/2018
Delivery Units,Adults and Communities,Other Agencies - Third Party P,0090123832,JEWISH CARE,279.80,20/11/2018
Delivery Units,Adults and Communities,Other Agencies - Third Party P,0090123833,JEWISH CARE,204.58,20/11/2018
Delivery Units,Adults and Communities,Other Agencies - Third Party P,0090123834,JEWISH CARE,96.21,20/11/2018
Delivery Units,Adults and Communities,Other Agencies - Third Party P,0090123835,JEWISH CARE,252.73,20/11/2018
Delivery Units,Adults and Communities,Other Agencies - Third Party P,0090123836,JEWISH CARE,252.73,20/11/2018
Delivery Units,Adults and Communities,Other Agencies - Third Party P,0090123837,JEWISH CARE,132.38,20/11/2018
Delivery Units,Adults and Communities,Other Agencies - Third Party P,0090123866,JEWISH CARE,255.96,20/11/2018
Delivery Units,Adults and Communities,Other Agencies - Third Party P,0090124281,JEWISH CARE,191.05,20/11/2018
Delivery Units,Adults and Communities,Other Agencies - Third Party P,0090124282,JEWISH CARE,284.31,20/11/2018
Delivery Units,Adults and Communities,Other Agencies - Third Party P,0090124283,JEWISH CARE,252.73,20/11/2018
Delivery Units,Adults and Communities,Other Agencies - Third Party P,0090124284,JEWISH CARE,252.73,20/11/2018
Delivery Units,Adults and Communities,Other Agencies - Third Party P,0090124285,JEWISH CARE,284.31,20/11/2018
Delivery Units,Adults and Communities,Other Agencies - Third Party P,0090124286,JEWISH CARE,252.73,20/11/2018
Delivery Units,Adults and Communities,Other Agencies - Third Party P,0090124287,JEWISH CARE,284.31,20/11/2018
Delivery Units,Adults and Communities,Other Agencies - Third Party P,0090124288,JEWISH CARE,284.31,20/11/2018
Delivery Units,Adults and Communities,Other Agencies - Third Party P,0090125129,JEWISH CARE,-117.84,23/11/2018
Delivery Units,Adults and Communities,Other Agencies - Third Party P,0090126521,JEWISH CARE,"3,979.43",27/11/2018
Delivery Units,Adults and Communities,Other Agencies - Third Party P,0090127259,JEWISH CARE,"2,356.88",30/11/2018
Delivery Units,Adults and Communities,Other Agencies - Third Party P,0090127260,JEWISH CARE,"2,356.88",30/11/2018
Delivery Units,Adults and Communities,Other Agencies - Third Party P,0090122211,FERNBANK NURSING HOME.,"2,320.20",14/11/2018
Delivery Units,Adults and Communities,Other Agencies - Third Party P,0090122212,FERNBANK NURSING HOME.,"2,320.20",14/11/2018
Delivery Units,Adults and Communities,Other Agencies - Third Party P,0090122213,FERNBANK NURSING HOME.,"2,320.20",14/11/2018
Delivery Units,Adults and Communities,Other Agencies - Third Party P,0090122214,FERNBANK NURSING HOME.,"2,320.20",14/11/2018
Delivery Units,Adults and Communities,Other Agencies - Third Party P,0090122215,FERNBANK NURSING HOME.,"2,335.50",14/11/2018
Delivery Units,Adults and Communities,Other Agencies - Third Party P,0090122216,FERNBANK NURSING HOME.,"2,320.20",14/11/2018
Delivery Units,Adults and Communities,Other Agencies - Third Party P,0090122218,FERNBANK NURSING HOME.,"2,571.30",14/11/2018
Delivery Units,Adults and Communities,Other Agencies - Third Party P,0090122219,FERNBANK NURSING HOME.,"4,221.30",14/11/2018
Delivery Units,Adults and Communities,Other Agencies - Third Party P,0090120336,CEDARS NURSING HOME,"4,428.57",08/11/2018
Delivery Units,Adults and Communities,Other Agencies - Third Party P,0090120337,CEDARS NURSING HOME,"2,657.14",08/11/2018
Delivery Units,Adults and Communities,Other Agencies - Third Party P,0090120338,CEDARS NURSING HOME,"4,207.14",08/11/2018
Delivery Units,Adults and Communities,Other Agencies - Third Party P,0090120339,CEDARS NURSING HOME,"2,397.72",08/11/2018
Delivery Units,Adults and Communities,Other Agencies - Third Party P,0090120340,CEDARS NURSING HOME,"2,964.93",08/11/2018
Delivery Units,Adults and Communities,Other Agencies - Third Party P,0090120341,CEDARS NURSING HOME,"2,655.55",08/11/2018
Delivery Units,Adults and Communities,Other Agencies - Third Party P,0090120342,CEDARS NURSING HOME,"4,207.14",08/11/2018
Delivery Units,Adults and Communities,Other Agencies - Third Party P,0090121438,CEDARS NURSING HOME,"14,142.86",15/11/2018
Delivery Units,Adults and Communities,Other Agencies - Third Party P,0090124393,CEDARS NURSING HOME,"4,071.43",20/11/2018
Delivery Units,Adults and Communities,Other Agencies - Third Party P,0090124394,CEDARS NURSING HOME,"2,569.89",20/11/2018
Delivery Units,Adults and Communities,Other Agencies - Third Party P,0090124395,CEDARS NURSING HOME,"2,869.29",20/11/2018
Delivery Units,Adults and Communities,Other Agencies - Third Party P,0090124396,CEDARS NURSING HOME,"2,320.37",20/11/2018
Delivery Units,Adults and Communities,Other Agencies - Third Party P,0090124397,CEDARS NURSING HOME,"4,071.43",20/11/2018
Delivery Units,Adults and Communities,Other Agencies - Third Party P,0090124398,CEDARS NURSING HOME,"2,571.43",20/11/2018
Delivery Units,Adults and Communities,Other Agencies - Third Party P,0090127269,CEDARS NURSING HOME,"4,285.71",30/11/2018
Delivery Units,Adults and Communities,Other Agencies - Third Party P,0090121454,BUPA NURSING HOMES LTD - ARKLEY,"2,318.76",15/11/2018
Delivery Units,Adults and Communities,Other Agencies - Third Party P,0090121456,BUPA NURSING HOMES LTD - ARKLEY,"2,318.76",15/11/2018
Delivery Units,Adults and Communities,Other Agencies - Third Party P,0090121457,BUPA NURSING HOMES LTD - ARKLEY,"2,318.76",15/11/2018
Delivery Units,Adults and Communities,Other Agencies - Third Party P,0090121458,BUPA NURSING HOMES LTD - ARKLEY,"2,318.76",15/11/2018
Delivery Units,Adults and Communities,Other Agencies - Third Party P,0090119568,AGUDAS ISRAEL HOUSING ASSCTN LTD,"2,736.86",13/11/2018
Delivery Units,Adults and Communities,Other Agencies - Third Party P,0090124415,WESTMINSTER HEALTH CARE LTD,"2,244.13",20/11/2018
Delivery Units,Adults and Communities,Other Agencies - Third Party P,0090119433,THE LEONARD CHESHIRE FOUNDATION,"6,532.14",26/11/2018
Delivery Units,Adults and Communities,Other Agencies - Third Party P,0090122234,LIFESTYLE CARE PLC,"2,397.72",14/11/2018
Delivery Units,Adults and Communities,Other Agencies - Third Party P,0090122236,LIFESTYLE CARE PLC,"2,397.72",14/11/2018
Delivery Units,Adults and Communities,Other Agencies - Third Party P,0090122237,LIFESTYLE CARE PLC,"2,397.72",14/11/2018
Delivery Units,Adults and Communities,Other Agencies - Third Party P,0090122239,LIFESTYLE CARE PLC,"2,655.55",14/11/2018
Delivery Units,Adults and Communities,Other Agencies - Third Party P,0090122240,LIFESTYLE CARE PLC,"2,397.72",14/11/2018
Delivery Units,Adults and Communities,Other Agencies - Third Party P,0090122241,LIFESTYLE CARE PLC,"2,397.72",14/11/2018
Delivery Units,Adults and Communities,Other Agencies - Third Party P,0090122242,LIFESTYLE CARE PLC,"2,397.72",14/11/2018
Delivery Units,Adults and Communities,Other Agencies - Third Party P,0090122243,LIFESTYLE CARE PLC,"2,655.55",14/11/2018
Delivery Units,Adults and Communities,Other Agencies - Third Party P,0090122244,LIFESTYLE CARE PLC,"2,397.72",14/11/2018
Delivery Units,Adults and Communities,Other Agencies - Third Party P,0090124199,LIFESTYLE CARE PLC,"1,245.71",20/11/2018
Delivery Units,Adults and Communities,Other Agencies - Third Party P,0090126515,LIFESTYLE CARE PLC,"2,320.37",27/11/2018
Delivery Units,Adults and Communities,Other Agencies - Third Party P,0090127246,LIFESTYLE CARE PLC,309.62,30/11/2018
Delivery Units,Adults and Communities,Other Agencies - Third Party P,0090127247,LIFESTYLE CARE PLC,"2,012.55",30/11/2018
Delivery Units,Adults and Communities,Other Agencies - Third Party P,0090125109,CARETECH COMMUNITY SERVICES LTD,"4,767.43",29/11/2018
Delivery Units,Adults and Communities,Other Agencies - Third Party P,0090120118,MEERA NURSING HOME LIMITED,"2,907.93",08/11/2018
Delivery Units,Adults and Communities,Other Agencies - Third Party P,0090124172,MEERA NURSING HOME LIMITED,"2,621.27",20/11/2018
Delivery Units,Adults and Communities,Other Agencies - Third Party P,0090124173,MEERA NURSING HOME LIMITED,"2,366.79",20/11/2018
Delivery Units,Adults and Communities,Other Agencies - Third Party P,0090124174,MEERA NURSING HOME LIMITED,"2,814.13",20/11/2018
Delivery Units,Adults and Communities,Other Agencies - Third Party P,0090124178,MEERA NURSING HOME LIMITED,"3,393.60",20/11/2018
Delivery Units,Adults and Communities,Other Agencies - Third Party P,0090124399,NEWCENTURY CARE LTD,"3,214.29",20/11/2018
Delivery Units,Adults and Communities,Other Agencies - Third Party P,0090124401,NEWCENTURY CARE LTD,"3,214.29",20/11/2018
Delivery Units,Adults and Communities,Other Agencies - Third Party P,0090124402,NEWCENTURY CARE LTD,"3,857.14",20/11/2018
Delivery Units,Adults and Communities,Other Agencies - Third Party P,0090124403,NEWCENTURY CARE LTD,"4,200.00",20/11/2018
Delivery Units,Adults and Communities,Other Agencies - Third Party P,0090124404,NEWCENTURY CARE LTD,"4,062.86",20/11/2018
Delivery Units,Adults and Communities,Other Agencies - Third Party P,0090127236,NEWCENTURY CARE LTD,"2,398.56",30/11/2018
Delivery Units,Adults and Communities,Other Agencies - Third Party P,0090127255,NEWCENTURY CARE LTD,"3,642.86",30/11/2018
Delivery Units,Adults and Communities,Other Agencies - Third Party P,0090119477,BUPA CARE HOMES,"3,344.49",07/11/2018
Delivery Units,Adults and Communities,Other Agencies - Third Party P,0090119478,BUPA CARE HOMES,"3,463.92",07/11/2018
Delivery Units,Adults and Communities,Other Agencies - Third Party P,0090119835,BUPA CARE HOMES,"3,865.12",08/11/2018
Delivery Units,Adults and Communities,Other Agencies - Third Party P,0090119836,BUPA CARE HOMES,"3,865.12",08/11/2018
Delivery Units,Adults and Communities,Other Agencies - Third Party P,0090119838,BUPA CARE HOMES,"3,133.81",08/11/2018
Delivery Units,Adults and Communities,Other Agencies - Third Party P,0090123119,BUPA CARE HOMES,"2,484.72",15/11/2018
Delivery Units,Adults and Communities,Other Agencies - Third Party P,0090123120,BUPA CARE HOMES,"3,865.12",15/11/2018
Delivery Units,Adults and Communities,Other Agencies - Third Party P,0090123121,BUPA CARE HOMES,"3,865.12",15/11/2018
Delivery Units,Adults and Communities,Other Agencies - Third Party P,0090123122,BUPA CARE HOMES,"3,865.12",15/11/2018
Delivery Units,Adults and Communities,Other Agencies - Third Party P,0090124176,BUPA CARE HOMES,"3,147.75",20/11/2018
Delivery Units,Adults and Communities,Other Agencies - Third Party P,0090119736,BUPA CARE HOMES,685.71,08/11/2018
Delivery Units,Adults and Communities,Other Agencies - Third Party P,0090120357,BUPA CARE HOMES,"2,399.58",08/11/2018
Delivery Units,Adults and Communities,Other Agencies - Third Party P,0090120358,BUPA CARE HOMES,"3,764.29",08/11/2018
Delivery Units,Adults and Communities,Other Agencies - Third Party P,0090120359,BUPA CARE HOMES,"2,729.11",08/11/2018
Delivery Units,Adults and Communities,Other Agencies - Third Party P,0090120361,BUPA CARE HOMES,"2,399.58",08/11/2018
Delivery Units,Adults and Communities,Other Agencies - Third Party P,0090125267,BUPA CARE HOMES,"2,549.32",29/11/2018
Delivery Units,Adults and Communities,Other Agencies - Third Party P,0090125268,BUPA CARE HOMES,"2,321.92",29/11/2018
Delivery Units,Adults and Communities,Other Agencies - Third Party P,0090125269,BUPA CARE HOMES,"2,094.52",29/11/2018
Delivery Units,Adults and Communities,Other Agencies - Third Party P,0090119573,FOUR SEASONS HEALTH CARE,"1,548.65",06/11/2018
Delivery Units,Adults and Communities,Other Agencies - Third Party P,0090119574,FOUR SEASONS HEALTH CARE,"1,002.07",06/11/2018
Delivery Units,Adults and Communities,Other Agencies - Third Party P,0090119575,FOUR SEASONS HEALTH CARE,"2,291.36",06/11/2018
Delivery Units,Adults and Communities,Other Agencies - Third Party P,0090121429,FOUR SEASONS HEALTH CARE,"2,291.36",12/11/2018
Delivery Units,Adults and Communities,Other Agencies - Third Party P,0090121430,FOUR SEASONS HEALTH CARE,"2,291.36",12/11/2018
Delivery Units,Adults and Communities,Other Agencies - Third Party P,0090121431,FOUR SEASONS HEALTH CARE,"2,550.72",12/11/2018
Delivery Units,Adults and Communities,Other Agencies - Third Party P,0090121432,FOUR SEASONS HEALTH CARE,"2,550.72",12/11/2018
Delivery Units,Adults and Communities,Other Agencies - Third Party P,0090121433,FOUR SEASONS HEALTH CARE,"2,550.72",12/11/2018
Delivery Units,Adults and Communities,Other Agencies - Third Party P,0090121434,FOUR SEASONS HEALTH CARE,"2,550.72",12/11/2018
Delivery Units,Adults and Communities,Other Agencies - Third Party P,0090121435,FOUR SEASONS HEALTH CARE,"2,550.72",12/11/2018
Delivery Units,Adults and Communities,Other Agencies - Third Party P,0090121436,FOUR SEASONS HEALTH CARE,"2,246.44",12/11/2018
Delivery Units,Adults and Communities,Other Agencies - Third Party P,0090121440,FOUR SEASONS HEALTH CARE,"2,291.36",12/11/2018
Delivery Units,Adults and Communities,Other Agencies - Third Party P,0090121442,FOUR SEASONS HEALTH CARE,"2,550.72",12/11/2018
Delivery Units,Adults and Communities,Other Agencies - Third Party P,0090121444,FOUR SEASONS HEALTH CARE,"2,550.72",12/11/2018
Delivery Units,Adults and Communities,Other Agencies - Third Party P,0090121445,FOUR SEASONS HEALTH CARE,"2,291.36",12/11/2018
Delivery Units,Adults and Communities,Other Agencies - Third Party P,0090121447,FOUR SEASONS HEALTH CARE,"2,291.36",12/11/2018
Delivery Units,Adults and Communities,Other Agencies - Third Party P,0090121448,FOUR SEASONS HEALTH CARE,"2,551.52",12/11/2018
Delivery Units,Adults and Communities,Other Agencies - Third Party P,0090121449,FOUR SEASONS HEALTH CARE,"2,291.36",12/11/2018
Delivery Units,Adults and Communities,Other Agencies - Third Party P,0090121450,FOUR SEASONS HEALTH CARE,"2,400.00",12/11/2018
Delivery Units,Adults and Communities,Other Agencies - Third Party P,0090121460,FOUR SEASONS HEALTH CARE,"2,550.72",12/11/2018
Delivery Units,Adults and Communities,Other Agencies - Third Party P,0090121461,FOUR SEASONS HEALTH CARE,"2,291.36",12/11/2018
Delivery Units,Adults and Communities,Other Agencies - Third Party P,0090124219,FOUR SEASONS HEALTH CARE,"2,291.36",20/11/2018
Delivery Units,Adults and Communities,Other Agencies - Third Party P,0090124418,SANCTUARY CARE LTD,"2,490.81",20/11/2018
Delivery Units,Adults and Communities,Other Agencies - Third Party P,0090120354,BUPA CARE HOMES,"2,567.20",14/11/2018
Delivery Units,Adults and Communities,Other Agencies - Third Party P,0090120355,BUPA CARE HOMES,"3,615.84",14/11/2018
Delivery Units,Adults and Communities,Other Agencies - Third Party P,0090124409,BUPA CARE HOMES,"3,441.51",20/11/2018
Delivery Units,Adults and Communities,Other Agencies - Third Party P,0090127256,BUPA CARE HOMES,"3,302.36",30/11/2018
Delivery Units,Adults and Communities,Other Agencies - Third Party P,0090119470,APPLE TREE COURT CARE HOME,"2,657.14",02/11/2018
Delivery Units,Adults and Communities,Other Agencies - Third Party P,0090119471,APPLE TREE COURT CARE HOME,"2,399.58",02/11/2018
Delivery Units,Adults and Communities,Other Agencies - Third Party P,0090119472,APPLE TREE COURT CARE HOME,"4,871.43",02/11/2018
Delivery Units,Adults and Communities,Other Agencies - Third Party P,0090119711,AUTUMN GARDENS,"4,800.00",08/11/2018
Delivery Units,Adults and Communities,Other Agencies - Third Party P,0090119714,AUTUMN GARDENS,"4,800.00",08/11/2018
Delivery Units,Adults and Communities,Other Agencies - Third Party P,0090119843,SUNRISE SENIOR LIVING,"6,382.28",08/11/2018
Delivery Units,Adults and Communities,Other Agencies - Third Party P,0090119100,ABBEY RAVENSCROFT PARK NURSING HOME,"3,428.57",02/11/2018
Delivery Units,Adults and Communities,Other Agencies - Third Party P,0090123895,ABBEY RAVENSCROFT PARK NURSING HOME,"3,214.29",20/11/2018
Delivery Units,Adults and Communities,Other Agencies - Third Party P,0090123896,ABBEY RAVENSCROFT PARK NURSING HOME,"3,214.29",20/11/2018
Delivery Units,Adults and Communities,Other Agencies - Third Party P,0090123898,ABBEY RAVENSCROFT PARK NURSING HOME,"3,214.29",20/11/2018
Delivery Units,Adults and Communities,Other Agencies - Third Party P,0090123900,ABBEY RAVENSCROFT PARK NURSING HOME,"2,698.37",20/11/2018
Delivery Units,Adults and Communities,Other Agencies - Third Party P,0090123901,ABBEY RAVENSCROFT PARK NURSING HOME,"2,698.37",20/11/2018
Delivery Units,Adults and Communities,Other Agencies - Third Party P,0090123903,ABBEY RAVENSCROFT PARK NURSING HOME,"2,698.37",20/11/2018
Delivery Units,Adults and Communities,Other Agencies - Third Party P,0090123904,ABBEY RAVENSCROFT PARK NURSING HOME,"3,214.29",20/11/2018
Delivery Units,Adults and Communities,Other Agencies - Third Party P,0090123906,ABBEY RAVENSCROFT PARK NURSING HOME,"3,000.00",20/11/2018
Delivery Units,Adults and Communities,Other Agencies - Third Party P,0090123910,ABBEY RAVENSCROFT PARK NURSING HOME,"2,698.37",20/11/2018
Delivery Units,Adults and Communities,Other Agencies - Third Party P,0090123911,ABBEY RAVENSCROFT PARK NURSING HOME,"3,679.24",20/11/2018
Delivery Units,Adults and Communities,Other Agencies - Third Party P,0090123914,ABBEY RAVENSCROFT PARK NURSING HOME,"3,214.29",20/11/2018
Delivery Units,Adults and Communities,Other Agencies - Third Party P,0090123915,ABBEY RAVENSCROFT PARK NURSING HOME,"2,698.37",20/11/2018
Delivery Units,Adults and Communities,Other Agencies - Third Party P,0090120104,CARLTON COURT (TLC GROUP),"4,428.57",08/11/2018
Delivery Units,Adults and Communities,Other Agencies - Third Party P,0090120105,CARLTON COURT (TLC GROUP),"3,736.61",08/11/2018
Delivery Units,Adults and Communities,Other Agencies - Third Party P,0090120108,CARLTON COURT (TLC GROUP),"5,314.29",08/11/2018
Delivery Units,Adults and Communities,Other Agencies - Third Party P,0090120110,CARLTON COURT (TLC GROUP),"3,100.00",08/11/2018
Delivery Units,Adults and Communities,Other Agencies - Third Party P,0090123200,CARLTON COURT (TLC GROUP),"4,285.71",15/11/2018
Delivery Units,Adults and Communities,Other Agencies - Third Party P,0090123201,CARLTON COURT (TLC GROUP),"3,616.07",15/11/2018
Delivery Units,Adults and Communities,Other Agencies - Third Party P,0090123204,CARLTON COURT (TLC GROUP),"5,142.86",15/11/2018
Delivery Units,Adults and Communities,Other Agencies - Third Party P,0090123206,CARLTON COURT (TLC GROUP),"2,369.79",15/11/2018
Delivery Units,Adults and Communities,Other Agencies - Third Party P,0090123207,CARLTON COURT (TLC GROUP),"3,000.00",15/11/2018
Delivery Units,Adults and Communities,Other Agencies - Third Party P,0090124198,CARLTON COURT (TLC GROUP),"-3,942.86",20/11/2018
Delivery Units,Adults and Communities,Other Agencies - Third Party P,0090123238,HUSKARDS NEW CARE LTD,"2,320.37",15/11/2018
Delivery Units,Adults and Communities,Other Agencies - Third Party P,0090119102,ASHTON LODGE CARE CENTRE,"12,378.51",02/11/2018
Delivery Units,Adults and Communities,Other Agencies - Third Party P,0090119451,ASHTON LODGE CARE CENTRE,"9,656.57",02/11/2018
Delivery Units,Adults and Communities,Other Agencies - Third Party P,0090119452,ASHTON LODGE CARE CENTRE,"-2,172.73",02/11/2018
Delivery Units,Adults and Communities,Other Agencies - Third Party P,0090120099,ASHTON LODGE CARE CENTRE,-933.87,15/11/2018
Delivery Units,Adults and Communities,Other Agencies - Third Party P,0090123089,ASHTON LODGE CARE CENTRE,"2,892.30",15/11/2018
Delivery Units,Adults and Communities,Other Agencies - Third Party P,0090123091,ASHTON LODGE CARE CENTRE,"3,708.09",15/11/2018
Delivery Units,Adults and Communities,Other Agencies - Third Party P,0090123092,ASHTON LODGE CARE CENTRE,"3,686.01",15/11/2018
Delivery Units,Adults and Communities,Other Agencies - Third Party P,0090123094,ASHTON LODGE CARE CENTRE,"3,467.91",15/11/2018
Delivery Units,Adults and Communities,Other Agencies - Third Party P,0090123095,ASHTON LODGE CARE CENTRE,"5,090.40",15/11/2018
Delivery Units,Adults and Communities,Other Agencies - Third Party P,0090123096,ASHTON LODGE CARE CENTRE,"2,978.36",15/11/2018
Delivery Units,Adults and Communities,Other Agencies - Third Party P,0090123097,ASHTON LODGE CARE CENTRE,"2,529.60",15/11/2018
Delivery Units,Adults and Communities,Other Agencies - Third Party P,0090123099,ASHTON LODGE CARE CENTRE,"3,086.96",15/11/2018
Delivery Units,Adults and Communities,Other Agencies - Third Party P,0090123100,ASHTON LODGE CARE CENTRE,"3,621.21",15/11/2018
Delivery Units,Adults and Communities,Other Agencies - Third Party P,0090123101,ASHTON LODGE CARE CENTRE,"3,393.60",15/11/2018
Delivery Units,Adults and Communities,Other Agencies - Third Party P,0090123103,ASHTON LODGE CARE CENTRE,"2,801.61",15/11/2018
Delivery Units,Adults and Communities,Other Agencies - Third Party P,0090123104,ASHTON LODGE CARE CENTRE,"3,031.67",15/11/2018
Delivery Units,Adults and Communities,Other Agencies - Third Party P,0090123105,ASHTON LODGE CARE CENTRE,"2,801.61",15/11/2018
Delivery Units,Adults and Communities,Other Agencies - Third Party P,0090123106,ASHTON LODGE CARE CENTRE,"3,031.67",15/11/2018
Delivery Units,Adults and Communities,Other Agencies - Third Party P,0090123107,ASHTON LODGE CARE CENTRE,"3,027.51",15/11/2018
Delivery Units,Adults and Communities,Other Agencies - Third Party P,0090123108,ASHTON LODGE CARE CENTRE,"3,271.84",15/11/2018
Delivery Units,Adults and Communities,Other Agencies - Third Party P,0090123109,ASHTON LODGE CARE CENTRE,"3,467.91",15/11/2018
Delivery Units,Adults and Communities,Other Agencies - Third Party P,0090123110,ASHTON LODGE CARE CENTRE,"3,406.93",15/11/2018
Delivery Units,Adults and Communities,Other Agencies - Third Party P,0090123111,ASHTON LODGE CARE CENTRE,"3,249.77",15/11/2018
Delivery Units,Adults and Communities,Other Agencies - Third Party P,0090123112,ASHTON LODGE CARE CENTRE,"3,467.91",15/11/2018
Delivery Units,Adults and Communities,Other Agencies - Third Party P,0090123113,ASHTON LODGE CARE CENTRE,"3,489.94",15/11/2018
Delivery Units,Adults and Communities,Other Agencies - Third Party P,0090123652,ASHTON LODGE CARE CENTRE,"2,978.36",16/11/2018
Delivery Units,Adults and Communities,Other Agencies - Third Party P,0090124405,WESTGATE HOUSE CARE CENTRE,"3,605.57",20/11/2018
Delivery Units,Adults and Communities,Other Agencies - Third Party P,0090118888,NHS BARNET CCG,"24,328.25",02/11/2018
Delivery Units,Adults and Communities,Other Agencies - Third Party P,0090118892,NHS BARNET CCG,"31,266.94",02/11/2018
Delivery Units,Adults and Communities,Other Agencies - Third Party P,0090118894,NHS BARNET CCG,"9,851.23",02/11/2018
Delivery Units,Adults and Communities,Other Agencies - Third Party P,0090118895,NHS BARNET CCG,"7,195.68",02/11/2018
Delivery Units,Adults and Communities,Other Agencies - Third Party P,0090118896,NHS BARNET CCG,"10,365.21",02/11/2018
Delivery Units,Adults and Communities,Other Agencies - Third Party P,0090125127,MURRAYFIELD CARE HOME,"2,211.81",22/11/2018
Delivery Units,Adults and Communities,Other Agencies - Third Party P,0090123116,FOUR SEASONS HEALTH CARE (NO.4) LTD,"2,004.00",15/11/2018
Delivery Units,Adults and Communities,Other Agencies - Third Party P,0090127241,FOUR SEASONS HEALTH CARE (NO.4) LTD,"1,216.71",30/11/2018
Delivery Units,Adults and Communities,Other Agencies - Third Party P,0090123214,KARUNA MANOR,"4,071.43",15/11/2018
Delivery Units,Adults and Communities,Other Agencies - Third Party P,0090123648,CHISWICK HOUSE,"3,214.20",29/11/2018
Delivery Units,Adults and Communities,Other Agencies - Third Party P,0090127248,ADARA HEALTHCARE LTD,"3,400.00",30/11/2018
Delivery Units,Adults and Communities,Other Agencies - Third Party P,0090124389,AARANDALE MANOR CARE HOME,"2,569.89",20/11/2018
Delivery Units,Adults and Communities,Other Agencies - Third Party P,0090124390,AARANDALE MANOR CARE HOME,"4,285.71",20/11/2018
Delivery Units,Adults and Communities,Other Agencies - Third Party P,0090124391,AARANDALE MANOR CARE HOME,"2,487.64",20/11/2018
Delivery Units,Adults and Communities,Other Agencies - Third Party P,0090123665,BONDCARE LONDON (THE FOUNTAINS),"2,138.00",16/11/2018
Delivery Units,Adults and Communities,Other Agencies - Third Party P,0090125565,LADY OF THE VALE NURSING HOME,"3,642.86",23/11/2018
Delivery Units,Adults and Communities,Other Agencies - Third Party P,0090125566,LADY OF THE VALE NURSING HOME,"3,764.29",23/11/2018
Delivery Units,Adults and Communities,Other Agencies - Third Party P,0090119093,ST JOHNS WOOD CARE CENTRE,"2,856.21",02/11/2018
Delivery Units,Adults and Communities,Other Agencies - Third Party P,0090127253,ST JOHNS WOOD CARE CENTRE,"2,764.07",30/11/2018
Delivery Units,Adults and Communities,Other Agencies - Third Party P,0090120363,LANSGLADE HOMES LIMITED,"3,338.68",08/11/2018
Delivery Units,Adults and Communities,Other Agencies - Third Party P,0090120364,LANSGLADE HOMES LIMITED,"2,635.80",08/11/2018
Delivery Units,Adults and Communities,Other Agencies - Third Party P,0090120365,LANSGLADE HOMES LIMITED,"2,723.66",08/11/2018
Delivery Units,Adults and Communities,Other Agencies - Third Party P,0090119109,WESTMINSTER HEALTH CARE LTD,"2,235.94",02/11/2018
Delivery Units,Adults and Communities,Other Agencies - Third Party P,0090119110,WESTMINSTER HEALTH CARE LTD,"2,219.61",02/11/2018
Delivery Units,Adults and Communities,Other Agencies - Third Party P,0090119111,WESTMINSTER HEALTH CARE LTD,"2,235.94",02/11/2018
Delivery Units,Adults and Communities,Other Agencies - Third Party P,0090119115,WESTMINSTER HEALTH CARE LTD,-826.59,02/11/2018
Delivery Units,Adults and Communities,Other Agencies - Third Party P,0090121420,WESTMINSTER HEALTH CARE LTD,"2,293.60",14/11/2018
Delivery Units,Adults and Communities,Other Agencies - Third Party P,0090121421,WESTMINSTER HEALTH CARE LTD,"2,310.48",14/11/2018
Delivery Units,Adults and Communities,Other Agencies - Third Party P,0090119442,SAGE NURSING HOME,"4,207.14",08/11/2018
Delivery Units,Adults and Communities,Other Agencies - Third Party P,0090119444,SAGE NURSING HOME,"5,314.29",08/11/2018
Delivery Units,Adults and Communities,Other Agencies - Third Party P,0090119446,SAGE NURSING HOME,"2,399.56",08/11/2018
Delivery Units,Adults and Communities,Other Agencies - Third Party P,0090119448,SAGE NURSING HOME,"2,788.32",08/11/2018
Delivery Units,Adults and Communities,Other Agencies - Third Party P,0090119449,SAGE NURSING HOME,"2,517.60",08/11/2018
Delivery Units,Adults and Communities,Other Agencies - Third Party P,0090119450,SAGE NURSING HOME,"2,517.60",08/11/2018
Delivery Units,Adults and Communities,Other Agencies - Third Party P,0090125599,SAGE NURSING HOME,"2,436.39",23/11/2018
Delivery Units,Adults and Communities,Other Agencies - Third Party P,0090119950,DR FRENCH MEMORIAL HOME LTD,"3,428.57",08/11/2018
Delivery Units,Adults and Communities,Other Agencies - Third Party P,0090119951,DR FRENCH MEMORIAL HOME LTD,"3,428.57",08/11/2018
Delivery Units,Adults and Communities,Other Agencies - Third Party P,0090119952,DR FRENCH MEMORIAL HOME LTD,"3,428.57",08/11/2018
Delivery Units,Adults and Communities,Other Agencies - Third Party P,0090119953,DR FRENCH MEMORIAL HOME LTD,"2,468.57",08/11/2018
Delivery Units,Adults and Communities,Other Agencies - Third Party P,0090119954,DR FRENCH MEMORIAL HOME LTD,"3,428.57",08/11/2018
Delivery Units,Adults and Communities,Other Agencies - Third Party P,0090119955,DR FRENCH MEMORIAL HOME LTD,"3,535.71",08/11/2018
Delivery Units,Adults and Communities,Other Agencies - Third Party P,0090119956,DR FRENCH MEMORIAL HOME LTD,"3,542.86",08/11/2018
Delivery Units,Adults and Communities,Other Agencies - Third Party P,0090119957,DR FRENCH MEMORIAL HOME LTD,"3,542.86",08/11/2018
Delivery Units,Adults and Communities,Other Agencies - Third Party P,0090119958,DR FRENCH MEMORIAL HOME LTD,"3,542.86",08/11/2018
Delivery Units,Adults and Communities,Other Agencies - Third Party P,0090119959,DR FRENCH MEMORIAL HOME LTD,"3,653.57",08/11/2018
Delivery Units,Adults and Communities,Other Agencies - Third Party P,0090119960,DR FRENCH MEMORIAL HOME LTD,"2,550.86",08/11/2018
Delivery Units,Adults and Communities,Other Agencies - Third Party P,0090119961,DR FRENCH MEMORIAL HOME LTD,"3,542.86",08/11/2018
Delivery Units,Adults and Communities,Other Agencies - Third Party P,0090123222,DR FRENCH MEMORIAL HOME LTD,"3,428.57",15/11/2018
Delivery Units,Adults and Communities,Other Agencies - Third Party P,0090123223,DR FRENCH MEMORIAL HOME LTD,"2,468.57",15/11/2018
Delivery Units,Adults and Communities,Other Agencies - Third Party P,0090123224,DR FRENCH MEMORIAL HOME LTD,"3,428.57",15/11/2018
Delivery Units,Adults and Communities,Other Agencies - Third Party P,0090123225,DR FRENCH MEMORIAL HOME LTD,"3,428.57",15/11/2018
Delivery Units,Adults and Communities,Other Agencies - Third Party P,0090123226,DR FRENCH MEMORIAL HOME LTD,"3,428.57",15/11/2018
Delivery Units,Adults and Communities,Other Agencies - Third Party P,0090123227,DR FRENCH MEMORIAL HOME LTD,"3,535.71",15/11/2018
Delivery Units,Adults and Communities,Other Agencies - Third Party P,0090125579,ROSEACRES CARE HOME LIMITED,"3,214.29",26/11/2018
Delivery Units,Adults and Communities,Other Agencies - Third Party P,0090125580,ROSEACRES CARE HOME LIMITED,"2,468.57",26/11/2018
Delivery Units,Adults and Communities,Other Agencies - Third Party P,0090125581,ROSEACRES CARE HOME LIMITED,"2,468.57",26/11/2018
Delivery Units,Adults and Communities,Other Agencies - Third Party P,0090125583,ROSEACRES CARE HOME LIMITED,"3,642.86",26/11/2018
Delivery Units,Adults and Communities,Other Agencies - Third Party P,0090125584,ROSEACRES CARE HOME LIMITED,"2,297.14",26/11/2018
Delivery Units,Adults and Communities,Other Agencies - Third Party P,0090125585,ROSEACRES CARE HOME LIMITED,"2,468.57",26/11/2018
Delivery Units,Adults and Communities,Other Agencies - Third Party P,0090125586,ROSEACRES CARE HOME LIMITED,"2,468.57",26/11/2018
Delivery Units,Adults and Communities,Other Agencies - Third Party P,0090125587,ROSEACRES CARE HOME LIMITED,"2,468.57",26/11/2018
Delivery Units,Adults and Communities,Other Agencies - Third Party P,0090125589,ROSEACRES CARE HOME LIMITED,"2,988.53",26/11/2018
Delivery Units,Adults and Communities,Other Agencies - Third Party P,0090125591,ROSEACRES CARE HOME LIMITED,"3,214.29",26/11/2018
Delivery Units,Adults and Communities,Other Agencies - Third Party P,0090125592,ROSEACRES CARE HOME LIMITED,"3,214.29",26/11/2018
Delivery Units,Adults and Communities,Other Agencies - Third Party P,0090125593,ROSEACRES CARE HOME LIMITED,"2,468.57",26/11/2018
Delivery Units,Adults and Communities,Other Agencies - Third Party P,0090125595,ROSEACRES CARE HOME LIMITED,"3,214.29",26/11/2018
Delivery Units,Adults and Communities,Other Agencies - Third Party P,0090123875,ELEANOR PALMER TRUST NO 2 A/C.,"2,520.07",20/11/2018
Delivery Units,Adults and Communities,Other Agencies - Third Party P,0090123876,ELEANOR PALMER TRUST NO 2 A/C.,"-1,008.12",20/11/2018
Delivery Units,Adults and Communities,Other Agencies - Third Party P,0090123877,ELEANOR PALMER TRUST NO 2 A/C.,"3,286.93",20/11/2018
Delivery Units,Adults and Communities,Other Agencies - Third Party P,0090123878,ELEANOR PALMER TRUST NO 2 A/C.,"3,286.93",20/11/2018
Delivery Units,Adults and Communities,Other Agencies - Third Party P,0090123879,ELEANOR PALMER TRUST NO 2 A/C.,"2,520.30",20/11/2018
Delivery Units,Adults and Communities,Other Agencies - Third Party P,0090123880,ELEANOR PALMER TRUST NO 2 A/C.,"3,286.93",20/11/2018
Delivery Units,Adults and Communities,Other Agencies - Third Party P,0090123881,ELEANOR PALMER TRUST NO 2 A/C.,"2,468.57",20/11/2018
Delivery Units,Adults and Communities,Other Agencies - Third Party P,0090123882,ELEANOR PALMER TRUST NO 2 A/C.,"2,315.14",20/11/2018
Delivery Units,Adults and Communities,Other Agencies - Third Party P,0090123883,ELEANOR PALMER TRUST NO 2 A/C.,"3,286.93",20/11/2018
Delivery Units,Adults and Communities,Other Agencies - Third Party P,0090123884,ELEANOR PALMER TRUST NO 2 A/C.,"3,286.93",20/11/2018
Delivery Units,Adults and Communities,Other Agencies - Third Party P,0090123885,ELEANOR PALMER TRUST NO 2 A/C.,"3,286.93",20/11/2018
Delivery Units,Adults and Communities,Other Agencies - Third Party P,0090123886,ELEANOR PALMER TRUST NO 2 A/C.,"2,315.14",20/11/2018
Delivery Units,Adults and Communities,Other Agencies - Third Party P,0090123887,ELEANOR PALMER TRUST NO 2 A/C.,-642.86,20/11/2018
Delivery Units,Adults and Communities,Other Agencies - Third Party P,0090123888,ELEANOR PALMER TRUST NO 2 A/C.,"2,520.30",20/11/2018
Delivery Units,Adults and Communities,Other Agencies - Third Party P,0090123889,ELEANOR PALMER TRUST NO 2 A/C.,"3,286.93",20/11/2018
Delivery Units,Adults and Communities,Other Agencies - Third Party P,0090123890,ELEANOR PALMER TRUST NO 2 A/C.,"3,286.93",20/11/2018
Delivery Units,Adults and Communities,Other Agencies - Third Party P,0090119482,ELM PARK LODGE,"3,246.32",07/11/2018
Delivery Units,Adults and Communities,Other Agencies - Third Party P,0090119483,ELM PARK LODGE,"1,778.29",07/11/2018
Delivery Units,Adults and Communities,Other Agencies - Third Party P,0090123660,TORRINGTON HOMES,"2,369.79",16/11/2018
Delivery Units,Adults and Communities,Other Agencies - Third Party P,0090123661,TORRINGTON HOMES,"2,176.89",16/11/2018
Delivery Units,Adults and Communities,Other Agencies - Third Party P,0090123662,TORRINGTON HOMES,"2,369.79",16/11/2018
Delivery Units,Adults and Communities,Other Agencies - Third Party P,0090123663,TORRINGTON HOMES,"2,369.79",16/11/2018
Delivery Units,Adults and Communities,Other Agencies - Third Party P,0090119681,THE GRANGE,"2,304.00",08/11/2018
Delivery Units,Adults and Communities,Other Agencies - Third Party P,0090119682,THE GRANGE,"2,600.00",08/11/2018
Delivery Units,Adults and Communities,Other Agencies - Third Party P,0090123899,ELMHURST RESIDENTIAL HOME,"3,214.29",20/11/2018
Delivery Units,Adults and Communities,Other Agencies - Third Party P,0080020486,JEWISH CARE,"9,661.12",08/11/2018
Delivery Units,Adults and Communities,Other Agencies - Third Party P,0080020487,JEWISH CARE,"9,277.76",08/11/2018
Delivery Units,Adults and Communities,Other Agencies - Third Party P,0080020488,JEWISH CARE,"22,385.61",08/11/2018
Delivery Units,Adults and Communities,Other Agencies - Third Party P,0090122139,JEWISH CARE,"2,459.96",14/11/2018
Delivery Units,Adults and Communities,Other Agencies - Third Party P,0090122140,JEWISH CARE,"2,459.96",14/11/2018
Delivery Units,Adults and Communities,Other Agencies - Third Party P,0090122141,JEWISH CARE,"2,260.40",14/11/2018
Delivery Units,Adults and Communities,Other Agencies - Third Party P,0090122142,JEWISH CARE,"2,459.96",14/11/2018
Delivery Units,Adults and Communities,Other Agencies - Third Party P,0090122144,JEWISH CARE,"2,610.96",14/11/2018
Delivery Units,Adults and Communities,Other Agencies - Third Party P,0090122450,JEWISH CARE,"2,456.36",14/11/2018
Delivery Units,Adults and Communities,Other Agencies - Third Party P,0090122451,JEWISH CARE,"2,257.08",14/11/2018
Delivery Units,Adults and Communities,Other Agencies - Third Party P,0090122452,JEWISH CARE,"4,246.20",14/11/2018
Delivery Units,Adults and Communities,Other Agencies - Third Party P,0090122453,JEWISH CARE,"2,257.08",14/11/2018
Delivery Units,Adults and Communities,Other Agencies - Third Party P,0090122454,JEWISH CARE,"2,456.36",14/11/2018
Delivery Units,Adults and Communities,Other Agencies - Third Party P,0090122455,JEWISH CARE,"2,257.08",14/11/2018
Delivery Units,Adults and Communities,Other Agencies - Third Party P,0090122456,JEWISH CARE,"2,257.08",14/11/2018
Delivery Units,Adults and Communities,Other Agencies - Third Party P,0090122458,JEWISH CARE,"2,257.08",14/11/2018
Delivery Units,Adults and Communities,Other Agencies - Third Party P,0090122459,JEWISH CARE,"2,456.36",14/11/2018
Delivery Units,Adults and Communities,Other Agencies - Third Party P,0090122460,JEWISH CARE,"2,257.08",14/11/2018
Delivery Units,Adults and Communities,Other Agencies - Third Party P,0090122461,JEWISH CARE,"2,257.08",14/11/2018
Delivery Units,Adults and Communities,Other Agencies - Third Party P,0090122462,JEWISH CARE,"2,257.76",14/11/2018
Delivery Units,Adults and Communities,Other Agencies - Third Party P,0090122463,JEWISH CARE,"2,456.36",14/11/2018
Delivery Units,Adults and Communities,Other Agencies - Third Party P,0090122464,JEWISH CARE,"2,254.84",14/11/2018
Delivery Units,Adults and Communities,Other Agencies - Third Party P,0090122466,JEWISH CARE,"2,254.84",14/11/2018
Delivery Units,Adults and Communities,Other Agencies - Third Party P,0090122467,JEWISH CARE,"2,254.84",14/11/2018
Delivery Units,Adults and Communities,Other Agencies - Third Party P,0090122468,JEWISH CARE,"2,456.36",14/11/2018
Delivery Units,Adults and Communities,Other Agencies - Third Party P,0090122469,JEWISH CARE,"2,456.36",14/11/2018
Delivery Units,Adults and Communities,Other Agencies - Third Party P,0090122470,JEWISH CARE,"2,254.84",14/11/2018
Delivery Units,Adults and Communities,Other Agencies - Third Party P,0090122471,JEWISH CARE,"2,254.84",14/11/2018
Delivery Units,Adults and Communities,Other Agencies - Third Party P,0090122472,JEWISH CARE,"2,456.36",14/11/2018
Delivery Units,Adults and Communities,Other Agencies - Third Party P,0090122473,JEWISH CARE,"2,456.36",14/11/2018
Delivery Units,Adults and Communities,Other Agencies - Third Party P,0090122474,JEWISH CARE,"2,456.36",14/11/2018
Delivery Units,Adults and Communities,Other Agencies - Third Party P,0090122475,JEWISH CARE,"4,733.40",14/11/2018
Delivery Units,Adults and Communities,Other Agencies - Third Party P,0090122476,JEWISH CARE,"2,254.84",14/11/2018
Delivery Units,Adults and Communities,Other Agencies - Third Party P,0090122477,JEWISH CARE,"2,254.84",14/11/2018
Delivery Units,Adults and Communities,Other Agencies - Third Party P,0090122478,JEWISH CARE,"2,456.36",14/11/2018
Delivery Units,Adults and Communities,Other Agencies - Third Party P,0090122479,JEWISH CARE,"2,456.36",14/11/2018
Delivery Units,Adults and Communities,Other Agencies - Third Party P,0090122480,JEWISH CARE,"2,456.36",14/11/2018
Delivery Units,Adults and Communities,Other Agencies - Third Party P,0090122481,JEWISH CARE,"2,254.84",14/11/2018
Delivery Units,Adults and Communities,Other Agencies - Third Party P,0090122482,JEWISH CARE,"2,254.84",14/11/2018
Delivery Units,Adults and Communities,Other Agencies - Third Party P,0090122483,JEWISH CARE,"2,456.36",14/11/2018
Delivery Units,Adults and Communities,Other Agencies - Third Party P,0090122485,JEWISH CARE,"2,456.36",14/11/2018
Delivery Units,Adults and Communities,Other Agencies - Third Party P,0090122487,JEWISH CARE,"2,135.44",14/11/2018
Delivery Units,Adults and Communities,Other Agencies - Third Party P,0090122491,JEWISH CARE,"2,459.96",14/11/2018
Delivery Units,Adults and Communities,Other Agencies - Third Party P,0090122493,JEWISH CARE,"3,258.24",14/11/2018
Delivery Units,Adults and Communities,Other Agencies - Third Party P,0090122494,JEWISH CARE,"2,459.96",14/11/2018
Delivery Units,Adults and Communities,Other Agencies - Third Party P,0090122496,JEWISH CARE,"2,459.96",14/11/2018
Delivery Units,Adults and Communities,Other Agencies - Third Party P,0090122498,JEWISH CARE,"2,459.96",14/11/2018
Delivery Units,Adults and Communities,Other Agencies - Third Party P,0090122506,JEWISH CARE,"2,455.12",14/11/2018
Delivery Units,Adults and Communities,Other Agencies - Third Party P,0090122507,JEWISH CARE,"2,446.35",14/11/2018
Delivery Units,Adults and Communities,Other Agencies - Third Party P,0090122508,JEWISH CARE,"2,455.12",14/11/2018
Delivery Units,Adults and Communities,Other Agencies - Third Party P,0090122509,JEWISH CARE,"2,455.12",14/11/2018
Delivery Units,Adults and Communities,Other Agencies - Third Party P,0090122510,JEWISH CARE,"2,455.12",14/11/2018
Delivery Units,Adults and Communities,Other Agencies - Third Party P,0090122511,JEWISH CARE,"2,455.12",14/11/2018
Delivery Units,Adults and Communities,Other Agencies - Third Party P,0090122512,JEWISH CARE,"3,455.08",14/11/2018
Delivery Units,Adults and Communities,Other Agencies - Third Party P,0090122513,JEWISH CARE,"2,455.12",14/11/2018
Delivery Units,Adults and Communities,Other Agencies - Third Party P,0090122514,JEWISH CARE,"2,255.96",14/11/2018
Delivery Units,Adults and Communities,Other Agencies - Third Party P,0090122515,JEWISH CARE,"2,455.12",14/11/2018
Delivery Units,Adults and Communities,Other Agencies - Third Party P,0090122516,JEWISH CARE,"2,455.12",14/11/2018
Delivery Units,Adults and Communities,Other Agencies - Third Party P,0090122517,JEWISH CARE,"2,104.39",14/11/2018
Delivery Units,Adults and Communities,Other Agencies - Third Party P,0090122518,JEWISH CARE,"2,457.80",14/11/2018
Delivery Units,Adults and Communities,Other Agencies - Third Party P,0090122519,JEWISH CARE,"2,457.80",14/11/2018
Delivery Units,Adults and Communities,Other Agencies - Third Party P,0090122520,JEWISH CARE,"2,457.80",14/11/2018
Delivery Units,Adults and Communities,Other Agencies - Third Party P,0090122521,JEWISH CARE,"2,258.40",14/11/2018
Delivery Units,Adults and Communities,Other Agencies - Third Party P,0090122522,JEWISH CARE,"2,457.80",14/11/2018
Delivery Units,Adults and Communities,Other Agencies - Third Party P,0090122523,JEWISH CARE,"2,457.80",14/11/2018
Delivery Units,Adults and Communities,Other Agencies - Third Party P,0090122524,JEWISH CARE,"2,258.40",14/11/2018
Delivery Units,Adults and Communities,Other Agencies - Third Party P,0090122525,JEWISH CARE,"2,457.80",14/11/2018
Delivery Units,Adults and Communities,Other Agencies - Third Party P,0090122527,JEWISH CARE,"2,457.80",14/11/2018
Delivery Units,Adults and Communities,Other Agencies - Third Party P,0090122529,JEWISH CARE,"2,258.40",14/11/2018
Delivery Units,Adults and Communities,Other Agencies - Third Party P,0090122531,JEWISH CARE,"2,457.80",14/11/2018
Delivery Units,Adults and Communities,Other Agencies - Third Party P,0090122532,JEWISH CARE,"2,457.80",14/11/2018
Delivery Units,Adults and Communities,Other Agencies - Third Party P,0090123818,JEWISH CARE,160.00,20/11/2018
Delivery Units,Adults and Communities,Other Agencies - Third Party P,0090123838,JEWISH CARE,268.93,20/11/2018
Delivery Units,Adults and Communities,Other Agencies - Third Party P,0090123839,JEWISH CARE,268.93,20/11/2018
Delivery Units,Adults and Communities,Other Agencies - Third Party P,0090123840,JEWISH CARE,268.93,20/11/2018
Delivery Units,Adults and Communities,Other Agencies - Third Party P,0090123841,JEWISH CARE,268.93,20/11/2018
Delivery Units,Adults and Communities,Other Agencies - Third Party P,0090123842,JEWISH CARE,268.93,20/11/2018
Delivery Units,Adults and Communities,Other Agencies - Third Party P,0090123843,JEWISH CARE,268.93,20/11/2018
Delivery Units,Adults and Communities,Other Agencies - Third Party P,0090123844,JEWISH CARE,371.78,20/11/2018
Delivery Units,Adults and Communities,Other Agencies - Third Party P,0090123845,JEWISH CARE,268.93,20/11/2018
Delivery Units,Adults and Communities,Other Agencies - Third Party P,0090123846,JEWISH CARE,251.63,20/11/2018
Delivery Units,Adults and Communities,Other Agencies - Third Party P,0090123847,JEWISH CARE,268.93,20/11/2018
Delivery Units,Adults and Communities,Other Agencies - Third Party P,0090123848,JEWISH CARE,150.83,20/11/2018
Delivery Units,Adults and Communities,Other Agencies - Third Party P,0090123849,JEWISH CARE,268.93,20/11/2018
Delivery Units,Adults and Communities,Other Agencies - Third Party P,0090123850,JEWISH CARE,126.64,20/11/2018
Delivery Units,Adults and Communities,Other Agencies - Third Party P,0090123851,JEWISH CARE,287.02,20/11/2018
Delivery Units,Adults and Communities,Other Agencies - Third Party P,0090123852,JEWISH CARE,287.02,20/11/2018
Delivery Units,Adults and Communities,Other Agencies - Third Party P,0090123853,JEWISH CARE,287.02,20/11/2018
Delivery Units,Adults and Communities,Other Agencies - Third Party P,0090123854,JEWISH CARE,268.10,20/11/2018
Delivery Units,Adults and Communities,Other Agencies - Third Party P,0090123855,JEWISH CARE,287.02,20/11/2018
Delivery Units,Adults and Communities,Other Agencies - Third Party P,0090123856,JEWISH CARE,287.02,20/11/2018
Delivery Units,Adults and Communities,Other Agencies - Third Party P,0090123857,JEWISH CARE,268.10,20/11/2018
Delivery Units,Adults and Communities,Other Agencies - Third Party P,0090123858,JEWISH CARE,287.02,20/11/2018
Delivery Units,Adults and Communities,Other Agencies - Third Party P,0090123860,JEWISH CARE,287.02,20/11/2018
Delivery Units,Adults and Communities,Other Agencies - Third Party P,0090123862,JEWISH CARE,268.10,20/11/2018
Delivery Units,Adults and Communities,Other Agencies - Third Party P,0090123864,JEWISH CARE,287.02,20/11/2018
Delivery Units,Adults and Communities,Other Agencies - Third Party P,0090123865,JEWISH CARE,287.02,20/11/2018
Delivery Units,Adults and Communities,Other Agencies - Third Party P,0090124204,JEWISH CARE,227.28,20/11/2018
Delivery Units,Adults and Communities,Other Agencies - Third Party P,0090124205,JEWISH CARE,259.19,20/11/2018
Delivery Units,Adults and Communities,Other Agencies - Third Party P,0090124206,JEWISH CARE,237.25,20/11/2018
Delivery Units,Adults and Communities,Other Agencies - Third Party P,0090124207,JEWISH CARE,259.19,20/11/2018
Delivery Units,Adults and Communities,Other Agencies - Third Party P,0090124208,JEWISH CARE,98.59,20/11/2018
Delivery Units,Adults and Communities,Other Agencies - Third Party P,0090124209,JEWISH CARE,277.28,20/11/2018
Delivery Units,Adults and Communities,Other Agencies - Third Party P,0090124210,JEWISH CARE,259.19,20/11/2018
Delivery Units,Adults and Communities,Other Agencies - Third Party P,0090124211,JEWISH CARE,259.19,20/11/2018
Delivery Units,Adults and Communities,Other Agencies - Third Party P,0090124212,JEWISH CARE,173.76,20/11/2018
Delivery Units,Adults and Communities,Other Agencies - Third Party P,0090124213,JEWISH CARE,259.19,20/11/2018
Delivery Units,Adults and Communities,Other Agencies - Third Party P,0090124214,JEWISH CARE,259.19,20/11/2018
Delivery Units,Adults and Communities,Other Agencies - Third Party P,0090124215,JEWISH CARE,263.79,20/11/2018
Delivery Units,Adults and Communities,Other Agencies - Third Party P,0090124216,JEWISH CARE,146.71,20/11/2018
Delivery Units,Adults and Communities,Other Agencies - Third Party P,0090124217,JEWISH CARE,277.28,20/11/2018
Delivery Units,Adults and Communities,Other Agencies - Third Party P,0090124239,JEWISH CARE,244.07,20/11/2018
Delivery Units,Adults and Communities,Other Agencies - Third Party P,0090124241,JEWISH CARE,27.12,20/11/2018
Delivery Units,Adults and Communities,Other Agencies - Third Party P,0090124242,JEWISH CARE,244.07,20/11/2018
Delivery Units,Adults and Communities,Other Agencies - Third Party P,0090124243,JEWISH CARE,244.07,20/11/2018
Delivery Units,Adults and Communities,Other Agencies - Third Party P,0090124244,JEWISH CARE,277.28,20/11/2018
Delivery Units,Adults and Communities,Other Agencies - Third Party P,0090124245,JEWISH CARE,277.28,20/11/2018
Delivery Units,Adults and Communities,Other Agencies - Third Party P,0090124246,JEWISH CARE,244.07,20/11/2018
Delivery Units,Adults and Communities,Other Agencies - Third Party P,0090124247,JEWISH CARE,242.65,20/11/2018
Delivery Units,Adults and Communities,Other Agencies - Third Party P,0090124248,JEWISH CARE,277.28,20/11/2018
Delivery Units,Adults and Communities,Other Agencies - Third Party P,0090124249,JEWISH CARE,277.28,20/11/2018
Delivery Units,Adults and Communities,Other Agencies - Third Party P,0090124250,JEWISH CARE,277.28,20/11/2018
Delivery Units,Adults and Communities,Other Agencies - Third Party P,0090124251,JEWISH CARE,244.07,20/11/2018
Delivery Units,Adults and Communities,Other Agencies - Third Party P,0090124252,JEWISH CARE,244.07,20/11/2018
Delivery Units,Adults and Communities,Other Agencies - Third Party P,0090124253,JEWISH CARE,169.17,20/11/2018
Delivery Units,Adults and Communities,Other Agencies - Third Party P,0090124254,JEWISH CARE,277.28,20/11/2018
Delivery Units,Adults and Communities,Other Agencies - Third Party P,0090124255,JEWISH CARE,277.28,20/11/2018
Delivery Units,Adults and Communities,Other Agencies - Third Party P,0090124256,JEWISH CARE,277.28,20/11/2018
Delivery Units,Adults and Communities,Other Agencies - Third Party P,0090124257,JEWISH CARE,229.87,20/11/2018
Delivery Units,Adults and Communities,Other Agencies - Third Party P,0090124258,JEWISH CARE,200.99,20/11/2018
Delivery Units,Adults and Communities,Other Agencies - Third Party P,0090124260,JEWISH CARE,277.28,20/11/2018
Delivery Units,Adults and Communities,Other Agencies - Third Party P,0090124262,JEWISH CARE,225.72,20/11/2018
Delivery Units,Adults and Communities,Other Agencies - Third Party P,0090124266,JEWISH CARE,301.59,20/11/2018
Delivery Units,Adults and Communities,Other Agencies - Third Party P,0090124269,JEWISH CARE,393.12,20/11/2018
Delivery Units,Adults and Communities,Other Agencies - Third Party P,0090124270,JEWISH CARE,301.59,20/11/2018
Delivery Units,Adults and Communities,Other Agencies - Third Party P,0090124271,JEWISH CARE,271.18,20/11/2018
Delivery Units,Adults and Communities,Other Agencies - Third Party P,0090124273,JEWISH CARE,268.08,20/11/2018
Delivery Units,Adults and Communities,Other Agencies - Third Party P,0090124275,JEWISH CARE,301.59,20/11/2018
Delivery Units,Adults and Communities,Other Agencies - Third Party P,0090124276,JEWISH CARE,236.16,20/11/2018
Delivery Units,Adults and Communities,Other Agencies - Third Party P,0090124277,JEWISH CARE,236.16,20/11/2018
Delivery Units,Adults and Communities,Other Agencies - Third Party P,0090124278,JEWISH CARE,301.59,20/11/2018
Delivery Units,Adults and Communities,Other Agencies - Third Party P,0090124280,JEWISH CARE,284.31,20/11/2018
Delivery Units,Adults and Communities,Other Agencies - Third Party P,0090125567,JEWISH CARE,"2,415.28",23/11/2018
Delivery Units,Adults and Communities,Other Agencies - Third Party P,0090125600,JEWISH CARE,"2,415.28",23/11/2018
Delivery Units,Adults and Communities,Other Agencies - Third Party P,0090126523,JEWISH CARE,"5,875.20",27/11/2018
Delivery Units,Adults and Communities,Other Agencies - Third Party P,0090126547,JEWISH CARE,14.21,27/11/2018
Delivery Units,Adults and Communities,Other Agencies - Third Party P,0090126549,JEWISH CARE,50.00,27/11/2018
Delivery Units,Adults and Communities,Other Agencies - Third Party P,0090127258,JEWISH CARE,"2,017.72",30/11/2018
Delivery Units,Adults and Communities,Other Agencies - Third Party P,0090127261,JEWISH CARE,"2,456.36",30/11/2018
Delivery Units,Adults and Communities,Other Agencies - Third Party P,0090127262,JEWISH CARE,"2,459.96",30/11/2018
Delivery Units,Adults and Communities,Other Agencies - Third Party P,0090127263,JEWISH CARE,"4,246.20",30/11/2018
Delivery Units,Adults and Communities,Other Agencies - Third Party P,0090127265,JEWISH CARE,"2,255.96",30/11/2018
Delivery Units,Adults and Communities,Other Agencies - Third Party P,0090127266,JEWISH CARE,"2,456.36",30/11/2018
Delivery Units,Adults and Communities,Other Agencies - Third Party P,0090127267,JEWISH CARE,"2,415.28",30/11/2018
Delivery Units,Adults and Communities,Other Agencies - Third Party P,0090120080,CLOVELLY HOUSE RESID. HOME LTD,"2,600.00",08/11/2018
Delivery Units,Adults and Communities,Other Agencies - Third Party P,0090120085,CLOVELLY HOUSE RESID. HOME LTD,"2,600.00",08/11/2018
Delivery Units,Adults and Communities,Other Agencies - Third Party P,0090120086,CLOVELLY HOUSE RESID. HOME LTD,"2,780.00",08/11/2018
Delivery Units,Adults and Communities,Other Agencies - Third Party P,0090120088,CLOVELLY HOUSE RESID. HOME LTD,"2,780.00",08/11/2018
Delivery Units,Adults and Communities,Other Agencies - Third Party P,0090120091,CLOVELLY HOUSE RESID. HOME LTD,"2,304.00",08/11/2018
Delivery Units,Adults and Communities,Other Agencies - Third Party P,0090123125,CLOVELLY HOUSE RESID. HOME LTD,"2,399.50",15/11/2018
Delivery Units,Adults and Communities,Other Agencies - Third Party P,0090123126,CLOVELLY HOUSE RESID. HOME LTD,"2,399.50",15/11/2018
Delivery Units,Adults and Communities,Other Agencies - Third Party P,0090123127,CLOVELLY HOUSE RESID. HOME LTD,"2,600.00",15/11/2018
Delivery Units,Adults and Communities,Other Agencies - Third Party P,0090124420,FINBOND LIMITED,"3,542.86",20/11/2018
Delivery Units,Adults and Communities,Other Agencies - Third Party P,0090124422,FINBOND LIMITED,"2,435.71",20/11/2018
Delivery Units,Adults and Communities,Other Agencies - Third Party P,0090122203,CATHERINE LODGE,"3,407.14",15/11/2018
Delivery Units,Adults and Communities,Other Agencies - Third Party P,0090122205,CATHERINE LODGE,"2,468.57",15/11/2018
Delivery Units,Adults and Communities,Other Agencies - Third Party P,0090122206,CATHERINE LODGE,"2,468.57",15/11/2018
Delivery Units,Adults and Communities,Other Agencies - Third Party P,0090122208,CATHERINE LODGE,"3,364.29",15/11/2018
Delivery Units,Adults and Communities,Other Agencies - Third Party P,0090122210,CATHERINE LODGE,"3,407.14",15/11/2018
Delivery Units,Adults and Communities,Other Agencies - Third Party P,0090121455,BUPA NURSING HOMES LTD - ARKLEY,"2,218.04",15/11/2018
Delivery Units,Adults and Communities,Other Agencies - Third Party P,0090120097,SUNRIDGE HOUSING ASSOCIATION LTD,"2,893.14",08/11/2018
Delivery Units,Adults and Communities,Other Agencies - Third Party P,0090119919,NAZARETH HOUSE,"2,144.00",08/11/2018
Delivery Units,Adults and Communities,Other Agencies - Third Party P,0090119920,NAZARETH HOUSE,"2,304.00",08/11/2018
Delivery Units,Adults and Communities,Other Agencies - Third Party P,0090119921,NAZARETH HOUSE,"2,144.00",08/11/2018
Delivery Units,Adults and Communities,Other Agencies - Third Party P,0090119922,NAZARETH HOUSE,"2,144.00",08/11/2018
Delivery Units,Adults and Communities,Other Agencies - Third Party P,0090119923,NAZARETH HOUSE,"2,144.00",08/11/2018
Delivery Units,Adults and Communities,Other Agencies - Third Party P,0090119924,NAZARETH HOUSE,"2,304.00",08/11/2018
Delivery Units,Adults and Communities,Other Agencies - Third Party P,0090119925,NAZARETH HOUSE,"2,144.00",08/11/2018
Delivery Units,Adults and Communities,Other Agencies - Third Party P,0090119926,NAZARETH HOUSE,"2,144.00",08/11/2018
Delivery Units,Adults and Communities,Other Agencies - Third Party P,0090119927,NAZARETH HOUSE,"2,080.00",08/11/2018
Delivery Units,Adults and Communities,Other Agencies - Third Party P,0090119929,NAZARETH HOUSE,"2,650.40",08/11/2018
Delivery Units,Adults and Communities,Other Agencies - Third Party P,0090119930,NAZARETH HOUSE,"2,144.00",08/11/2018
Delivery Units,Adults and Communities,Other Agencies - Third Party P,0090119931,NAZARETH HOUSE,"2,304.00",08/11/2018
Delivery Units,Adults and Communities,Other Agencies - Third Party P,0090119932,NAZARETH HOUSE,"2,144.00",08/11/2018
Delivery Units,Adults and Communities,Other Agencies - Third Party P,0090119933,NAZARETH HOUSE,"2,304.00",08/11/2018
Delivery Units,Adults and Communities,Other Agencies - Third Party P,0090119934,NAZARETH HOUSE,"2,304.00",08/11/2018
Delivery Units,Adults and Communities,Other Agencies - Third Party P,0090119935,NAZARETH HOUSE,"2,144.00",08/11/2018
Delivery Units,Adults and Communities,Other Agencies - Third Party P,0090119936,NAZARETH HOUSE,"2,144.00",08/11/2018
Delivery Units,Adults and Communities,Other Agencies - Third Party P,0090119937,NAZARETH HOUSE,"2,144.00",08/11/2018
Delivery Units,Adults and Communities,Other Agencies - Third Party P,0090119941,NAZARETH HOUSE,-658.29,08/11/2018
Delivery Units,Adults and Communities,Other Agencies - Third Party P,0090125145,NAZARETH HOUSE,"1,485.71",22/11/2018
Delivery Units,Adults and Communities,Other Agencies - Third Party P,0090125146,NAZARETH HOUSE,"2,080.00",22/11/2018
Delivery Units,Adults and Communities,Other Agencies - Third Party P,0090125147,NAZARETH HOUSE,"2,080.00",22/11/2018
Delivery Units,Adults and Communities,Other Agencies - Third Party P,0090125148,NAZARETH HOUSE,"2,080.00",22/11/2018
Delivery Units,Adults and Communities,Other Agencies - Third Party P,0090125149,NAZARETH HOUSE,"-1,263.89",22/11/2018
Delivery Units,Adults and Communities,Other Agencies - Third Party P,0090123292,FRIARY LODGE,"3,321.43",22/11/2018
Delivery Units,Adults and Communities,Other Agencies - Third Party P,0090126531,FRIARY LODGE,"3,214.28",29/11/2018
Delivery Units,Adults and Communities,Other Agencies - Third Party P,0090119721,THE WOODSIDE HOME,"2,144.00",08/11/2018
Delivery Units,Adults and Communities,Other Agencies - Third Party P,0090119722,THE WOODSIDE HOME,"2,144.00",08/11/2018
Delivery Units,Adults and Communities,Other Agencies - Third Party P,0090119723,THE WOODSIDE HOME,"2,304.00",08/11/2018
Delivery Units,Adults and Communities,Other Agencies - Third Party P,0090119724,THE WOODSIDE HOME,"2,304.00",08/11/2018
Delivery Units,Adults and Communities,Other Agencies - Third Party P,0090119726,THE WOODSIDE HOME,"2,144.00",08/11/2018
Delivery Units,Adults and Communities,Other Agencies - Third Party P,0090119727,THE WOODSIDE HOME,"2,144.00",08/11/2018
Delivery Units,Adults and Communities,Other Agencies - Third Party P,0090119432,METHODIST HOMES FOR THE AGED,"2,631.76",02/11/2018
Delivery Units,Adults and Communities,Other Agencies - Third Party P,0090120071,METHODIST HOMES FOR THE AGED,"2,631.76",08/11/2018
Delivery Units,Adults and Communities,Other Agencies - Third Party P,0090123891,SYDMAR LODGE,"2,389.76",20/11/2018
Delivery Units,Adults and Communities,Other Agencies - Third Party P,0090123892,SYDMAR LODGE,"2,425.41",20/11/2018
Delivery Units,Adults and Communities,Other Agencies - Third Party P,0090123893,SYDMAR LODGE,"2,425.41",20/11/2018
Delivery Units,Adults and Communities,Other Agencies - Third Party P,0090123894,SYDMAR LODGE,"2,425.41",20/11/2018
Delivery Units,Adults and Communities,Other Agencies - Third Party P,0090123331,THE LIMES RESIDENTIAL HOME,"2,468.57",20/11/2018
Delivery Units,Adults and Communities,Other Agencies - Third Party P,0090123332,THE LIMES RESIDENTIAL HOME,"2,468.57",20/11/2018
Delivery Units,Adults and Communities,Other Agencies - Third Party P,0090123333,THE LIMES RESIDENTIAL HOME,"2,382.86",20/11/2018
Delivery Units,Adults and Communities,Other Agencies - Third Party P,0090123334,THE LIMES RESIDENTIAL HOME,"2,297.14",20/11/2018
Delivery Units,Adults and Communities,Other Agencies - Third Party P,0090123336,THE LIMES RESIDENTIAL HOME,"2,468.57",20/11/2018
Delivery Units,Adults and Communities,Other Agencies - Third Party P,0090123337,THE LIMES RESIDENTIAL HOME,"2,297.14",20/11/2018
Delivery Units,Adults and Communities,Other Agencies - Third Party P,0090123338,THE LIMES RESIDENTIAL HOME,"2,468.57",20/11/2018
Delivery Units,Adults and Communities,Other Agencies - Third Party P,0090123339,THE LIMES RESIDENTIAL HOME,"2,468.57",20/11/2018
Delivery Units,Adults and Communities,Other Agencies - Third Party P,0090123340,THE LIMES RESIDENTIAL HOME,"2,468.57",20/11/2018
Delivery Units,Adults and Communities,Other Agencies - Third Party P,0090123341,THE LIMES RESIDENTIAL HOME,"2,468.57",20/11/2018
Delivery Units,Adults and Communities,Other Agencies - Third Party P,0090123342,THE LIMES RESIDENTIAL HOME,"2,468.57",20/11/2018
Delivery Units,Adults and Communities,Other Agencies - Third Party P,0090123343,THE LIMES RESIDENTIAL HOME,"2,571.43",20/11/2018
Delivery Units,Adults and Communities,Other Agencies - Third Party P,0090123345,THE LIMES RESIDENTIAL HOME,"2,571.43",20/11/2018
Delivery Units,Adults and Communities,Other Agencies - Third Party P,0090125128,THE LIMES RESIDENTIAL HOME,"1,974.82",22/11/2018
Delivery Units,Adults and Communities,Other Agencies - Third Party P,0090119118,SCIMITAR CARE HOTELS PLC,"3,857.14",02/11/2018
Delivery Units,Adults and Communities,Other Agencies - Third Party P,0090123656,SCIMITAR CARE HOTELS PLC,"3,642.86",29/11/2018
Delivery Units,Adults and Communities,Other Agencies - Third Party P,0090123657,SCIMITAR CARE HOTELS PLC,"3,310.71",29/11/2018
Delivery Units,Adults and Communities,Other Agencies - Third Party P,0090123658,SCIMITAR CARE HOTELS PLC,"4,071.43",29/11/2018
Delivery Units,Adults and Communities,Other Agencies - Third Party P,0090123659,SCIMITAR CARE HOTELS PLC,"3,857.14",29/11/2018
Delivery Units,Adults and Communities,Other Agencies - Third Party P,0090123295,FREMANTLE TRUST,"2,284.00",16/11/2018
Delivery Units,Adults and Communities,Other Agencies - Third Party P,0090123298,FREMANTLE TRUST,"2,096.00",16/11/2018
Delivery Units,Adults and Communities,Other Agencies - Third Party P,0090123299,FREMANTLE TRUST,"2,096.00",16/11/2018
Delivery Units,Adults and Communities,Other Agencies - Third Party P,0090123300,FREMANTLE TRUST,"2,284.00",16/11/2018
Delivery Units,Adults and Communities,Other Agencies - Third Party P,0090123301,FREMANTLE TRUST,"2,120.86",16/11/2018
Delivery Units,Adults and Communities,Other Agencies - Third Party P,0090123303,FREMANTLE TRUST,"1,946.29",16/11/2018
Delivery Units,Adults and Communities,Other Agencies - Third Party P,0090123304,FREMANTLE TRUST,"2,096.00",16/11/2018
Delivery Units,Adults and Communities,Other Agencies - Third Party P,0090123305,FREMANTLE TRUST,"2,096.00",16/11/2018
Delivery Units,Adults and Communities,Other Agencies - Third Party P,0090123306,FREMANTLE TRUST,"2,096.00",16/11/2018
Delivery Units,Adults and Communities,Other Agencies - Third Party P,0090123308,FREMANTLE TRUST,"2,284.00",16/11/2018
Delivery Units,Adults and Communities,Other Agencies - Third Party P,0090123309,FREMANTLE TRUST,"2,284.00",16/11/2018
Delivery Units,Adults and Communities,Other Agencies - Third Party P,0090123310,FREMANTLE TRUST,"2,096.00",16/11/2018
Delivery Units,Adults and Communities,Other Agencies - Third Party P,0090123311,FREMANTLE TRUST,"2,284.00",16/11/2018
Delivery Units,Adults and Communities,Other Agencies - Third Party P,0090123312,FREMANTLE TRUST,"2,096.00",16/11/2018
Delivery Units,Adults and Communities,Other Agencies - Third Party P,0090123313,FREMANTLE TRUST,"2,284.00",16/11/2018
Delivery Units,Adults and Communities,Other Agencies - Third Party P,0090123314,FREMANTLE TRUST,"2,284.00",16/11/2018
Delivery Units,Adults and Communities,Other Agencies - Third Party P,0090123318,FREMANTLE TRUST,"2,096.00",16/11/2018
Delivery Units,Adults and Communities,Other Agencies - Third Party P,0090123319,FREMANTLE TRUST,"2,284.00",16/11/2018
Delivery Units,Adults and Communities,Other Agencies - Third Party P,0090123320,FREMANTLE TRUST,"2,284.00",16/11/2018
Delivery Units,Adults and Communities,Other Agencies - Third Party P,0090123322,FREMANTLE TRUST,"2,096.00",16/11/2018
Delivery Units,Adults and Communities,Other Agencies - Third Party P,0090123323,FREMANTLE TRUST,"2,096.00",16/11/2018
Delivery Units,Adults and Communities,Other Agencies - Third Party P,0090123324,FREMANTLE TRUST,"2,096.00",16/11/2018
Delivery Units,Adults and Communities,Other Agencies - Third Party P,0090123325,FREMANTLE TRUST,"2,284.00",16/11/2018
Delivery Units,Adults and Communities,Other Agencies - Third Party P,0090123326,FREMANTLE TRUST,"2,284.00",16/11/2018
Delivery Units,Adults and Communities,Other Agencies - Third Party P,0090123328,FREMANTLE TRUST,"2,284.00",16/11/2018
Delivery Units,Adults and Communities,Other Agencies - Third Party P,0090123329,FREMANTLE TRUST,"2,096.00",16/11/2018
Delivery Units,Adults and Communities,Other Agencies - Third Party P,0090123330,FREMANTLE TRUST,"2,096.00",16/11/2018
Delivery Units,Adults and Communities,Other Agencies - Third Party P,0090123574,FREMANTLE TRUST,407.86,16/11/2018
Delivery Units,Adults and Communities,Other Agencies - Third Party P,0090123578,FREMANTLE TRUST,"2,096.00",16/11/2018
Delivery Units,Adults and Communities,Other Agencies - Third Party P,0090123579,FREMANTLE TRUST,"2,096.00",16/11/2018
Delivery Units,Adults and Communities,Other Agencies - Third Party P,0090123580,FREMANTLE TRUST,"2,096.00",16/11/2018
Delivery Units,Adults and Communities,Other Agencies - Third Party P,0090123582,FREMANTLE TRUST,"2,096.00",16/11/2018
Delivery Units,Adults and Communities,Other Agencies - Third Party P,0090123584,FREMANTLE TRUST,"2,096.00",16/11/2018
Delivery Units,Adults and Communities,Other Agencies - Third Party P,0090123585,FREMANTLE TRUST,"2,096.00",16/11/2018
Delivery Units,Adults and Communities,Other Agencies - Third Party P,0090123586,FREMANTLE TRUST,"2,096.00",16/11/2018
Delivery Units,Adults and Communities,Other Agencies - Third Party P,0090123587,FREMANTLE TRUST,"2,096.00",16/11/2018
Delivery Units,Adults and Communities,Other Agencies - Third Party P,0090123589,FREMANTLE TRUST,"2,096.00",16/11/2018
Delivery Units,Adults and Communities,Other Agencies - Third Party P,0090123590,FREMANTLE TRUST,"2,096.00",16/11/2018
Delivery Units,Adults and Communities,Other Agencies - Third Party P,0090123593,FREMANTLE TRUST,"2,096.00",16/11/2018
Delivery Units,Adults and Communities,Other Agencies - Third Party P,0090123594,FREMANTLE TRUST,"2,096.00",16/11/2018
Delivery Units,Adults and Communities,Other Agencies - Third Party P,0090123595,FREMANTLE TRUST,"2,096.00",16/11/2018
Delivery Units,Adults and Communities,Other Agencies - Third Party P,0090123596,FREMANTLE TRUST,"2,096.00",16/11/2018
Delivery Units,Adults and Communities,Other Agencies - Third Party P,0090123597,FREMANTLE TRUST,"2,096.00",16/11/2018
Delivery Units,Adults and Communities,Other Agencies - Third Party P,0090123599,FREMANTLE TRUST,"2,096.00",16/11/2018
Delivery Units,Adults and Communities,Other Agencies - Third Party P,0090123600,FREMANTLE TRUST,"2,284.00",16/11/2018
Delivery Units,Adults and Communities,Other Agencies - Third Party P,0090123601,FREMANTLE TRUST,"2,284.00",16/11/2018
Delivery Units,Adults and Communities,Other Agencies - Third Party P,0090123602,FREMANTLE TRUST,"2,284.00",16/11/2018
Delivery Units,Adults and Communities,Other Agencies - Third Party P,0090123605,FREMANTLE TRUST,"2,096.00",16/11/2018
Delivery Units,Adults and Communities,Other Agencies - Third Party P,0090123606,FREMANTLE TRUST,"2,096.00",16/11/2018
Delivery Units,Adults and Communities,Other Agencies - Third Party P,0090123607,FREMANTLE TRUST,"2,284.00",16/11/2018
Delivery Units,Adults and Communities,Other Agencies - Third Party P,0090123608,FREMANTLE TRUST,"1,549.86",16/11/2018
Delivery Units,Adults and Communities,Other Agencies - Third Party P,0090123609,FREMANTLE TRUST,"2,096.00",16/11/2018
Delivery Units,Adults and Communities,Other Agencies - Third Party P,0090123611,FREMANTLE TRUST,"1,631.43",16/11/2018
Delivery Units,Adults and Communities,Other Agencies - Third Party P,0090123613,FREMANTLE TRUST,"2,284.00",16/11/2018
Delivery Units,Adults and Communities,Other Agencies - Third Party P,0090123615,FREMANTLE TRUST,"2,096.00",16/11/2018
Delivery Units,Adults and Communities,Other Agencies - Third Party P,0090123616,FREMANTLE TRUST,"2,284.00",16/11/2018
Delivery Units,Adults and Communities,Other Agencies - Third Party P,0090123617,FREMANTLE TRUST,"2,096.00",16/11/2018
Delivery Units,Adults and Communities,Other Agencies - Third Party P,0090123620,FREMANTLE TRUST,"2,096.00",16/11/2018
Delivery Units,Adults and Communities,Other Agencies - Third Party P,0090123621,FREMANTLE TRUST,"2,096.00",16/11/2018
Delivery Units,Adults and Communities,Other Agencies - Third Party P,0090123622,FREMANTLE TRUST,"2,284.00",16/11/2018
Delivery Units,Adults and Communities,Other Agencies - Third Party P,0090123623,FREMANTLE TRUST,"2,284.00",16/11/2018
Delivery Units,Adults and Communities,Other Agencies - Third Party P,0090123624,FREMANTLE TRUST,"2,284.00",16/11/2018
Delivery Units,Adults and Communities,Other Agencies - Third Party P,0090123625,FREMANTLE TRUST,"2,284.00",16/11/2018
Delivery Units,Adults and Communities,Other Agencies - Third Party P,0090123626,FREMANTLE TRUST,"2,284.00",16/11/2018
Delivery Units,Adults and Communities,Other Agencies - Third Party P,0090123627,FREMANTLE TRUST,"2,284.00",16/11/2018
Delivery Units,Adults and Communities,Other Agencies - Third Party P,0090123628,FREMANTLE TRUST,"2,096.00",16/11/2018
Delivery Units,Adults and Communities,Other Agencies - Third Party P,0090123629,FREMANTLE TRUST,"2,284.00",16/11/2018
Delivery Units,Adults and Communities,Other Agencies - Third Party P,0090123630,FREMANTLE TRUST,"2,284.00",16/11/2018
Delivery Units,Adults and Communities,Other Agencies - Third Party P,0090123632,FREMANTLE TRUST,"1,497.14",16/11/2018
Delivery Units,Adults and Communities,Other Agencies - Third Party P,0090123633,FREMANTLE TRUST,"2,284.00",16/11/2018
Delivery Units,Adults and Communities,Other Agencies - Third Party P,0090123634,FREMANTLE TRUST,"2,284.00",16/11/2018
Delivery Units,Adults and Communities,Other Agencies - Third Party P,0090123635,FREMANTLE TRUST,"1,721.71",16/11/2018
Delivery Units,Adults and Communities,Other Agencies - Third Party P,0090123637,FREMANTLE TRUST,"2,284.00",16/11/2018
Delivery Units,Adults and Communities,Other Agencies - Third Party P,0090123638,FREMANTLE TRUST,"1,497.14",16/11/2018
Delivery Units,Adults and Communities,Other Agencies - Third Party P,0090123639,FREMANTLE TRUST,"22,170.29",16/11/2018
Delivery Units,Adults and Communities,Other Agencies - Third Party P,0090123640,FREMANTLE TRUST,"2,545.14",16/11/2018
Delivery Units,Adults and Communities,Other Agencies - Third Party P,0090123641,FREMANTLE TRUST,"2,408.85",16/11/2018
Delivery Units,Adults and Communities,Other Agencies - Third Party P,0090125271,FREMANTLE TRUST,"2,096.00",22/11/2018
Delivery Units,Adults and Communities,Other Agencies - Third Party P,0090125274,FREMANTLE TRUST,306.29,22/11/2018
Delivery Units,Adults and Communities,Other Agencies - Third Party P,0090119839,BUPA CARE HOMES,"3,416.94",08/11/2018
Delivery Units,Adults and Communities,Other Agencies - Third Party P,0090119840,BUPA CARE HOMES,"3,228.90",08/11/2018
Delivery Units,Adults and Communities,Other Agencies - Third Party P,0090124175,BUPA CARE HOMES,"2,464.59",20/11/2018
Delivery Units,Adults and Communities,Other Agencies - Third Party P,0090119709,ANASTASIA LODGE,"2,800.00",08/11/2018
Delivery Units,Adults and Communities,Other Agencies - Third Party P,0090119581,HILTON LODGE LTD.,"2,480.00",08/11/2018
Delivery Units,Adults and Communities,Other Agencies - Third Party P,0090119582,HILTON LODGE LTD.,"2,880.00",08/11/2018
Delivery Units,Adults and Communities,Other Agencies - Third Party P,0090119583,HILTON LODGE LTD.,"2,880.00",08/11/2018
Delivery Units,Adults and Communities,Other Agencies - Third Party P,0090122230,VENTRY RESIDENTIAL CARE LTD,"2,550.86",15/11/2018
Delivery Units,Adults and Communities,Other Agencies - Third Party P,0090122246,VENTRY RESIDENTIAL CARE LTD,401.73,14/11/2018
Delivery Units,Adults and Communities,Other Agencies - Third Party P,0090123195,B & M CARE,"3,214.29",15/11/2018
Delivery Units,Adults and Communities,Other Agencies - Third Party P,0090123216,B & M CARE,"2,176.89",15/11/2018
Delivery Units,Adults and Communities,Other Agencies - Third Party P,0090123217,B & M CARE,"2,242.20",15/11/2018
Delivery Units,Adults and Communities,Other Agencies - Third Party P,0090126526,B & M CARE,"1,195.84",27/11/2018
Delivery Units,Adults and Communities,Other Agencies - Third Party P,0090119938,NAZARETH HOUSE,"2,080.00",08/11/2018
Delivery Units,Adults and Communities,Other Agencies - Third Party P,0090119939,NAZARETH HOUSE,"2,080.00",08/11/2018
Delivery Units,Adults and Communities,Other Agencies - Third Party P,0090123307,ROLAND RESIDENTIAL CARE HOMES LTD,"3,242.88",16/11/2018
Delivery Units,Adults and Communities,Other Agencies - Third Party P,0090123643,R.M.B.I,"2,176.80",16/11/2018
Delivery Units,Adults and Communities,Other Agencies - Third Party P,0090123245,SWANBOROUGH HOUSE,"3,988.33",15/11/2018
Delivery Units,Adults and Communities,Other Agencies - Third Party P,0090122247,ASHFIELDS RESIDENTIAL CARE HOME,"2,550.86",14/11/2018
Delivery Units,Adults and Communities,Other Agencies - Third Party P,0090122248,ASHFIELDS RESIDENTIAL CARE HOME,"2,550.86",14/11/2018
Delivery Units,Adults and Communities,Other Agencies - Third Party P,0090122250,ASHFIELDS RESIDENTIAL CARE HOME,"2,373.71",14/11/2018
Delivery Units,Adults and Communities,Other Agencies - Third Party P,0090122252,ASHFIELDS RESIDENTIAL CARE HOME,"2,550.86",14/11/2018
Delivery Units,Adults and Communities,Other Agencies - Third Party P,0090122253,ASHFIELDS RESIDENTIAL CARE HOME,"2,550.86",14/11/2018
Delivery Units,Adults and Communities,Other Agencies - Third Party P,0090122254,ASHFIELDS RESIDENTIAL CARE HOME,"2,657.14",14/11/2018
Delivery Units,Adults and Communities,Other Agencies - Third Party P,0090119712,AUTUMN GARDENS,"3,160.00",08/11/2018
Delivery Units,Adults and Communities,Other Agencies - Third Party P,0090119713,AUTUMN GARDENS,"2,880.00",08/11/2018
Delivery Units,Adults and Communities,Other Agencies - Third Party P,0090124181,THE CHRISTIAN CARE TRUST,"2,304.00",20/11/2018
Delivery Units,Adults and Communities,Other Agencies - Third Party P,0090120102,CARLTON COURT (TLC GROUP),"2,249.45",08/11/2018
Delivery Units,Adults and Communities,Other Agencies - Third Party P,0090123197,CARLTON COURT (TLC GROUP),"2,176.89",15/11/2018
Delivery Units,Adults and Communities,Other Agencies - Third Party P,0090123102,ASHTON LODGE CARE CENTRE,"8,863.94",15/11/2018
Delivery Units,Adults and Communities,Other Agencies - Third Party P,0090119120,LIVABILITY,"3,180.00",02/11/2018
Delivery Units,Adults and Communities,Other Agencies - Third Party P,0090119733,LIVABILITY,"3,180.00",08/11/2018
Delivery Units,Adults and Communities,Other Agencies - Third Party P,0090123653,BIRCHWOOD GRANGE CARE HOME,"2,571.43",16/11/2018
Delivery Units,Adults and Communities,Other Agencies - Third Party P,0090126522,MADELAYNE COURT,"2,144.91",27/11/2018
Delivery Units,Adults and Communities,Other Agencies - Third Party P,0090119734,Z & M CARE LTD,"2,600.00",08/11/2018
Delivery Units,Adults and Communities,Other Agencies - Third Party P,0090118889,NHS BARNET CCG,"31,266.94",02/11/2018
Delivery Units,Adults and Communities,Other Agencies - Third Party P,0090118890,NHS BARNET CCG,"31,266.94",02/11/2018
Delivery Units,Adults and Communities,Other Agencies - Third Party P,0090118891,NHS BARNET CCG,"4,111.82",02/11/2018
Delivery Units,Adults and Communities,Other Agencies - Third Party P,0090124388,BELMONT LODGE CARE CENTRE,"2,327.14",20/11/2018
Delivery Units,Adults and Communities,Other Agencies - Third Party P,0090123212,KARUNA MANOR,"3,981.43",15/11/2018
Delivery Units,Adults and Communities,Other Agencies - Third Party P,0090123213,KARUNA MANOR,"4,071.43",15/11/2018
Delivery Units,Adults and Communities,Other Agencies - Third Party P,0090123215,KARUNA MANOR,"3,857.14",15/11/2018
Delivery Units,Adults and Communities,Other Agencies - Third Party P,0090120353,ALEXANDRA HOUSE (RUNWOOD HOMES),"2,262.69",08/11/2018
Delivery Units,Adults and Communities,Other Agencies - Third Party P,0090122229,THE WINDMILL CARE HOME,"1,872.40",14/11/2018
Delivery Units,Adults and Communities,Other Agencies - Third Party P,0090123645,SONNET CARE HOMES (ESSEX) LTD,"4,714.29",29/11/2018
Delivery Units,Adults and Communities,Other Agencies - Third Party P,0090123669,GCH (HERTFORDSHIRE) LTD T/A,"2,356.00",16/11/2018
Delivery Units,Adults and Communities,Other Agencies - Third Party P,0090123670,GCH (HERTFORDSHIRE) LTD T/A,"2,414.68",16/11/2018
Delivery Units,Adults and Communities,Other Agencies - Third Party P,0080020278,SOUTH COAST CARE HOMES LTD,"5,137.14",08/11/2018
Delivery Units,Adults and Communities,Other Agencies - Third Party P,0090120117,YORK HOMES (DORSET) LTD,"2,600.00",08/11/2018
Delivery Units,Adults and Communities,Other Agencies - Third Party P,0090122245,B & M CARE (THE RADLEY CARE HOME),"1,914.29",14/11/2018
Delivery Units,Adults and Communities,Other Agencies - Third Party P,0090119112,WESTMINSTER HEALTH CARE LTD,707.92,02/11/2018
Delivery Units,Adults and Communities,Other Agencies - Third Party P,0090119114,WESTMINSTER HEALTH CARE LTD,"3,621.21",02/11/2018
Delivery Units,Adults and Communities,Other Agencies - Third Party P,0090121422,WESTMINSTER HEALTH CARE LTD,731.52,14/11/2018
Delivery Units,Adults and Communities,Other Agencies - Third Party P,0090121424,WESTMINSTER HEALTH CARE LTD,"3,741.92",14/11/2018
Delivery Units,Adults and Communities,Other Agencies - Third Party P,0090121425,WESTMINSTER HEALTH CARE LTD,-380.15,14/11/2018
Delivery Units,Adults and Communities,Other Agencies - Third Party P,0090124169,LEO BAECK HOUSING ASSOC. LTD,"2,176.89",20/11/2018
Delivery Units,Adults and Communities,Other Agencies - Third Party P,0090124170,LEO BAECK HOUSING ASSOC. LTD,"2,249.45",20/11/2018
Delivery Units,Adults and Communities,Other Agencies - Third Party P,0090124171,LEO BAECK HOUSING ASSOC. LTD,"2,249.45",20/11/2018
Delivery Units,Adults and Communities,Other Agencies - Third Party P,0090124195,LEO BAECK HOUSING ASSOC. LTD,"2,176.89",20/11/2018
Delivery Units,Adults and Communities,Other Agencies - Third Party P,0090124196,LEO BAECK HOUSING ASSOC. LTD,"2,252.14",20/11/2018
Delivery Units,Adults and Communities,Other Agencies - Third Party P,0090119445,SAGE NURSING HOME,"2,373.71",08/11/2018
Delivery Units,Adults and Communities,Other Agencies - Third Party P,0090119447,SAGE NURSING HOME,"2,657.14",08/11/2018
